Body Name,Transaction Date,Transaction Amount,Merchant Name,Merchant Description,Expense Area,Cost Centre Description,Expense Type
Cambridgeshire County Council,01/04/2022,-2.00,WILKO.COM,MISCELLANEOUS GENERAL MERCHANDISE,Alternative Provision and Inclusion,Alternative Education Service & EIO's,
Cambridgeshire County Council,01/04/2022,3.23,POST OFFICE COUNTER,POSTAL SERVICES-GOVERNMENT ONLY,Early Years Service,EY Central Costs,RECRUITMENT COSTS
Cambridgeshire County Council,01/04/2022,6.24,TESCO STORE 2555,"GROCERY STORES, SUPERMARKETS",Changing Futures & Projects,Housing First,OTHER SERVICE USER SUPPORT
Cambridgeshire County Council,01/04/2022,6.25,TESCO STORES 5657,"GROCERY STORES, SUPERMARKETS",Changing Futures & Projects,Counting Every Adult,OTHER SERVICE USER SUPPORT
Cambridgeshire County Council,01/04/2022,7.60,AMZNMKTPLACE AMAZON.CO,MISCELLANEOUS AND SPECIALTY RETAIL STORES,Children's Disability Service,Head of RSS,
Cambridgeshire County Council,01/04/2022,7.60,AMZNMKTPLACE AMAZON.CO,MISCELLANEOUS AND SPECIALTY RETAIL STORES,Children's Disability Service,Head of RSS,
Cambridgeshire County Council,01/04/2022,8.00,ZTL HANK MARVIN,"EATING PLACES, RESTAURANTS",Changing Futures & Projects,Housing First,OTHER SERVICE USER SUPPORT
Cambridgeshire County Council,01/04/2022,9.07,BOOKER LIMITED PETERBO,CATERERS,Outdoor Education (includes Grafham Water),CEES Stibbington Centre,CATERING PROVISIONS
Cambridgeshire County Council,01/04/2022,9.99,AMZNMKTPLACE AMAZON.CO,MISCELLANEOUS AND SPECIALTY RETAIL STORES,Children's Disability Service,Head of RSS,
Cambridgeshire County Council,01/04/2022,11.00,GEN REGISTER OFFICE,GOVERNMENT SERVICES-NOT ELSEWHERE CLASSIFIED,Corporate Parenting,North Child Looked After Team 1,GRANTS&SUPPORT FOR OTHER SERVICE USERS
Cambridgeshire County Council,01/04/2022,11.07,MCDONALDS,FAST FOOD RESTAURANTS,Youth Offending Service,YOT - High Risk and Deter,OFFENDERS SUPPORT
Cambridgeshire County Council,01/04/2022,11.20,STAGECOACH SERVICE,BUS LINES,Family Safeguarding West,Family Safeguarding Hunts and Fenland,ASYLUM SEEKERS
Cambridgeshire County Council,01/04/2022,12.00,TIMPSON LTD,MISCELLANEOUS AND SPECIALTY RETAIL STORES,Changing Futures & Projects,Housing First,OTHER SERVICE USER SUPPORT
Cambridgeshire County Council,01/04/2022,12.49,CHILDERLY GATE,SERVICE STATIONS WITH OR WITHOUT ANCILLARY SERVICE,Youth Offending Service,YOT - High Risk and Deter,OFFENDERS SUPPORT
Cambridgeshire County Council,01/04/2022,12.79,AMZNMKTPLACE AMAZON.CO,MISCELLANEOUS AND SPECIALTY RETAIL STORES,Children's Disability Service,Head of RSS,
Cambridgeshire County Council,01/04/2022,13.65,TESCO STORE 2555,"GROCERY STORES, SUPERMARKETS",Changing Futures & Projects,Housing First,OTHER SERVICE USER SUPPORT
Cambridgeshire County Council,01/04/2022,14.97,AMZNMKTPLACE AMAZON.CO,MISCELLANEOUS AND SPECIALTY RETAIL STORES,Outdoor Education (includes Grafham Water),Burwell House Residential Centre,EDUCATIONAL MATERIALS
Cambridgeshire County Council,01/04/2022,17.68,TRAINLINE.COM,PASSENGER RAILWAYS,Corporate Parenting,South Child Looked After Team 2,CAR MILEAGE AND ALLOWANCES - OTHER
Cambridgeshire County Council,01/04/2022,17.99,AMZNMKTPLACE,MISCELLANEOUS AND SPECIALTY RETAIL STORES,Children's Disability Service,Head of RSS,
Cambridgeshire County Council,01/04/2022,19.00,CKB LTD,MISCELLANEOUS GENERAL MERCHANDISE,Connecting Cambridgeshire,Connecting Cambridgeshire,GENERAL OFFICE EXPENSES & STATIONERY
Cambridgeshire County Council,01/04/2022,21.99,TESCO STORE 2555,"GROCERY STORES, SUPERMARKETS",Changing Futures & Projects,Housing First,OTHER SERVICE USER SUPPORT
Cambridgeshire County Council,01/04/2022,25.00,TESCO STORE 2555,"GROCERY STORES, SUPERMARKETS",Changing Futures & Projects,Housing First,STAFF SUBSISTENCE
Cambridgeshire County Council,01/04/2022,27.98,AMZNMKTPLACE AMAZON.CO,MISCELLANEOUS AND SPECIALTY RETAIL STORES,Children's Disability Service,Head of RSS,
Cambridgeshire County Council,01/04/2022,30.20,AMZNMKTPLACE AMAZON.CO,MISCELLANEOUS AND SPECIALTY RETAIL STORES,Children's Disability Service,Head of RSS,
Cambridgeshire County Council,01/04/2022,33.00,PETERBOROUGH CITY CO,GOVERNMENT SERVICES-NOT ELSEWHERE CLASSIFIED,Family Safeguarding East,Fenland Children's Team 2,
Cambridgeshire County Council,01/04/2022,37.04,TRAINLINE.COM,PASSENGER RAILWAYS,"Communities, Employment & Skills",YS - National Citizen Service,
Cambridgeshire County Council,01/04/2022,39.80,WM MORRISONS STORE,"GROCERY STORES, SUPERMARKETS",Youth Offending Service,YOT - High Risk and Deter,OFFENDERS SUPPORT
Cambridgeshire County Council,01/04/2022,44.25,ST IVES CORN EXCHANGE,"BAR,LOUNGE,DISCO,NIGHTCLUB,TAVERN-ALCOHOLIC DRINKS",Safeguarding and Quality Assurance,Childrens Participation,CASUAL HIRE OF FACILITIES
Cambridgeshire County Council,01/04/2022,49.00,HM PASSPORT OFFICE,GOVERNMENT SERVICES-NOT ELSEWHERE CLASSIFIED,Corporate Parenting,North Child Looked After Team 1,GRANTS&SUPPORT FOR OTHER SERVICE USERS
Cambridgeshire County Council,01/04/2022,49.92,TESCO STORES 2470,"GROCERY STORES, SUPERMARKETS",Targeted Support Service - South,EH Child and Family Centre - East Cambs,SPECIALIST EQUIPMENT FOR SERVICE DELIV
Cambridgeshire County Council,01/04/2022,50.00,AMAZON.CO.UK 295EB6PV4,DIRECT MARKETING-OTHER DIRECT MARKETERS/NOT ELSEW.,Policy Design and Delivery,BID Director and Business Support,
Cambridgeshire County Council,01/04/2022,64.10,JUST EAT,FAST FOOD RESTAURANTS,Children's Disability Service,Head of RSS,
Cambridgeshire County Council,01/04/2022,72.40,TRAINLINE.COM,PASSENGER RAILWAYS,Corporate Parenting,North Child Looked After Team 1,VEHICLE AND PLANT HIRE
Cambridgeshire County Council,01/04/2022,80.50,HM PASSPORT OFFICE,GOVERNMENT SERVICES-NOT ELSEWHERE CLASSIFIED,Corporate Parenting,North Child Looked After Team 1,GRANTS&SUPPORT FOR OTHER SERVICE USERS
Cambridgeshire County Council,01/04/2022,80.50,HM PASSPORT OFFICE,GOVERNMENT SERVICES-NOT ELSEWHERE CLASSIFIED,Corporate Parenting,North Child Looked After Team 1,GRANTS&SUPPORT FOR OTHER SERVICE USERS
Cambridgeshire County Council,01/04/2022,85.50,WESSEX ROYALE HOTEL,"LODGING-HOTELS,MOTELS,RESORTS-NOT CLASSIFIED",GCP,GCP - Smart Cambridge,OTHER TRAVEL EXPENSES
Cambridgeshire County Council,01/04/2022,104.19,THETRAINLINE.COM,PASSENGER RAILWAYS,Corporate Parenting,South Child Looked After Team 2,CAR MILEAGE AND ALLOWANCES - OTHER
Cambridgeshire County Council,01/04/2022,110.00,WWW.CIPFA.ORG.UK,"ORGANIZATIONS, MEMBERSHIP-NOT ELSEWHERE CLASSIFIED",Internal Audit,Audit Division,
Cambridgeshire County Council,01/04/2022,112.50,BSI STANDARDS LTD,MISCELLANEOUS PUBLISHING AND PRINTING,Asset Management,Highways Records,BOOKS AND MULTIMEDIA SUPPLIES
Cambridgeshire County Council,01/04/2022,177.95,ARGOS LTD,DISCOUNT STORES,Targeted Support Service - South,EH South Cambridgeshire District,OTHER SERVICE USER SUPPORT
Cambridgeshire County Council,01/04/2022,246.21,AMZNMKTPLACE,MISCELLANEOUS AND SPECIALTY RETAIL STORES,Children's Disability Service,CamPlay Holiday Clubs,
Cambridgeshire County Council,01/04/2022,358.80,WWW.OFFICEFURNITUREONL,OFFICE AND COMMERCIAL FURNITURE,Children's Disability Service,Head of RSS,
Cambridgeshire County Council,01/04/2022,469.20,HOTEL AT BOOKING.COM,"LODGING-HOTELS,MOTELS,RESORTS-NOT CLASSIFIED","Children, Education and Families Directorate","Children, Education and Families Directorate",GRANTS&SUPPORT FOR OTHER SERVICE USERS
Cambridgeshire County Council,01/04/2022,853.90,ARGOS LTD,DISCOUNT STORES,Children's Disability Service,CamPlay Holiday Clubs,
Cambridgeshire County Council,04/04/2022,1.29,ROYAL MAIL GROUP LTD,POSTAL SERVICES-GOVERNMENT ONLY,Corporate Parenting,South Child Looked After Team 2,POSTAGE & CARRIAGE
Cambridgeshire County Council,04/04/2022,3.40,GREGGS PLC,"EATING PLACES, RESTAURANTS",Changing Futures & Projects,Counting Every Adult,OTHER SERVICE USER SUPPORT
Cambridgeshire County Council,04/04/2022,3.42,ASDA STORES 4857,"GROCERY STORES, SUPERMARKETS",Outdoor Education (includes Grafham Water),Burwell House Residential Centre,CATERING PROVISIONS
Cambridgeshire County Council,04/04/2022,3.58,MCDONALDS,FAST FOOD RESTAURANTS,Youth Offending Service,YOT - High Risk and Deter,
Cambridgeshire County Council,04/04/2022,3.59,AMZNMKTPLACE,MISCELLANEOUS AND SPECIALTY RETAIL STORES,Children's Disability Service,Head of RSS,
Cambridgeshire County Council,04/04/2022,3.62,HITCHINGBROOKE,"GROCERY STORES, SUPERMARKETS",Changing Futures & Projects,Counting Every Adult,OTHER SERVICE USER SUPPORT
Cambridgeshire County Council,04/04/2022,4.50,GREGGS PLC,"EATING PLACES, RESTAURANTS",Changing Futures & Projects,Housing First,OTHER SERVICE USER SUPPORT
Cambridgeshire County Council,04/04/2022,4.55,AMAZON.CO.UK 299MZ0614,DIRECT MARKETING-OTHER DIRECT MARKETERS/NOT ELSEW.,Children's Disability Service,Head of RSS,
Cambridgeshire County Council,04/04/2022,4.74,ROYAL MAIL GROUP LTD,POSTAL SERVICES-GOVERNMENT ONLY,Corporate Parenting,South Child Looked After Team 2,POSTAGE & CARRIAGE
Cambridgeshire County Council,04/04/2022,7.26,TESCO STORES 5657,"GROCERY STORES, SUPERMARKETS",LD - In House Provider Services,No. 20 Alder Close Respite,CATERING PROVISIONS
Cambridgeshire County Council,04/04/2022,7.99,AMAZON PRIME 296BC1VG4,DIRECT MARKETING-CONTINUITY/SUBSCRIPTION MERCHANTS,Virtual School,Virtual School for Care Experienced Children,
Cambridgeshire County Council,04/04/2022,9.90,POST OFFICE COUNTER,POSTAL SERVICES-GOVERNMENT ONLY,Registration & Citizenship Services,Registrars General,POSTAGE & CARRIAGE
Cambridgeshire County Council,04/04/2022,10.11,AWS EMEA,BUSINESS SERVICES-NOT ELSEWHERE CLASSIFIED,ICT Service (Education),ICT Service Systems Development,
Cambridgeshire County Council,04/04/2022,11.00,GEN REGISTER OFFICE,GOVERNMENT SERVICES-NOT ELSEWHERE CLASSIFIED,Corporate Parenting,South Child Looked After Team 2,GRANTS&SUPPORT FOR OTHER SERVICE USERS
Cambridgeshire County Council,04/04/2022,12.50,SAINSBURYS S/MKTS,"GROCERY STORES, SUPERMARKETS",Outdoor Education (includes Grafham Water),Burwell House Residential Centre,EDUCATIONAL MATERIALS
Cambridgeshire County Council,04/04/2022,13.00,HEART OF ENGLAND NHS,"HEALTH PRACTITIONERS, MEDICAL SRVCS-NOT ELSEWHERE",Targeted Support Service - South,EH Child and Family Centre - East Cambs,SPECIALIST EQUIPMENT FOR SERVICE DELIV
Cambridgeshire County Council,04/04/2022,14.75,TESCO STORES 3315,"GROCERY STORES, SUPERMARKETS",LD - In House Provider Services,6 St Lukes Close (Respite),
Cambridgeshire County Council,04/04/2022,14.88,AMZNMKTPLACE AMAZON.CO,MISCELLANEOUS AND SPECIALTY RETAIL STORES,Outdoor Education (includes Grafham Water),Burwell House Residential Centre,EDUCATIONAL MATERIALS
Cambridgeshire County Council,04/04/2022,17.97,AMZNMKTPLACE AMAZON.CO,MISCELLANEOUS AND SPECIALTY RETAIL STORES,Outdoor Education (includes Grafham Water),Burwell House Residential Centre,EDUCATIONAL MATERIALS
Cambridgeshire County Council,04/04/2022,20.00,TIMPSON LTD,MISCELLANEOUS AND SPECIALTY RETAIL STORES,Changing Futures & Projects,Housing First,OTHER SERVICE USER SUPPORT
Cambridgeshire County Council,04/04/2022,21.59,TESCO STORE 2694,"GROCERY STORES, SUPERMARKETS",LD - In House Provider Services,6 St Lukes Close (Respite),
Cambridgeshire County Council,04/04/2022,23.98,AMZNMKTPLACE,MISCELLANEOUS AND SPECIALTY RETAIL STORES,LD - In House Provider Services,40 & 44 Russell Street,FURNITURE
Cambridgeshire County Council,04/04/2022,26.84,CENTRAL CO-OP RETA,"GROCERY STORES, SUPERMARKETS",LD - In House Provider Services,6 St Lukes Close (Respite),
Cambridgeshire County Council,04/04/2022,27.59,AMZNMKTPLACE AMAZON.CO,MISCELLANEOUS AND SPECIALTY RETAIL STORES,LD - In House Provider Services,Horizon,SPECIALIST SUPPLIES AND MATERIALS
Cambridgeshire County Council,04/04/2022,28.00,GEN REGISTER OFFICE,GOVERNMENT SERVICES-NOT ELSEWHERE CLASSIFIED,Family Safeguarding West,Family Safeguarding Hunts and Fenland,BOOKS AND MULTIMEDIA SUPPLIES
Cambridgeshire County Council,04/04/2022,29.99,WWW.SCREWFIX.COM,"BUILDING MATERIALS, LUMBER STORES","Property, Facilities Management and Building Compliance",Shire Hall Area,
Cambridgeshire County Council,04/04/2022,30.00,FACEBK 7ZWKEBPN22,ADVERTISING SERVICES,Fostering & Supervised Contact Services,Fostering Recruitment & Assessment Team,RECRUITMENT ADVERTISING
Cambridgeshire County Council,04/04/2022,30.00,TESCO GIFT CARD,"GROCERY STORES, SUPERMARKETS",Corporate Parenting,South Child Looked After Team 2,SPECIALIST EQUIPMENT FOR SERVICE DELIV
Cambridgeshire County Council,04/04/2022,30.00,CS MORRISONS GIFT CARD,BUSINESS SERVICES-NOT ELSEWHERE CLASSIFIED,Corporate Parenting,South Child Looked After Team 2,ASYLUM SEEKERS
Cambridgeshire County Council,04/04/2022,30.73,GOOGLE ADS5651672097,ADVERTISING SERVICES,Fostering & Supervised Contact Services,Fostering Recruitment & Assessment Team,RECRUITMENT ADVERTISING
Cambridgeshire County Council,04/04/2022,36.01,WWW.PARENTA.COM,PROFESSIONAL SERVICES-NOT ELSEWHERE CLASSIFIED,Early Years Service,Oasis Nursery,
Cambridgeshire County Council,04/04/2022,37.14,INDEED TEL+35312545907,BUSINESS SERVICES-NOT ELSEWHERE CLASSIFIED,Children's Disability Service,Head of RSS,
Cambridgeshire County Council,04/04/2022,38.25,GSUITE_CAMBSALS.CO.UK,BUSINESS SERVICES-NOT ELSEWHERE CLASSIFIED,Cambridgeshire Skills,Cambridgeshire Skills - March Community Centre - Learning,
Cambridgeshire County Council,04/04/2022,40.00,INDEED TEL+35312545907,BUSINESS SERVICES-NOT ELSEWHERE CLASSIFIED,Early Years Service,EY Central Costs,RECRUITMENT ADVERTISING
Cambridgeshire County Council,04/04/2022,50.00,AMAZON.CO.UK 290IG7VX4,DIRECT MARKETING-OTHER DIRECT MARKETERS/NOT ELSEW.,Executive Director AHC,"Executive Director - Adults, Health & Comissioning",
Cambridgeshire County Council,04/04/2022,50.00,AMAZON.CO.UK 290M04V64,DIRECT MARKETING-OTHER DIRECT MARKETERS/NOT ELSEW.,Executive Director AHC,"Executive Director - Adults, Health & Comissioning",
Cambridgeshire County Council,04/04/2022,50.00,AMAZON.CO.UK 290UD5V64,DIRECT MARKETING-OTHER DIRECT MARKETERS/NOT ELSEW.,Executive Director AHC,"Executive Director - Adults, Health & Comissioning",
Cambridgeshire County Council,04/04/2022,50.00,AMAZON.CO.UK 294WE6VU4,DIRECT MARKETING-OTHER DIRECT MARKETERS/NOT ELSEW.,Executive Director AHC,"Executive Director - Adults, Health & Comissioning",
Cambridgeshire County Council,04/04/2022,50.00,AMAZON.CO.UK 293W51V84,DIRECT MARKETING-OTHER DIRECT MARKETERS/NOT ELSEW.,Executive Director AHC,"Executive Director - Adults, Health & Comissioning",
Cambridgeshire County Council,04/04/2022,50.00,AMAZON.CO.UK 294F71VE4,DIRECT MARKETING-OTHER DIRECT MARKETERS/NOT ELSEW.,Executive Director AHC,"Executive Director - Adults, Health & Comissioning",
Cambridgeshire County Council,04/04/2022,50.00,AMAZON.CO.UK 294PL7VX4,DIRECT MARKETING-OTHER DIRECT MARKETERS/NOT ELSEW.,Executive Director AHC,"Executive Director - Adults, Health & Comissioning",
Cambridgeshire County Council,04/04/2022,50.00,AMAZON.CO.UK 295FI7VV4,DIRECT MARKETING-OTHER DIRECT MARKETERS/NOT ELSEW.,Executive Director AHC,"Executive Director - Adults, Health & Comissioning",
Cambridgeshire County Council,04/04/2022,50.00,AMAZON.CO.UK 295II4VA4,DIRECT MARKETING-OTHER DIRECT MARKETERS/NOT ELSEW.,Executive Director AHC,"Executive Director - Adults, Health & Comissioning",
Cambridgeshire County Council,04/04/2022,50.00,AMAZON.CO.UK 295UF0VR4,DIRECT MARKETING-OTHER DIRECT MARKETERS/NOT ELSEW.,Executive Director AHC,"Executive Director - Adults, Health & Comissioning",
Cambridgeshire County Council,04/04/2022,50.00,AMAZON.CO.UK 295U07VD4,DIRECT MARKETING-OTHER DIRECT MARKETERS/NOT ELSEW.,Executive Director AHC,"Executive Director - Adults, Health & Comissioning",
Cambridgeshire County Council,04/04/2022,50.00,AMAZON.CO.UK 2961H0V94,DIRECT MARKETING-OTHER DIRECT MARKETERS/NOT ELSEW.,Executive Director AHC,"Executive Director - Adults, Health & Comissioning",
Cambridgeshire County Council,04/04/2022,50.00,AMAZON.CO.UK 295V51V34,DIRECT MARKETING-OTHER DIRECT MARKETERS/NOT ELSEW.,Executive Director AHC,"Executive Director - Adults, Health & Comissioning",
Cambridgeshire County Council,04/04/2022,50.00,AMAZON.CO.UK 295ZP5VY4,DIRECT MARKETING-OTHER DIRECT MARKETERS/NOT ELSEW.,Executive Director AHC,"Executive Director - Adults, Health & Comissioning",
Cambridgeshire County Council,04/04/2022,50.00,AMAZON.CO.UK 2956S0VX4,DIRECT MARKETING-OTHER DIRECT MARKETERS/NOT ELSEW.,Executive Director AHC,"Executive Director - Adults, Health & Comissioning",
Cambridgeshire County Council,04/04/2022,50.00,AMAZON.CO.UK 296MG2VC4,DIRECT MARKETING-OTHER DIRECT MARKETERS/NOT ELSEW.,Executive Director AHC,"Executive Director - Adults, Health & Comissioning",
Cambridgeshire County Council,04/04/2022,50.00,AMAZON.CO.UK 296N93VS4,DIRECT MARKETING-OTHER DIRECT MARKETERS/NOT ELSEW.,Executive Director AHC,"Executive Director - Adults, Health & Comissioning",
Cambridgeshire County Council,04/04/2022,50.00,AMAZON.CO.UK 297IN4V14,DIRECT MARKETING-OTHER DIRECT MARKETERS/NOT ELSEW.,Executive Director AHC,"Executive Director - Adults, Health & Comissioning",
Cambridgeshire County Council,04/04/2022,50.00,AMAZON.CO.UK 297IP4VO4,DIRECT MARKETING-OTHER DIRECT MARKETERS/NOT ELSEW.,Executive Director AHC,"Executive Director - Adults, Health & Comissioning",
Cambridgeshire County Council,04/04/2022,50.00,AMAZON.CO.UK 297PH7VO4,DIRECT MARKETING-OTHER DIRECT MARKETERS/NOT ELSEW.,Executive Director AHC,"Executive Director - Adults, Health & Comissioning",
Cambridgeshire County Council,04/04/2022,50.00,AMAZON.CO.UK 2926Z1VQ4,DIRECT MARKETING-OTHER DIRECT MARKETERS/NOT ELSEW.,Executive Director AHC,"Executive Director - Adults, Health & Comissioning",
Cambridgeshire County Council,04/04/2022,50.00,AMAZON.CO.UK 290U41VS4,DIRECT MARKETING-OTHER DIRECT MARKETERS/NOT ELSEW.,Executive Director AHC,"Executive Director - Adults, Health & Comissioning",
Cambridgeshire County Council,04/04/2022,50.00,AMAZON.CO.UK 290350VS4,DIRECT MARKETING-OTHER DIRECT MARKETERS/NOT ELSEW.,Executive Director AHC,"Executive Director - Adults, Health & Comissioning",
Cambridgeshire County Council,04/04/2022,50.00,AMAZON.CO.UK 291FI5VL4,DIRECT MARKETING-OTHER DIRECT MARKETERS/NOT ELSEW.,Executive Director AHC,"Executive Director - Adults, Health & Comissioning",
Cambridgeshire County Council,04/04/2022,50.00,AMAZON.CO.UK 291IT6VH4,DIRECT MARKETING-OTHER DIRECT MARKETERS/NOT ELSEW.,Executive Director AHC,"Executive Director - Adults, Health & Comissioning",
Cambridgeshire County Council,04/04/2022,50.00,AMAZON.CO.UK 291MV7VX4,DIRECT MARKETING-OTHER DIRECT MARKETERS/NOT ELSEW.,Executive Director AHC,"Executive Director - Adults, Health & Comissioning",
Cambridgeshire County Council,04/04/2022,50.00,AMAZON.CO.UK 2911A9VK4,DIRECT MARKETING-OTHER DIRECT MARKETERS/NOT ELSEW.,Executive Director AHC,"Executive Director - Adults, Health & Comissioning",
Cambridgeshire County Council,04/04/2022,50.00,AMAZON.CO.UK 2916B8V14,DIRECT MARKETING-OTHER DIRECT MARKETERS/NOT ELSEW.,Executive Director AHC,"Executive Director - Adults, Health & Comissioning",
Cambridgeshire County Council,04/04/2022,50.00,AMAZON.CO.UK 292PJ4VG4,DIRECT MARKETING-OTHER DIRECT MARKETERS/NOT ELSEW.,Executive Director AHC,"Executive Director - Adults, Health & Comissioning",
Cambridgeshire County Council,04/04/2022,50.00,AMAZON.CO.UK 292U95VI4,DIRECT MARKETING-OTHER DIRECT MARKETERS/NOT ELSEW.,Executive Director AHC,"Executive Director - Adults, Health & Comissioning",
Cambridgeshire County Council,04/04/2022,50.00,WWW.VOUCHEREXPRESS.CO.,"GIFT, CARD, NOVELTY AND SOUVENIR SHOPS",Planning and Sustainable Growth,Travel Plan +,GIFTS
Cambridgeshire County Council,04/04/2022,50.00,AMAZON.CO.UK 298IJ7V34,DIRECT MARKETING-OTHER DIRECT MARKETERS/NOT ELSEW.,Executive Director AHC,"Executive Director - Adults, Health & Comissioning",
Cambridgeshire County Council,04/04/2022,50.00,AMAZON.CO.UK 298IV4VZ4,DIRECT MARKETING-OTHER DIRECT MARKETERS/NOT ELSEW.,Executive Director AHC,"Executive Director - Adults, Health & Comissioning",
Cambridgeshire County Council,04/04/2022,50.00,AMAZON.CO.UK 298I48VJ4,DIRECT MARKETING-OTHER DIRECT MARKETERS/NOT ELSEW.,Executive Director AHC,"Executive Director - Adults, Health & Comissioning",
Cambridgeshire County Council,04/04/2022,50.00,AMAZON.CO.UK 298VZ2VY4,DIRECT MARKETING-OTHER DIRECT MARKETERS/NOT ELSEW.,Executive Director AHC,"Executive Director - Adults, Health & Comissioning",
Cambridgeshire County Council,04/04/2022,50.00,AMAZON.CO.UK 298V13VY4,DIRECT MARKETING-OTHER DIRECT MARKETERS/NOT ELSEW.,Executive Director AHC,"Executive Director - Adults, Health & Comissioning",
Cambridgeshire County Council,04/04/2022,50.00,AMAZON.CO.UK 2981M8VH4,DIRECT MARKETING-OTHER DIRECT MARKETERS/NOT ELSEW.,Executive Director AHC,"Executive Director - Adults, Health & Comissioning",
Cambridgeshire County Council,04/04/2022,50.00,AMAZON.CO.UK 297PP0VK4,DIRECT MARKETING-OTHER DIRECT MARKETERS/NOT ELSEW.,Executive Director AHC,"Executive Director - Adults, Health & Comissioning",
Cambridgeshire County Council,04/04/2022,50.00,AMAZON.CO.UK 297TY2V34,DIRECT MARKETING-OTHER DIRECT MARKETERS/NOT ELSEW.,Executive Director AHC,"Executive Director - Adults, Health & Comissioning",
Cambridgeshire County Council,04/04/2022,51.50,ARGOS LTD,DISCOUNT STORES,Family Safeguarding East,Fenland Children's Team 2,
Cambridgeshire County Council,04/04/2022,53.31,AWS EMEA,BUSINESS SERVICES-NOT ELSEWHERE CLASSIFIED,IT & Digital Service,Business & Digital Systems,COMPUTER SOFTWARE - PURCHASE
Cambridgeshire County Council,04/04/2022,60.30,GO OUTDOORS,SPORTING GOODS STORES,Youth Offending Service,YOT - High Risk and Deter,
Cambridgeshire County Council,04/04/2022,65.51,INDEED TEL+35312545907,BUSINESS SERVICES-NOT ELSEWHERE CLASSIFIED,Early Years Service,Early Years Workforce Development,RECRUITMENT ADVERTISING
Cambridgeshire County Council,04/04/2022,68.00,ARGOS LTD,DISCOUNT STORES,Family Safeguarding East,Fenland Children's Team 2,
Cambridgeshire County Council,04/04/2022,70.00,CAM CAB,LIMOUSINES AND TAXICABS,Children's Disability Service,Disability Referral & Access Team,
Cambridgeshire County Council,04/04/2022,70.03,TESCO STORES 5657,"GROCERY STORES, SUPERMARKETS",LD - In House Provider Services,No. 20 Alder Close Respite,CATERING PROVISIONS
Cambridgeshire County Council,04/04/2022,79.96,WWW.SCREWFIX.COM,"BUILDING MATERIALS, LUMBER STORES",Outdoor Education (includes Grafham Water),Burwell House Residential Centre,BUILDING REPAIR AND MAINTENANCE
Cambridgeshire County Council,04/04/2022,100.00,SPORTSDIRECT.COM,MEN'S AND WOMEN'S CLOTHING STORES,Family Safeguarding West,Family Safeguarding Hunts and Fenland,ASYLUM SEEKERS
Cambridgeshire County Council,04/04/2022,121.23,TESCO STORE 2555,"GROCERY STORES, SUPERMARKETS",LD - In House Provider Services,40 & 44 Russell Street,CATERING PROVISIONS
Cambridgeshire County Council,04/04/2022,127.27,AWS EMEA,BUSINESS SERVICES-NOT ELSEWHERE CLASSIFIED,IT & Digital Service,Business & Digital Systems,COMPUTER SOFTWARE - PURCHASE
Cambridgeshire County Council,04/04/2022,129.00,POST OFFICE COUNTER,POSTAL SERVICES-GOVERNMENT ONLY,0-19 Organisation & Planning,Attendance and Behaviour,POSTAGE & CARRIAGE
Cambridgeshire County Council,04/04/2022,154.27,WM MORRISONS STORE PIC,"GROCERY STORES, SUPERMARKETS",Children's Disability Service,Head of RSS,
Cambridgeshire County Council,04/04/2022,207.63,WM MORRISONS STORE PIC,"GROCERY STORES, SUPERMARKETS",Children's Disability Service,Head of RSS,
Cambridgeshire County Council,04/04/2022,211.91,INDEED TEL+35312545907,BUSINESS SERVICES-NOT ELSEWHERE CLASSIFIED,Early Years Service,Oasis Nursery,
Cambridgeshire County Council,04/04/2022,221.00,BARRACUDAS ACTIVITY HO,RECREATIONAL AND SPORTING CAMPS,Targeted Support Service - North,YS - GPC recode,
Cambridgeshire County Council,04/04/2022,251.95,ARGOS LTD,DISCOUNT STORES,Targeted Support Service - North,YS - GPC recode,
Cambridgeshire County Council,04/04/2022,259.03,TRAVELODGE,TRAVELODGE,"Children, Education and Families Directorate","Children, Education and Families Directorate",
Cambridgeshire County Council,04/04/2022,321.60,PROCONFERENCES.COM,"COLLEGES, UNIV, PRO SCHOOLS, JUNIOR COLLEGES",Strategic Assets,Estates,
Cambridgeshire County Council,05/04/2022,-2.20,ASDA GROCERIES ONLINE,"GROCERY STORES, SUPERMARKETS",LD - In House Provider Services,Horizon,SPECIALIST SUPPLIES AND MATERIALS
Cambridgeshire County Council,05/04/2022,0.95,ROYAL MAIL GROUP LTD,POSTAL SERVICES-GOVERNMENT ONLY,Corporate Parenting,South Child Looked After Team 2,POSTAGE & CARRIAGE
Cambridgeshire County Council,05/04/2022,2.50,PETERBOROUGH CITY COUN,AUTOMOBILE PARKING LOTS AND GARAGES,"Communities, Employment & Skills",YS - National Citizen Service,
Cambridgeshire County Council,05/04/2022,6.60,ASDA GROCERIES ONLINE,"GROCERY STORES, SUPERMARKETS",LD - In House Provider Services,Horizon,SPECIALIST SUPPLIES AND MATERIALS
Cambridgeshire County Council,05/04/2022,7.20,ST NEOTS TOWN COUNCIL,GOVERNMENT SERVICES-NOT ELSEWHERE CLASSIFIED,"Communities, Employment & Skills",Participation,
Cambridgeshire County Council,05/04/2022,7.54,FASTHOSTS,COMPUTER NETWORK/INFORMATION SERVICES,ICT Service (Education),ICT Service Systems Development,
Cambridgeshire County Council,05/04/2022,11.00,WILKO RETAIL LIMITED,MISCELLANEOUS GENERAL MERCHANDISE,Targeted Support Service - South,EH Child and Family Centre - East Cambs,
Cambridgeshire County Council,05/04/2022,26.30,TRAINLINE,PASSENGER RAILWAYS,Corporate Parenting,South Child Looked After Team 2,CAR MILEAGE AND ALLOWANCES - OTHER
Cambridgeshire County Council,05/04/2022,49.00,HM PASSPORT OFFICE,GOVERNMENT SERVICES-NOT ELSEWHERE CLASSIFIED,Corporate Parenting,South Child Looked After Team 2,BOOKS AND MULTIMEDIA SUPPLIES
Cambridgeshire County Council,05/04/2022,50.00,ASDA STORES LTD,"GROCERY STORES, SUPERMARKETS",Domestic Abuse and Sexual Violence Service,Domestic Violence Unit,
Cambridgeshire County Council,05/04/2022,55.98,EASYJET,EASYJET,Adoption,Regional Adoption Agency,OTHER TRAVEL EXPENSES
Cambridgeshire County Council,05/04/2022,56.24,TESCO STORES 5657,"GROCERY STORES, SUPERMARKETS",LD - In House Provider Services,No. 20 Alder Close Respite,
Cambridgeshire County Council,05/04/2022,112.10,ASDA GROCERIES ONLINE,"GROCERY STORES, SUPERMARKETS",LD - In House Provider Services,Horizon,CATERING PROVISIONS
Cambridgeshire County Council,05/04/2022,171.51,W M MORRISONS.COM,"GROCERY STORES, SUPERMARKETS",Children's Disability Service,Head of RSS,
Cambridgeshire County Council,05/04/2022,253.87,AMZNMKTPLACE,MISCELLANEOUS AND SPECIALTY RETAIL STORES,Children's Disability Service,CamPlay Holiday Clubs,
Cambridgeshire County Council,05/04/2022,280.00,ATG TICKETS,"THEATRICAL PRODUCERS(EXCL MOTION PIX),TICKET AGNCY",Children's Disability Service,CamPlay Holiday Clubs,
Cambridgeshire County Council,06/04/2022,3.20,CO-OP GROUP 171471,"GROCERY STORES, SUPERMARKETS",Outdoor Education (includes Grafham Water),Burwell House Residential Centre,CATERING PROVISIONS
Cambridgeshire County Council,06/04/2022,4.50,ZTL HASSAN MERIAM,LIMOUSINES AND TAXICABS,Asst Director - Project Delivery,Project Delivery - holding account,OTHER TRAVEL EXPENSES
Cambridgeshire County Council,06/04/2022,4.99,THANKBOX,DIGITAL GOODS AUDIOVISUAL MEDIA,Early Years Service,EY Central Costs,GIFTS
Cambridgeshire County Council,06/04/2022,5.30,STGCOACH/CTYLINK,BUS LINES,Asst Director - Project Delivery,Project Delivery - holding account,PUBLIC TRANSPORT FARES
Cambridgeshire County Council,06/04/2022,5.47,HMS HOST INTERNATIONAL,FAST FOOD RESTAURANTS,Asst Director - Project Delivery,Project Delivery - holding account,OTHER TRAVEL EXPENSES
Cambridgeshire County Council,06/04/2022,7.99,AMAZON PRIME 291HT87Q4,DIRECT MARKETING-CONTINUITY/SUBSCRIPTION MERCHANTS,Children's Disability Service,Head of RSS,
Cambridgeshire County Council,06/04/2022,9.29,NS SCHIPHOL,PASSENGER RAILWAYS,Asst Director - Project Delivery,Project Delivery - holding account,PUBLIC TRANSPORT FARES
Cambridgeshire County Council,06/04/2022,9.75,SAINSBURYS,"GROCERY STORES, SUPERMARKETS",LD - In House Provider Services,6 St Lukes Close (Respite),
Cambridgeshire County Council,06/04/2022,13.84,AMAZON.CO.UK 298NL2724,DIRECT MARKETING-OTHER DIRECT MARKETERS/NOT ELSEW.,LD - In House Provider Services,"Larkfield, Ely",EQUIPMENT AND TOOLS
Cambridgeshire County Council,06/04/2022,14.48,AMZNMKTPLACE,MISCELLANEOUS AND SPECIALTY RETAIL STORES,Outdoor Education (includes Grafham Water),Burwell House Residential Centre,BUILDING REPAIR AND MAINTENANCE
Cambridgeshire County Council,06/04/2022,14.55,POST OFFICE COUNTER,POSTAL SERVICES-GOVERNMENT ONLY,Coroners,Coroners General,POSTAGE & CARRIAGE
Cambridgeshire County Council,06/04/2022,15.00,WEST NORTHAMPTONSHIRE,GOVERNMENT SERVICES-NOT ELSEWHERE CLASSIFIED,0-19 Organisation & Planning,Attendance and Behaviour,PROFESSIONAL FEES AND HIRED SERVICES
Cambridgeshire County Council,06/04/2022,18.20,SAINSBURY'S S/MKT,"GROCERY STORES, SUPERMARKETS",LD - In House Provider Services,IHPS - Tennyson Lodge,CATERING PROVISIONS
Cambridgeshire County Council,06/04/2022,18.24,B&M 641 - NEWMARKET,MISCELLANEOUS GENERAL MERCHANDISE,Outdoor Education (includes Grafham Water),Burwell House Residential Centre,EDUCATIONAL MATERIALS
Cambridgeshire County Council,06/04/2022,23.94,AMZNMKTPLACE,MISCELLANEOUS AND SPECIALTY RETAIL STORES,Children's Disability Service,Head of RSS,
Cambridgeshire County Council,06/04/2022,35.75,THE ROYAL HOTEL,"BAR,LOUNGE,DISCO,NIGHTCLUB,TAVERN-ALCOHOLIC DRINKS",Children's Disability Service,Disability Referral & Access Team,
Cambridgeshire County Council,06/04/2022,37.23,ASDA STORES,"GROCERY STORES, SUPERMARKETS",School Improvement Service,Adventure Playground,CATERING PROVISIONS
Cambridgeshire County Council,06/04/2022,40.53,WWW.BUZZCATERINGSUPPLI,"COMMERCIAL EQUIPMENT, NOT ELSEWHERE CLASSIFIED",Outdoor Education (includes Grafham Water),Burwell House Residential Centre,BUILDING REPAIR AND MAINTENANCE
Cambridgeshire County Council,06/04/2022,41.00,CAMBRIDGE CITY TAXIS L,LIMOUSINES AND TAXICABS,Children's Disability Service,Disability Referral & Access Team,
Cambridgeshire County Council,06/04/2022,44.00,BUYATAB - ALDI,"GIFT, CARD, NOVELTY AND SOUVENIR SHOPS",Corporate Parenting,North Child Looked After Team 1,LIVING SUPPORT GRANTS
Cambridgeshire County Council,06/04/2022,47.98,EUROFLORIST UK LTD,FLORISTS,Fostering & Supervised Contact Services,Fostering Support and Supervision,SUPPORT AND GRANTS TO FOSTER CARERS
Cambridgeshire County Council,06/04/2022,50.00,GOOGLE ADS5651672097,ADVERTISING SERVICES,Fostering & Supervised Contact Services,Fostering Recruitment & Assessment Team,RECRUITMENT ADVERTISING
Cambridgeshire County Council,06/04/2022,65.00,WWW.CGPBOOKS.CO.UK,MISCELLANEOUS AND SPECIALTY RETAIL STORES,Cambridgeshire Skills,Cambridgeshire Skills - March Community Centre - Staff,BOOKS AND MULTIMEDIA SUPPLIES
Cambridgeshire County Council,06/04/2022,67.99,AMZNMKTPLACE,MISCELLANEOUS AND SPECIALTY RETAIL STORES,Children's Disability Service,Head of RSS,
Cambridgeshire County Council,06/04/2022,119.93,DOMINO S PIZZA,"EATING PLACES, RESTAURANTS","Communities, Employment & Skills",Participation,
Cambridgeshire County Council,06/04/2022,150.00,LEISURE & SPORT FOR LI,"BAR,LOUNGE,DISCO,NIGHTCLUB,TAVERN-ALCOHOLIC DRINKS",Targeted Support Service - South,EH Child and Family Centre - East Cambs,CASUAL HIRE OF FACILITIES
Cambridgeshire County Council,06/04/2022,150.00,LEISURE & SPORT FOR LI,"BAR,LOUNGE,DISCO,NIGHTCLUB,TAVERN-ALCOHOLIC DRINKS",Targeted Support Service - South,EH Child and Family Centre - East Cambs,CASUAL HIRE OF FACILITIES
Cambridgeshire County Council,06/04/2022,167.28,WM MORRISONS STORE PIC,"GROCERY STORES, SUPERMARKETS",Children's Disability Service,Head of RSS,
Cambridgeshire County Council,06/04/2022,199.88,WWW.FORUMBUSINESSTRAIN,SCHOOLS & EDUCATIONAL SVC-NOT ELSEWHERE CLASSIFIED,0-19 Organisation & Planning,Attendance and Behaviour,STAFF TRAINING & DEVELOPMENT
Cambridgeshire County Council,06/04/2022,216.00,VALUE PRODUCTS LTD,MISCELLANEOUS AND SPECIALTY RETAIL STORES,"Property, Facilities Management and Building Compliance",Shire Hall Area,BUILDING REPAIR AND MAINTENANCE
Cambridgeshire County Council,06/04/2022,229.99,AMZNMKTPLACE,MISCELLANEOUS AND SPECIALTY RETAIL STORES,Corporate Parenting,South Child Looked After Team 2,LEAVING CARE GRANTS
Cambridgeshire County Council,06/04/2022,254.25,HIGHSTREETVOUCHERS,"ASSOCIATIONS-CIVIC, SOCIAL, AND FRATERNAL",Corporate Parenting,South Child Looked After Team 2,LEAVING CARE GRANTS
Cambridgeshire County Council,06/04/2022,285.01,MS  MOTHERGOOSEHOTEL,"LODGING-HOTELS,MOTELS,RESORTS-NOT CLASSIFIED",Asst Director - Project Delivery,Project Delivery - holding account,OTHER TRAVEL EXPENSES
Cambridgeshire County Council,06/04/2022,400.00,GO OUTDOORS RETAIL LIM,"SPORTS APPAREL, RIDING APPAREL STORES",Early Years Service,Early Years Workforce Development,EDUCATIONAL MATERIALS
Cambridgeshire County Council,07/04/2022,0.99,AMAZON PRIME 291B83IW4,DIRECT MARKETING-CONTINUITY/SUBSCRIPTION MERCHANTS,Safeguarding and Quality Assurance,Childrens Participation,SPECIALIST EQUIPMENT FOR SERVICE DELIV
Cambridgeshire County Council,07/04/2022,1.50,ASDA GROCERIES ONLINE,"GROCERY STORES, SUPERMARKETS",Targeted Support Service - North,EH Child and Family Centre - Wisbech,EDUCATIONAL MATERIALS
Cambridgeshire County Council,07/04/2022,2.07,APPLE.COM/BILL,RECORD SHOPS,ICT Service (Education),ICT Service Systems Development,
Cambridgeshire County Council,07/04/2022,2.89,ASDA GROCERIES ONLINE,"GROCERY STORES, SUPERMARKETS",Targeted Support Service - North,EH Child and Family Centre - Wisbech,EDUCATIONAL MATERIALS
Cambridgeshire County Council,07/04/2022,3.20,POUNDLAND LTD 1532,DISCOUNT STORES,Changing Futures & Projects,Counting Every Adult,OTHER SERVICE USER SUPPORT
Cambridgeshire County Council,07/04/2022,4.00,POUNDLAND 1456,DISCOUNT STORES,Outdoor Education (includes Grafham Water),Burwell House Residential Centre,EDUCATIONAL MATERIALS
Cambridgeshire County Council,07/04/2022,4.03,JUSTPARK,AUTOMOBILE PARKING LOTS AND GARAGES,Changing Futures & Projects,Housing First,OTHER SERVICE USER SUPPORT
Cambridgeshire County Council,07/04/2022,4.99,THANKBOX,DIGITAL GOODS AUDIOVISUAL MEDIA,Early Years Service,Early Years Workforce Development,GENERAL OFFICE EXPENSES & STATIONERY
Cambridgeshire County Council,07/04/2022,6.00,ASDA GROCERIES ONLINE,"GROCERY STORES, SUPERMARKETS",Targeted Support Service - North,EH Child and Family Centre - Wisbech,EDUCATIONAL MATERIALS
Cambridgeshire County Council,07/04/2022,6.04,DAENS WINEBAR BV,"EATING PLACES, RESTAURANTS",Asst Director - Project Delivery,Project Delivery - holding account,OTHER TRAVEL EXPENSES
Cambridgeshire County Council,07/04/2022,7.00,B&M 594 - PETERBOROUGH,MISCELLANEOUS GENERAL MERCHANDISE,Changing Futures & Projects,Counting Every Adult,OTHER SERVICE USER SUPPORT
Cambridgeshire County Council,07/04/2022,7.99,DISNEY PLUS,"CABLE, SATELLITE, OTHER PAY TELEVISION, RADIO SVCS",Children's Disability Service,Head of RSS,SUBSCRIPTIONS
Cambridgeshire County Council,07/04/2022,8.17,MCDONALDS,"EATING PLACES, RESTAURANTS",Changing Futures & Projects,Housing First,OTHER SERVICE USER SUPPORT
Cambridgeshire County Council,07/04/2022,9.74,AMAZON.CO.UK 296IN5RW4,DIRECT MARKETING-OTHER DIRECT MARKETERS/NOT ELSEW.,Safeguarding and Quality Assurance,Childrens Participation,SPECIALIST EQUIPMENT FOR SERVICE DELIV
Cambridgeshire County Council,07/04/2022,10.60,TESCO STORES 2228,"GROCERY STORES, SUPERMARKETS",Children's Disability Service,Head of RSS,
Cambridgeshire County Council,07/04/2022,12.24,AMZNMKTPLACE,MISCELLANEOUS AND SPECIALTY RETAIL STORES,LD - In House Provider Services,Horizon,SPECIALIST SUPPLIES AND MATERIALS
Cambridgeshire County Council,07/04/2022,13.35,AMAZON.CO.UK 296041IU4,DIRECT MARKETING-OTHER DIRECT MARKETERS/NOT ELSEW.,Children's Disability Service,Head of RSS,
Cambridgeshire County Council,07/04/2022,13.99,NETFLIX.COM,"CABLE, SATELLITE, OTHER PAY TELEVISION, RADIO SVCS",Children's Disability Service,Head of RSS,
Cambridgeshire County Council,07/04/2022,14.99,AMZNMKTPLACE AMAZON.CO,MISCELLANEOUS AND SPECIALTY RETAIL STORES,LD - In House Provider Services,"Larkfield, Ely",EQUIPMENT AND TOOLS
Cambridgeshire County Council,07/04/2022,24.00,HIGHSPEEDTRAINING.CO.U,"SCHOOLS, BUSINESS AND SECRETARIAL",Early Years Service,Oasis Nursery,
Cambridgeshire County Council,07/04/2022,27.45,RYMAN 1076,"OFFICE, SCHOOL SUPPLY, AND STATIONERY STORES",Changing Futures & Projects,Counting Every Adult,
Cambridgeshire County Council,07/04/2022,38.80,ALDI STORES LTD,"GROCERY STORES, SUPERMARKETS",Outdoor Education (includes Grafham Water),Burwell House Residential Centre,CATERING PROVISIONS
Cambridgeshire County Council,07/04/2022,54.00,GOMPELS HEALTHCARE,WHOLESALE CLUBS,Outdoor Education (includes Grafham Water),Grafham Water Centre,STAFF HEALTH & WELFARE COSTS
Cambridgeshire County Council,07/04/2022,60.00,FACEBK  5ZEBLCKUC2,ADVERTISING SERVICES,Fostering & Supervised Contact Services,Fostering Recruitment & Assessment Team,RECRUITMENT ADVERTISING
Cambridgeshire County Council,07/04/2022,64.64,ASHGROVE TRADING,"OFFICE, SCHOOL SUPPLY, AND STATIONERY STORES",Climate and Energy Services,Commercial Activities,
Cambridgeshire County Council,07/04/2022,66.81,ASDA GROCERIES ONLINE,"GROCERY STORES, SUPERMARKETS",Targeted Support Service - North,EH Child and Family Centre - Wisbech,EDUCATIONAL MATERIALS
Cambridgeshire County Council,07/04/2022,70.00,CAM CAB,LIMOUSINES AND TAXICABS,Children's Disability Service,Disability Referral & Access Team,
Cambridgeshire County Council,07/04/2022,70.00,HOWARD LEAGUE,"ORGANIZATIONS, CHARITABLE AND SOCIAL SERVICES",Youth Offending Service,YOT Project,SUBSCRIPTIONS
Cambridgeshire County Council,07/04/2022,80.00,SUMUP   HOT POTS,CATERERS,Cambridgeshire Skills,Cambridgeshire Skills - March Community Centre - Staff,CATERING PROVISIONS
Cambridgeshire County Council,07/04/2022,87.70,GREENHAM TRADING LTD,INDUSTRIAL SUPPLIES NOT ELSEWHERE CLASSIFIED,Park & Ride,Park and Ride Admin,PROTECTIVE CLOTHING
Cambridgeshire County Council,07/04/2022,100.00,HIGHSTREETVOUCHERS,"ASSOCIATIONS-CIVIC, SOCIAL, AND FRATERNAL",Corporate Parenting,North Child Looked After Team 1,LEAVING CARE GRANTS
Cambridgeshire County Council,07/04/2022,118.76,THETRAINLINE.COM,PASSENGER RAILWAYS,Safeguarding and Quality Assurance,Safeguarding and Quality Assurance,CAR MILEAGE AND ALLOWANCES - STAFF
Cambridgeshire County Council,07/04/2022,136.82,ALMOND YARD,"MISC FOOD STORE-CONVENIENCE,MRKT,SPLTY,VENDNG MACS",Early Years Service,Oasis Nursery,
Cambridgeshire County Council,07/04/2022,150.00,ENKAY FLOORING,FLOOR COVERING STORES,Targeted Support Service - South,EH East Cambridgeshire District,OTHER FUNDING CONTRIBUTIONS
Cambridgeshire County Council,07/04/2022,190.95,ARGOS LTD,DISCOUNT STORES,Targeted Support Service - North,YS - GPC recode,PROFESSIONAL FEES AND HIRED SERVICES
Cambridgeshire County Council,07/04/2022,222.70,DNH GO DADDY EUROPE GB,COMPUTER NETWORK/INFORMATION SERVICES,Planning and Sustainable Growth,Travel Plan +,COMP SOFTWARE-ANNUAL LICENCE AGREEMENT
Cambridgeshire County Council,07/04/2022,247.47,GOMPELS HEALTHCARE,WHOLESALE CLUBS,Early Years Service,Oasis Nursery,
Cambridgeshire County Council,07/04/2022,254.25,HIGHSTREETVOUCHERS,"ASSOCIATIONS-CIVIC, SOCIAL, AND FRATERNAL",Corporate Parenting,North Care Leaving Team 2,LEAVING CARE GRANTS
Cambridgeshire County Council,07/04/2022,305.00,ARGOS LTD,DISCOUNT STORES,Targeted Support Service - South,EH East Cambridgeshire District,PROFESSIONAL FEES AND HIRED SERVICES
Cambridgeshire County Council,07/04/2022,449.99,CURRYS ONLINE,ELECTRONIC SALES,Early Years Service,Oasis Nursery,
Cambridgeshire County Council,08/04/2022,-194.90,AMZNMKTPLACE,MISCELLANEOUS AND SPECIALTY RETAIL STORES,Children's Disability Service,CamPlay Holiday Clubs,
Cambridgeshire County Council,08/04/2022,2.00,SAINSBURYS S/MKTS,"GROCERY STORES, SUPERMARKETS",Changing Futures & Projects,Housing First,OTHER SERVICE USER SUPPORT
Cambridgeshire County Council,08/04/2022,3.01,HMS HOST INTERNATIONAL,FAST FOOD RESTAURANTS,Asst Director - Project Delivery,Project Delivery - holding account,OTHER TRAVEL EXPENSES
Cambridgeshire County Council,08/04/2022,3.05,GREGGS PLC,"EATING PLACES, RESTAURANTS",Changing Futures & Projects,Counting Every Adult,OTHER SERVICE USER SUPPORT
Cambridgeshire County Council,08/04/2022,3.50,CO-OP GROUP 171471,"GROCERY STORES, SUPERMARKETS",Outdoor Education (includes Grafham Water),Burwell House Residential Centre,CATERING PROVISIONS
Cambridgeshire County Council,08/04/2022,3.91,KIOSK 9 TIJD,FAST FOOD RESTAURANTS,Asst Director - Project Delivery,Project Delivery - holding account,OTHER TRAVEL EXPENSES
Cambridgeshire County Council,08/04/2022,4.00,TESCO STORE 2555,"GROCERY STORES, SUPERMARKETS",Changing Futures & Projects,Housing First,
Cambridgeshire County Council,08/04/2022,4.35,TESCO STORES 6111,"GROCERY STORES, SUPERMARKETS",Changing Futures & Projects,Housing First,OTHER SERVICE USER SUPPORT
Cambridgeshire County Council,08/04/2022,4.99,THANKBOX,DIGITAL GOODS AUDIOVISUAL MEDIA,Early Years Service,EY Central Costs,GIFTS
Cambridgeshire County Council,08/04/2022,5.09,FACEBK  ZANJSCPUC2,ADVERTISING SERVICES,Fostering & Supervised Contact Services,Fostering Recruitment & Assessment Team,RECRUITMENT ADVERTISING
Cambridgeshire County Council,08/04/2022,7.78,HMS HOST INTERNATIONAL,FAST FOOD RESTAURANTS,Asst Director - Project Delivery,Project Delivery - holding account,OTHER TRAVEL EXPENSES
Cambridgeshire County Council,08/04/2022,8.90,AMZNMKTPLACE AMAZON.CO,MISCELLANEOUS AND SPECIALTY RETAIL STORES,Outdoor Education (includes Grafham Water),Grafham Water Centre,GENERAL OFFICE EXPENSES & STATIONERY
Cambridgeshire County Council,08/04/2022,9.20,NS UTRECHT CENTRAAL,PASSENGER RAILWAYS,Asst Director - Project Delivery,Project Delivery - holding account,PUBLIC TRANSPORT FARES
Cambridgeshire County Council,08/04/2022,10.00,TL&GN RAILWAY WEB,PASSENGER RAILWAYS,Corporate Parenting,South Child Looked After Team 2,CAR MILEAGE AND ALLOWANCES - OTHER
Cambridgeshire County Council,08/04/2022,11.30,POST OFFICE COUNTER,POSTAL SERVICES-GOVERNMENT ONLY,Coroners,Coroners General,POSTAGE & CARRIAGE
Cambridgeshire County Council,08/04/2022,12.74,AMAZON.CO.UK 2E6G59CO4,DIRECT MARKETING-OTHER DIRECT MARKETERS/NOT ELSEW.,Performance & Strategic Development,Adults Central Business Support,GENERAL OFFICE EXPENSES & STATIONERY
Cambridgeshire County Council,08/04/2022,12.99,ARGOS PETERBOROUGH,DISCOUNT STORES,Changing Futures & Projects,Housing First,OTHER SERVICE USER SUPPORT
Cambridgeshire County Council,08/04/2022,13.96,SUMUP   Z TAXI,LIMOUSINES AND TAXICABS,Asst Director - Project Delivery,Project Delivery - holding account,OTHER TRAVEL EXPENSES
Cambridgeshire County Council,08/04/2022,14.84,AMZNMKTPLACE AMAZON.CO,MISCELLANEOUS AND SPECIALTY RETAIL STORES,Children's Disability Service,DCSWT Cambridge,
Cambridgeshire County Council,08/04/2022,15.00,WEST NORTHAMPTONSHIRE,GOVERNMENT SERVICES-NOT ELSEWHERE CLASSIFIED,0-19 Organisation & Planning,Attendance and Behaviour,PROFESSIONAL FEES AND HIRED SERVICES
Cambridgeshire County Council,08/04/2022,15.00,WEST NORTHAMPTONSHIRE,GOVERNMENT SERVICES-NOT ELSEWHERE CLASSIFIED,0-19 Organisation & Planning,Attendance and Behaviour,PROFESSIONAL FEES AND HIRED SERVICES
Cambridgeshire County Council,08/04/2022,15.00,WEST NORTHAMPTONSHIRE,GOVERNMENT SERVICES-NOT ELSEWHERE CLASSIFIED,0-19 Organisation & Planning,Attendance and Behaviour,PROFESSIONAL FEES AND HIRED SERVICES
Cambridgeshire County Council,08/04/2022,15.00,WEST NORTHAMPTONSHIRE,GOVERNMENT SERVICES-NOT ELSEWHERE CLASSIFIED,0-19 Organisation & Planning,Attendance and Behaviour,PROFESSIONAL FEES AND HIRED SERVICES
Cambridgeshire County Council,08/04/2022,15.00,WEST NORTHAMPTONSHIRE,GOVERNMENT SERVICES-NOT ELSEWHERE CLASSIFIED,0-19 Organisation & Planning,Attendance and Behaviour,PROFESSIONAL FEES AND HIRED SERVICES
Cambridgeshire County Council,08/04/2022,15.00,WEST NORTHAMPTONSHIRE,GOVERNMENT SERVICES-NOT ELSEWHERE CLASSIFIED,0-19 Organisation & Planning,Attendance and Behaviour,PROFESSIONAL FEES AND HIRED SERVICES
Cambridgeshire County Council,08/04/2022,15.00,WEST NORTHAMPTONSHIRE,GOVERNMENT SERVICES-NOT ELSEWHERE CLASSIFIED,0-19 Organisation & Planning,Attendance and Behaviour,PROFESSIONAL FEES AND HIRED SERVICES
Cambridgeshire County Council,08/04/2022,15.00,WEST NORTHAMPTONSHIRE,GOVERNMENT SERVICES-NOT ELSEWHERE CLASSIFIED,0-19 Organisation & Planning,Attendance and Behaviour,PROFESSIONAL FEES AND HIRED SERVICES
Cambridgeshire County Council,08/04/2022,15.00,WEST NORTHAMPTONSHIRE,GOVERNMENT SERVICES-NOT ELSEWHERE CLASSIFIED,0-19 Organisation & Planning,Attendance and Behaviour,PROFESSIONAL FEES AND HIRED SERVICES
Cambridgeshire County Council,08/04/2022,15.00,WEST NORTHAMPTONSHIRE,GOVERNMENT SERVICES-NOT ELSEWHERE CLASSIFIED,0-19 Organisation & Planning,Attendance and Behaviour,PROFESSIONAL FEES AND HIRED SERVICES
Cambridgeshire County Council,08/04/2022,15.00,WEST NORTHAMPTONSHIRE,GOVERNMENT SERVICES-NOT ELSEWHERE CLASSIFIED,0-19 Organisation & Planning,Attendance and Behaviour,PROFESSIONAL FEES AND HIRED SERVICES
Cambridgeshire County Council,08/04/2022,15.00,WEST NORTHAMPTONSHIRE,GOVERNMENT SERVICES-NOT ELSEWHERE CLASSIFIED,0-19 Organisation & Planning,Attendance and Behaviour,PROFESSIONAL FEES AND HIRED SERVICES
Cambridgeshire County Council,08/04/2022,18.00,AMAZON.CO.UK 2E5ZH7OQ4,DIRECT MARKETING-OTHER DIRECT MARKETERS/NOT ELSEW.,"Property, Facilities Management and Building Compliance",Shire Hall Area,BUILDING REPAIR AND MAINTENANCE
Cambridgeshire County Council,08/04/2022,19.98,EBAY O 09-08481-59259,DEPARTMENT STORES,Changing Futures & Projects,Housing First,OTHER SERVICE USER SUPPORT
Cambridgeshire County Council,08/04/2022,23.72,AMZNMKTPLACE,MISCELLANEOUS AND SPECIALTY RETAIL STORES,Targeted Support Service - North,EH Child and Family Centre - Wisbech,EDUCATIONAL MATERIALS
Cambridgeshire County Council,08/04/2022,26.89,AMZNMKTPLACE AMAZON.CO,MISCELLANEOUS AND SPECIALTY RETAIL STORES,Children's Disability Service,DCSWT Cambridge,
Cambridgeshire County Council,08/04/2022,27.90,WWW.TPEXPRESS.CO.UK,PASSENGER RAILWAYS,Corporate Parenting,South Child Looked After Team 2,CAR MILEAGE AND ALLOWANCES - OTHER
Cambridgeshire County Council,08/04/2022,27.94,AMZNMKTPLACE,MISCELLANEOUS AND SPECIALTY RETAIL STORES,Children's Disability Service,Head of RSS,
Cambridgeshire County Council,08/04/2022,30.80,AMAZON.CO.UK 2E0ZF7CC4,DIRECT MARKETING-OTHER DIRECT MARKETERS/NOT ELSEW.,Safeguarding and Quality Assurance,Childrens Participation,SPECIALIST EQUIPMENT FOR SERVICE DELIV
Cambridgeshire County Council,08/04/2022,33.10,ASDA GEORGE COM LEEDS,"GROCERY STORES, SUPERMARKETS",Children's Disability Service,Head of RSS,
Cambridgeshire County Council,08/04/2022,36.07,THETRAINLINE.COM,PASSENGER RAILWAYS,Performance & Strategic Development,Adults Central Business Support,
Cambridgeshire County Council,08/04/2022,38.86,AMZNMKTPLACE,MISCELLANEOUS AND SPECIALTY RETAIL STORES,Early Years Service,Oasis Nursery,
Cambridgeshire County Council,08/04/2022,65.17,ESSO MAGPIE SERVICE ST,SERVICE STATIONS WITH OR WITHOUT ANCILLARY SERVICE,Park & Ride,Park and Ride Admin,VEHICLE FUEL
Cambridgeshire County Council,08/04/2022,68.00,TESCO STORE 2694,"GROCERY STORES, SUPERMARKETS",LD - In House Provider Services,6 St Lukes Close (Respite),SPECIALIST SUPPLIES AND MATERIALS
Cambridgeshire County Council,08/04/2022,111.77,ASDA GROCERIES ONLINE,"GROCERY STORES, SUPERMARKETS",Early Years Service,Oasis Nursery,
Cambridgeshire County Council,08/04/2022,112.73,AMZNMKTPLACE,MISCELLANEOUS AND SPECIALTY RETAIL STORES,Children's Disability Service,Head of RSS,
Cambridgeshire County Council,08/04/2022,145.00,POST OFFICE COUNTER,POSTAL SERVICES-GOVERNMENT ONLY,0-19 Organisation & Planning,Attendance and Behaviour,POSTAGE & CARRIAGE
Cambridgeshire County Council,08/04/2022,153.81,EBAY O 08-08482-93409,DEPARTMENT STORES,SEND Specialist Services,Head of SEND Services (0-25),EDUCATIONAL EQUIPMENT
Cambridgeshire County Council,08/04/2022,159.00,TVLICENSING.CO.UK,"CONSULTING, MANAGEMENT, AND PUBLIC RELATIONS SVCS",Outdoor Education (includes Grafham Water),Grafham Water Centre,TV LICENCES
Cambridgeshire County Council,08/04/2022,163.20,HOTEL IBIS,HOTEL IBIS,Traffic Management,Traffic,
Cambridgeshire County Council,08/04/2022,176.27,TESCO STORES 2228,"GROCERY STORES, SUPERMARKETS",Children's Disability Service,Head of RSS,
Cambridgeshire County Council,08/04/2022,501.43,INDEED TEL+35312545907,BUSINESS SERVICES-NOT ELSEWHERE CLASSIFIED,Human Resources,Social Work Recruit & Retain,RECRUITMENT ADVERTISING
Cambridgeshire County Council,11/04/2022,-400.00,GO OUTDOORS RETAIL LIM,"SPORTS APPAREL, RIDING APPAREL STORES",Early Years Service,Early Years Workforce Development,EDUCATIONAL MATERIALS
Cambridgeshire County Council,11/04/2022,-296.53,AMZNMKTPLACE AMAZON.CO,MISCELLANEOUS AND SPECIALTY RETAIL STORES,Targeted Support Service - North,EH Wisbech District,
Cambridgeshire County Council,11/04/2022,-26.86,AMAZON PRIME,DIRECT MARKETING-CONTINUITY/SUBSCRIPTION MERCHANTS,School Improvement Service,"Education, Health, Safety and Wellbeing - Outdoor Education",SUBSCRIPTIONS
Cambridgeshire County Council,11/04/2022,-25.00,GEN REGISTER OFFICE,GOVERNMENT SERVICES-NOT ELSEWHERE CLASSIFIED,Family Safeguarding West,Family Safeguarding Hunts and Fenland,BOOKS AND MULTIMEDIA SUPPLIES
Cambridgeshire County Council,11/04/2022,-7.50,GEN REGISTER OFFICE,GOVERNMENT SERVICES-NOT ELSEWHERE CLASSIFIED,Family Safeguarding West,Family Safeguarding Hunts and Fenland,BOOKS AND MULTIMEDIA SUPPLIES
Cambridgeshire County Council,11/04/2022,0.91,SAINSBURYS S/MKTS,"GROCERY STORES, SUPERMARKETS",LD - In House Provider Services,6 St Lukes Close (Respite),SPECIALIST SUPPLIES AND MATERIALS
Cambridgeshire County Council,11/04/2022,1.95,AMZNMKTPLACE AMAZON.CO,MISCELLANEOUS AND SPECIALTY RETAIL STORES,Outdoor Education (includes Grafham Water),Grafham Water Centre,EDUCATIONAL MATERIALS
Cambridgeshire County Council,11/04/2022,3.80,AMZNMKTPLACE,MISCELLANEOUS AND SPECIALTY RETAIL STORES,Support to Parents,SENDIASS,
Cambridgeshire County Council,11/04/2022,4.06,AMZNMKTPLACE,MISCELLANEOUS AND SPECIALTY RETAIL STORES,Outdoor Education (includes Grafham Water),Grafham Water Centre,CATERING EQUIPMENT-REPAIRS&MAINTENANCE
Cambridgeshire County Council,11/04/2022,4.45,CO-OP GROUP 171471,"GROCERY STORES, SUPERMARKETS",Outdoor Education (includes Grafham Water),Burwell House Residential Centre,CATERING PROVISIONS
Cambridgeshire County Council,11/04/2022,4.98,HOME BARGAINS WORLE,HARDWARE STORES,Outdoor Education (includes Grafham Water),Burwell House Residential Centre,EDUCATIONAL EQUIPMENT
Cambridgeshire County Council,11/04/2022,6.00,AMZNMKTPLACE,MISCELLANEOUS AND SPECIALTY RETAIL STORES,Outdoor Education (includes Grafham Water),Grafham Water Centre,SPECIALIST EQUIPMENT FOR SERVICE DELIV
Cambridgeshire County Council,11/04/2022,6.30,POST OFFICE COUNTER,POSTAL SERVICES-GOVERNMENT ONLY,Early Years Service,EY Central Costs,RECRUITMENT COSTS
Cambridgeshire County Council,11/04/2022,6.34,FASTHOSTS,COMPUTER NETWORK/INFORMATION SERVICES,ICT Service (Education),ICT Service Systems Development,
Cambridgeshire County Council,11/04/2022,9.99,NETFLIX.COM,"CABLE, SATELLITE, OTHER PAY TELEVISION, RADIO SVCS",Family Safeguarding East,Family Safeguarding East & South Cambs and Cambridge,
Cambridgeshire County Council,11/04/2022,9.99,AMZNMKTPLACE AMAZON.CO,MISCELLANEOUS AND SPECIALTY RETAIL STORES,Children's Disability Service,Head of RSS,
Cambridgeshire County Council,11/04/2022,9.99,AMZNMKTPLACE,MISCELLANEOUS AND SPECIALTY RETAIL STORES,Children's Disability Service,Head of RSS,
Cambridgeshire County Council,11/04/2022,9.99,AMZNMKTPLACE,MISCELLANEOUS AND SPECIALTY RETAIL STORES,Children's Disability Service,Head of RSS,
Cambridgeshire County Council,11/04/2022,10.76,AMAZON.CO.UK 2E4G69JS4,DIRECT MARKETING-OTHER DIRECT MARKETERS/NOT ELSEW.,Children's Disability Service,Head of RSS,
Cambridgeshire County Council,11/04/2022,10.99,AMZNMKTPLACE AMAZON.CO,MISCELLANEOUS AND SPECIALTY RETAIL STORES,Children's Disability Service,Head of RSS,OTHER SERVICE USER SUPPORT
Cambridgeshire County Council,11/04/2022,11.00,GEN REGISTER OFFICE,GOVERNMENT SERVICES-NOT ELSEWHERE CLASSIFIED,Family Safeguarding West,Family Safeguarding Hunts and Fenland,BOOKS AND MULTIMEDIA SUPPLIES
Cambridgeshire County Council,11/04/2022,11.90,TESCO STORE 2065,"GROCERY STORES, SUPERMARKETS",Children's Disability Service,Head of RSS,CATERING PROVISIONS
Cambridgeshire County Council,11/04/2022,11.95,AMZNMKTPLACE,MISCELLANEOUS AND SPECIALTY RETAIL STORES,Safeguarding and Quality Assurance,Childrens Participation,SPECIALIST EQUIPMENT FOR SERVICE DELIV
Cambridgeshire County Council,11/04/2022,14.04,AMZNMKTPLACE,MISCELLANEOUS AND SPECIALTY RETAIL STORES,Children's Disability Service,Head of RSS,
Cambridgeshire County Council,11/04/2022,15.00,WEST NORTHAMPTONSHIRE,GOVERNMENT SERVICES-NOT ELSEWHERE CLASSIFIED,0-19 Organisation & Planning,Attendance and Behaviour,PROFESSIONAL FEES AND HIRED SERVICES
Cambridgeshire County Council,11/04/2022,15.00,WEST NORTHAMPTONSHIRE,GOVERNMENT SERVICES-NOT ELSEWHERE CLASSIFIED,0-19 Organisation & Planning,Attendance and Behaviour,PROFESSIONAL FEES AND HIRED SERVICES
Cambridgeshire County Council,11/04/2022,15.00,WEST NORTHAMPTONSHIRE,GOVERNMENT SERVICES-NOT ELSEWHERE CLASSIFIED,0-19 Organisation & Planning,Attendance and Behaviour,PROFESSIONAL FEES AND HIRED SERVICES
Cambridgeshire County Council,11/04/2022,15.00,WEST NORTHAMPTONSHIRE,GOVERNMENT SERVICES-NOT ELSEWHERE CLASSIFIED,0-19 Organisation & Planning,Attendance and Behaviour,PROFESSIONAL FEES AND HIRED SERVICES
Cambridgeshire County Council,11/04/2022,15.00,WEST NORTHAMPTONSHIRE,GOVERNMENT SERVICES-NOT ELSEWHERE CLASSIFIED,0-19 Organisation & Planning,Attendance and Behaviour,PROFESSIONAL FEES AND HIRED SERVICES
Cambridgeshire County Council,11/04/2022,18.99,AMZNMKTPLACE,MISCELLANEOUS AND SPECIALTY RETAIL STORES,Children's Disability Service,Head of RSS,
Cambridgeshire County Council,11/04/2022,19.48,NUMBER 1 PLATES,"AUTOMOTIVE PARTS, ACCESSORIES STORES",Outdoor Education (includes Grafham Water),Grafham Water Centre,VEHICLE REPAIRS AND MAINTENANCE
Cambridgeshire County Council,11/04/2022,22.00,TL&GN RAILWAY WEB,PASSENGER RAILWAYS,Corporate Parenting,North Care Leaving Team 2,
Cambridgeshire County Council,11/04/2022,23.98,AMZNMKTPLACE,MISCELLANEOUS AND SPECIALTY RETAIL STORES,Children's Disability Service,Head of RSS,
Cambridgeshire County Council,11/04/2022,25.00,EB  KEEPING OUR RIVERS,BUSINESS SERVICES-NOT ELSEWHERE CLASSIFIED,Natural and Historic Environment,Flood Team,
Cambridgeshire County Council,11/04/2022,26.30,TESCO STORE 2889,"GROCERY STORES, SUPERMARKETS",Changing Futures & Projects,Housing First,OTHER SERVICE USER SUPPORT
Cambridgeshire County Council,11/04/2022,26.69,AMZNMKTPLACE AMAZON.CO,MISCELLANEOUS AND SPECIALTY RETAIL STORES,Outdoor Education (includes Grafham Water),Grafham Water Centre,CATERING EQUIPMENT-REPAIRS&MAINTENANCE
Cambridgeshire County Council,11/04/2022,30.00,TESCO GIFT CARD,"GROCERY STORES, SUPERMARKETS",Corporate Parenting,North Child Looked After Team 1,SPECIALIST EQUIPMENT FOR SERVICE DELIV
Cambridgeshire County Council,11/04/2022,40.40,LNER WEB SALES,PASSENGER RAILWAYS,Corporate Parenting,South Child Looked After Team 2,CAR MILEAGE AND ALLOWANCES - OTHER
Cambridgeshire County Council,11/04/2022,41.02,TESCO STORES 5657,"GROCERY STORES, SUPERMARKETS",LD - In House Provider Services,No. 20 Alder Close Respite,CATERING PROVISIONS
Cambridgeshire County Council,11/04/2022,41.98,AMZNMKTPLACE,MISCELLANEOUS AND SPECIALTY RETAIL STORES,IT & Digital Service,Business & Digital Systems,
Cambridgeshire County Council,11/04/2022,44.00,BUYATAB - ALDI,"GIFT, CARD, NOVELTY AND SOUVENIR SHOPS",Corporate Parenting,North Child Looked After Team 1,LIVING SUPPORT GRANTS
Cambridgeshire County Council,11/04/2022,44.10,LNER WEB SALES,PASSENGER RAILWAYS,Corporate Parenting,South Child Looked After Team 2,CAR MILEAGE AND ALLOWANCES - OTHER
Cambridgeshire County Council,11/04/2022,46.96,AMZNMKTPLACE,MISCELLANEOUS AND SPECIALTY RETAIL STORES,Children's Disability Service,Head of RSS,
Cambridgeshire County Council,11/04/2022,48.83,AMZNMKTPLACE,MISCELLANEOUS AND SPECIALTY RETAIL STORES,Outdoor Education (includes Grafham Water),Grafham Water Centre,SUBSCRIPTIONS
Cambridgeshire County Council,11/04/2022,52.15,SPORTSDIRECT.COM,SPORTING GOODS STORES,School Improvement Service,Adventure Playground,GROUNDS MAINTENANCE
Cambridgeshire County Council,11/04/2022,57.50,AMZNMKTPLACE,MISCELLANEOUS AND SPECIALTY RETAIL STORES,Children's Disability Service,Head of RSS,
Cambridgeshire County Council,11/04/2022,60.00,HIGHSTREETVOUCHERS,"ASSOCIATIONS-CIVIC, SOCIAL, AND FRATERNAL",Corporate Parenting,North Care Leaving Team 2,GRANTS&SUPPORT FOR OTHER SERVICE USERS
Cambridgeshire County Council,11/04/2022,62.00,LEGOLAND WINDSOR,"AMUSEMENT PARKS,CARNIVALS,CIRCUS,FORTUNE TELLERS",Children's Disability Service,Head of RSS,OTHER SERVICE USER SUPPORT
Cambridgeshire County Council,11/04/2022,70.00,CAM CAB,LIMOUSINES AND TAXICABS,Children's Disability Service,Disability Referral & Access Team,
Cambridgeshire County Council,11/04/2022,90.90,AMAZON.CO.UK 2E9073LZ4,DIRECT MARKETING-OTHER DIRECT MARKETERS/NOT ELSEW.,IT & Digital Service,Business & Digital Systems,
Cambridgeshire County Council,11/04/2022,94.09,WM MORRISONS STORE PIC,"GROCERY STORES, SUPERMARKETS",Children's Disability Service,Head of RSS,
Cambridgeshire County Council,11/04/2022,118.13,W M MORRISONS.COM,"GROCERY STORES, SUPERMARKETS",Children's Disability Service,Head of RSS,CATERING PROVISIONS
Cambridgeshire County Council,11/04/2022,123.40,LCN COM,COMPUTER NETWORK/INFORMATION SERVICES,Connecting Cambridgeshire,Connecting Cambridgeshire,GENERAL OFFICE EXPENSES & STATIONERY
Cambridgeshire County Council,11/04/2022,128.00,ATS EUROMASTER LTD,AUTOMOTIVE SERVICE SHOPS,"Property, Facilities Management and Building Compliance",Shire Hall Area,BUILDING REPAIR AND MAINTENANCE
Cambridgeshire County Council,11/04/2022,191.00,AMZNMKTPLACE,MISCELLANEOUS AND SPECIALTY RETAIL STORES,SEND Specialist Services,Head of SEND Services (0-25),EDUCATIONAL EQUIPMENT
Cambridgeshire County Council,11/04/2022,254.25,HIGHSTREETVOUCHERS,"ASSOCIATIONS-CIVIC, SOCIAL, AND FRATERNAL",Corporate Parenting,North Care Leaving Team 2,LEAVING CARE GRANTS
Cambridgeshire County Council,11/04/2022,260.10,PYN BEDS CO UK,"EQUIP, FURNITURE, HOME FURNSHNGS STRS (EXCPT APPL)",Corporate Parenting,North Care Leaving Team 2,LEAVING CARE GRANTS
Cambridgeshire County Council,11/04/2022,269.98,AMAZON.CO.UK 2E77B2FE4,DIRECT MARKETING-OTHER DIRECT MARKETERS/NOT ELSEW.,Children's Disability Service,Head of RSS,OTHER SERVICE USER SUPPORT
Cambridgeshire County Council,11/04/2022,869.00,AMAZON.CO.UK 2E8ZC5JL4,DIRECT MARKETING-OTHER DIRECT MARKETERS/NOT ELSEW.,School Improvement Service,"Education, Health, Safety and Wellbeing - Outdoor Education",COMPUTER HARDWARE - PURCHASE
Cambridgeshire County Council,11/04/2022,869.00,AMAZON.CO.UK 2E95B2JJ4,DIRECT MARKETING-OTHER DIRECT MARKETERS/NOT ELSEW.,School Improvement Service,"Education, Health, Safety and Wellbeing - Outdoor Education",COMPUTER HARDWARE - PURCHASE
Cambridgeshire County Council,11/04/2022,"1,000.00",EMMAUS CAMBRIDGE,"EQUIP, FURNITURE, HOME FURNSHNGS STRS (EXCPT APPL)",Domestic Abuse and Sexual Violence Service,Domestic Violence Unit,
Cambridgeshire County Council,12/04/2022,-3.00,ASDA GROCERIES ONLINE,"GROCERY STORES, SUPERMARKETS",LD - In House Provider Services,Horizon,CATERING PROVISIONS
Cambridgeshire County Council,12/04/2022,1.25,SAINSBURYS S/MKTS,"GROCERY STORES, SUPERMARKETS",LD - In House Provider Services,6 St Lukes Close (Respite),SPECIALIST SUPPLIES AND MATERIALS
Cambridgeshire County Council,12/04/2022,2.90,COSTA COFFEE,FAST FOOD RESTAURANTS,Changing Futures & Projects,Housing First,OTHER SERVICE USER SUPPORT
Cambridgeshire County Council,12/04/2022,6.85,POST OFFICE COUNTER,POSTAL SERVICES-GOVERNMENT ONLY,Registration & Citizenship Services,Registrars General,
Cambridgeshire County Council,12/04/2022,6.90,AMAZON.CO.UK 2E0VA2E04,DIRECT MARKETING-OTHER DIRECT MARKETERS/NOT ELSEW.,Outdoor Education (includes Grafham Water),Grafham Water Centre,EQUIPMENT AND TOOLS
Cambridgeshire County Council,12/04/2022,7.99,MICROSOFT CONSOLE 1 MO,DIGITAL GOODS GAMES,Children's Disability Service,Head of RSS,SUBSCRIPTIONS
Cambridgeshire County Council,12/04/2022,8.00,TSGN,PASSENGER RAILWAYS,Changing Futures & Projects,Counting Every Adult,PUBLIC TRANSPORT FARES
Cambridgeshire County Council,12/04/2022,8.99,FASTHOSTS,COMPUTER NETWORK/INFORMATION SERVICES,ICT Service (Education),ICT Service Systems Development,
Cambridgeshire County Council,12/04/2022,10.98,AMZNMKTPLACE,MISCELLANEOUS AND SPECIALTY RETAIL STORES,LD - In House Provider Services,Horizon,SPECIALIST SUPPLIES AND MATERIALS
Cambridgeshire County Council,12/04/2022,11.00,CAFE DU GALLERY,"EATING PLACES, RESTAURANTS",Changing Futures & Projects,Housing First,OTHER SERVICE USER SUPPORT
Cambridgeshire County Council,12/04/2022,15.98,AMZNMKTPLACE AMAZON.CO,MISCELLANEOUS AND SPECIALTY RETAIL STORES,LD - In House Provider Services,Horizon,SPECIALIST SUPPLIES AND MATERIALS
Cambridgeshire County Council,12/04/2022,16.09,TESCO STORE 2694,"GROCERY STORES, SUPERMARKETS",LD - In House Provider Services,6 St Lukes Close (Respite),
Cambridgeshire County Council,12/04/2022,23.97,AMZNMKTPLACE AMAZON.CO,MISCELLANEOUS AND SPECIALTY RETAIL STORES,Children's Disability Service,Head of RSS,
Cambridgeshire County Council,12/04/2022,27.75,BITLY.COM,COMPUTER SOFTWARE STORES,Planning and Sustainable Growth,Travel Plan +,COMP SOFTWARE-ANNUAL LICENCE AGREEMENT
Cambridgeshire County Council,12/04/2022,36.34,UZR ALLE-NOTEN.DE|8234,"MUSIC STORES-INSTRUMENTS, PIANOS, SHEET MUSIC",Cambridgeshire Music,Cambs Music Business Development,
Cambridgeshire County Council,12/04/2022,39.00,HOTEL AT BOOKING.COM,"LODGING-HOTELS,MOTELS,RESORTS-NOT CLASSIFIED","Children, Education and Families Directorate","Children, Education and Families Directorate",CAR MILEAGE AND ALLOWANCES - STAFF
Cambridgeshire County Council,12/04/2022,49.00,ASDA GEORGE COM LEEDS,"GROCERY STORES, SUPERMARKETS",Domestic Abuse and Sexual Violence Service,Domestic Violence Unit,
Cambridgeshire County Council,12/04/2022,62.14,ASDA GROCERIES ONLINE,"GROCERY STORES, SUPERMARKETS",LD - In House Provider Services,Horizon,CATERING PROVISIONS
Cambridgeshire County Council,12/04/2022,68.20,STEVE'S PRIVATE HIRE,LIMOUSINES AND TAXICABS,"Communities, Employment & Skills",Communities Service - Management,OTHER TRAVEL EXPENSES
Cambridgeshire County Council,12/04/2022,70.00,CAM CAB,LIMOUSINES AND TAXICABS,Children's Disability Service,Disability Referral & Access Team,
Cambridgeshire County Council,12/04/2022,71.68,EASYJET,EASYJET,Corporate Parenting,North Child Looked After Team 1,GRANTS&SUPPORT FOR OTHER SERVICE USERS
Cambridgeshire County Council,12/04/2022,162.35,AMZNMKTPLACE AMAZON.CO,MISCELLANEOUS AND SPECIALTY RETAIL STORES,School Improvement Service,Adventure Playground,GROUNDS MAINTENANCE
Cambridgeshire County Council,12/04/2022,287.00,"STOWMARKET SKIPS, LTD.","CONTRACTORS,SPECIAL TRADE-NOT ELSEWHERE CLASSIFIED",Cambridgeshire Music,Cambs Music Business Development,
Cambridgeshire County Council,13/04/2022,1.60,3C_ HUNTINGDONSHIRE DI,AUTOMOBILE PARKING LOTS AND GARAGES,Changing Futures & Projects,Housing First,OTHER SERVICE USER SUPPORT
Cambridgeshire County Council,13/04/2022,2.40,GREGGS PLC,"EATING PLACES, RESTAURANTS",Changing Futures & Projects,Counting Every Adult,OTHER SERVICE USER SUPPORT
Cambridgeshire County Council,13/04/2022,6.39,POST OFFICE COUNTER,POSTAL SERVICES-GOVERNMENT ONLY,Changing Futures & Projects,Housing First,OTHER SERVICE USER SUPPORT
Cambridgeshire County Council,13/04/2022,6.78,AMZNMKTPLACE,MISCELLANEOUS AND SPECIALTY RETAIL STORES,LD - In House Provider Services,Horizon,SPECIALIST SUPPLIES AND MATERIALS
Cambridgeshire County Council,13/04/2022,6.99,AMZNMKTPLACE,MISCELLANEOUS AND SPECIALTY RETAIL STORES,Virtual School,Virtual School for Care Experienced Children,
Cambridgeshire County Council,13/04/2022,8.00,WM MORRISONS STORE PIC,"GROCERY STORES, SUPERMARKETS",Children's Disability Service,Head of RSS,SUBSCRIPTIONS
Cambridgeshire County Council,13/04/2022,8.64,AMZNMKTPLACE,MISCELLANEOUS AND SPECIALTY RETAIL STORES,LD - In House Provider Services,Horizon,SPECIALIST SUPPLIES AND MATERIALS
Cambridgeshire County Council,13/04/2022,9.60,PAYPAL  NUKEYCOUNTP,BUSINESS SERVICES-NOT ELSEWHERE CLASSIFIED,LD - In House Provider Services,Victoria  Lodge,BUILDING REPAIR AND MAINTENANCE
Cambridgeshire County Council,13/04/2022,19.99,AMZNMKTPLACE,MISCELLANEOUS AND SPECIALTY RETAIL STORES,Virtual School,Virtual School for Care Experienced Children,
Cambridgeshire County Council,13/04/2022,30.00,TESCO GIFT CARD,"GROCERY STORES, SUPERMARKETS",Corporate Parenting,North Child Looked After Team 1,GRANTS&SUPPORT FOR OTHER SERVICE USERS
Cambridgeshire County Council,13/04/2022,30.00,CASTLE BOULEVARD,DISCOUNT STORES,Changing Futures & Projects,Housing First,OTHER SERVICE USER SUPPORT
Cambridgeshire County Council,13/04/2022,31.38,LIDL GB CAMBRIDGE,"GROCERY STORES, SUPERMARKETS",Outdoor Education (includes Grafham Water),Grafham Water Centre,CATERING PROVISIONS
Cambridgeshire County Council,13/04/2022,34.00,DVLA DRIVING LICENSE,GOVERNMENT SERVICES-NOT ELSEWHERE CLASSIFIED,Corporate Parenting,South Child Looked After Team 2,
Cambridgeshire County Council,13/04/2022,34.75,ASDA STORES,"GROCERY STORES, SUPERMARKETS",School Improvement Service,Adventure Playground,CATERING PROVISIONS
Cambridgeshire County Council,13/04/2022,38.86,CRAZY EGG.COM,BUSINESS SERVICES-NOT ELSEWHERE CLASSIFIED,IT & Digital Service,Business & Digital Systems,COMPUTER SOFTWARE - PURCHASE
Cambridgeshire County Council,13/04/2022,40.00,KING CARZ,LIMOUSINES AND TAXICABS,Coroners,Coroners General,GENERAL OFFICE EXPENSES & STATIONERY
Cambridgeshire County Council,13/04/2022,40.08,EB  BICS EDI FOR LIBRA,BUSINESS SERVICES-NOT ELSEWHERE CLASSIFIED,Public Library Services,Support - Business Support,
Cambridgeshire County Council,13/04/2022,45.60,SUMUP   JON AAS,LIMOUSINES AND TAXICABS,Children's Disability Service,Head of RSS,OTHER SERVICE USER SUPPORT
Cambridgeshire County Council,13/04/2022,45.80,IZ  TAXI,LIMOUSINES AND TAXICABS,Children's Disability Service,Head of RSS,
Cambridgeshire County Council,13/04/2022,67.18,TESCO STORES 2470,"GROCERY STORES, SUPERMARKETS",Family Safeguarding East,Adolescent Team South,LEAVING CARE GRANTS
Cambridgeshire County Council,13/04/2022,69.80,POST OFFICE COUNTER,POSTAL SERVICES-GOVERNMENT ONLY,Coroners,Coroners General,
Cambridgeshire County Council,13/04/2022,75.50,HM PASSPORT OFFICE,GOVERNMENT SERVICES-NOT ELSEWHERE CLASSIFIED,Corporate Parenting,North Child Looked After Team 1,GRANTS&SUPPORT FOR OTHER SERVICE USERS
Cambridgeshire County Council,13/04/2022,99.00,HOTEL AT BOOKING.COM,"LODGING-HOTELS,MOTELS,RESORTS-NOT CLASSIFIED","Children, Education and Families Directorate","Children, Education and Families Directorate",
Cambridgeshire County Council,13/04/2022,100.00,VOUCHER EXPRESS,BUSINESS SERVICES-NOT ELSEWHERE CLASSIFIED,Corporate Parenting,North Care Leaving Team 2,SPECIALIST EQUIPMENT FOR SERVICE DELIV
Cambridgeshire County Council,13/04/2022,100.00,VOUCHER EXPRESS,BUSINESS SERVICES-NOT ELSEWHERE CLASSIFIED,Corporate Parenting,North Care Leaving Team 2,SPECIALIST EQUIPMENT FOR SERVICE DELIV
Cambridgeshire County Council,13/04/2022,100.84,WWW.EASYSPACE.COM,DIGITAL GOODS MULTI CATEGORY,Planning and Sustainable Growth,Travel Plan +,COMP SOFTWARE-ANNUAL LICENCE AGREEMENT
Cambridgeshire County Council,13/04/2022,101.30,AMAZON.CO.UK 2E16X5PW4,DIRECT MARKETING-OTHER DIRECT MARKETERS/NOT ELSEW.,Outdoor Education (includes Grafham Water),Grafham Water Centre,GROUNDS MAINTENANCE
Cambridgeshire County Council,13/04/2022,125.73,WM MORRISONS STORE PIC,"GROCERY STORES, SUPERMARKETS",Children's Disability Service,Head of RSS,
Cambridgeshire County Council,13/04/2022,133.72,TESCO STORES 2228,"GROCERY STORES, SUPERMARKETS",Children's Disability Service,Head of RSS,
Cambridgeshire County Council,13/04/2022,152.80,LNER WEB SALES,PASSENGER RAILWAYS,Corporate Parenting,South Child Looked After Team 2,CAR MILEAGE AND ALLOWANCES - OTHER
Cambridgeshire County Council,13/04/2022,154.00,LNER WEB SALES,PASSENGER RAILWAYS,Corporate Parenting,South Child Looked After Team 2,CAR MILEAGE AND ALLOWANCES - OTHER
Cambridgeshire County Council,13/04/2022,220.00,WWW.CIPFA.ORG.UK,"ORGANIZATIONS, MEMBERSHIP-NOT ELSEWHERE CLASSIFIED",Professional Finance,Cipfa Trainees,EXAM FEES
Cambridgeshire County Council,13/04/2022,220.00,WWW.CIPFA.ORG.UK,"ORGANIZATIONS, MEMBERSHIP-NOT ELSEWHERE CLASSIFIED",Professional Finance,Cipfa Trainees,EXAM FEES
Cambridgeshire County Council,13/04/2022,275.00,PROGRESSIVE LETS,REAL ESTATE AGENTS AND MANAGERS-RENTALS,Corporate Parenting,North Care Leaving Team 2,
Cambridgeshire County Council,13/04/2022,328.49,HALFORDS 0995,BICYCLE SHOPS-SALES AND SERVICE,Outdoor Education (includes Grafham Water),Grafham Water Centre,EDUCATIONAL EQUIPMENT
Cambridgeshire County Council,13/04/2022,330.50,POST OFFICE COUNTER,POSTAL SERVICES-GOVERNMENT ONLY,0-19 Organisation & Planning,Attendance and Behaviour,POSTAGE & CARRIAGE
Cambridgeshire County Council,14/04/2022,2.99,AMZNMKTPLACE,MISCELLANEOUS AND SPECIALTY RETAIL STORES,Outdoor Education (includes Grafham Water),Burwell House Residential Centre,CATERING PROVISIONS
Cambridgeshire County Council,14/04/2022,4.35,INTERNET PHOTO SERVICE,"PHOTO DEVELOPING, PHOTOFINISHING LABORATORIES",Family Safeguarding East,Family Safeguarding East & South Cambs and Cambridge,
Cambridgeshire County Council,14/04/2022,7.99,DISNEY PLUS,"CABLE, SATELLITE, OTHER PAY TELEVISION, RADIO SVCS",Family Safeguarding East,Family Safeguarding East & South Cambs and Cambridge,
Cambridgeshire County Council,14/04/2022,7.99,AMAZON PRIME 2E4LH6XG4,DIRECT MARKETING-CONTINUITY/SUBSCRIPTION MERCHANTS,Children's Disability Service,Head of RSS,
Cambridgeshire County Council,14/04/2022,9.99,WEST END DIY,HARDWARE STORES,LD - In House Provider Services,IHPS - Tennyson Lodge,BUILDING REPAIR AND MAINTENANCE
Cambridgeshire County Council,14/04/2022,11.20,STAGECOACH SERVICE,BUS LINES,Family Safeguarding West,Family Safeguarding Hunts and Fenland,ASYLUM SEEKERS
Cambridgeshire County Council,14/04/2022,11.40,POST OFFICE COUNTER,POSTAL SERVICES-GOVERNMENT ONLY,Corporate Parenting,North Care Leaving Team 2,
Cambridgeshire County Council,14/04/2022,12.28,TESCO STORE 2694,"GROCERY STORES, SUPERMARKETS",Safeguarding and Quality Assurance,Childrens Participation,CATERING PROVISIONS
Cambridgeshire County Council,14/04/2022,14.25,TIMPSON LTD,MISCELLANEOUS AND SPECIALTY RETAIL STORES,Changing Futures & Projects,Housing First,OTHER SERVICE USER SUPPORT
Cambridgeshire County Council,14/04/2022,14.39,FASTHOSTS,COMPUTER NETWORK/INFORMATION SERVICES,ICT Service (Education),ICT Service Systems Development,
Cambridgeshire County Council,14/04/2022,18.50,UK SIGNS & PROMOTIONS,"HAT CLEANING SHOPS, SHOE REPAIR SHOPS, SHOE SHINE",LD - In House Provider Services,IHPS - Tennyson Lodge,SPECIALIST EQUIPMENT FOR SERVICE DELIV
Cambridgeshire County Council,14/04/2022,18.99,EBAY O 03-08509-33063,DEPARTMENT STORES,SEND Specialist Services,Head of SEND Services (0-25),EDUCATIONAL EQUIPMENT
Cambridgeshire County Council,14/04/2022,21.37,CANVA  I03390-0824283,PHOTOGRAPHIC STUDIOS,Communication and Information,Communication and Information,
Cambridgeshire County Council,14/04/2022,26.65,JD WETHERSPOON,"EATING PLACES, RESTAURANTS",Changing Futures & Projects,Housing First,OTHER SERVICE USER SUPPORT
Cambridgeshire County Council,14/04/2022,30.00,TESCO GIFT CARD,"GROCERY STORES, SUPERMARKETS",Corporate Parenting,North Child Looked After Team 1,GRANTS&SUPPORT FOR OTHER SERVICE USERS
Cambridgeshire County Council,14/04/2022,32.00,B & Q 1216,HOME SUPPLY WAREHOUSE STORES,Outdoor Education (includes Grafham Water),Grafham Water Centre,GROUNDS MAINTENANCE
Cambridgeshire County Council,14/04/2022,33.00,WEST NORTHAMPTONSHIRE,GOVERNMENT SERVICES-NOT ELSEWHERE CLASSIFIED,Family Safeguarding West,Family Safeguarding Hunts and Fenland,BOOKS AND MULTIMEDIA SUPPLIES
Cambridgeshire County Council,14/04/2022,36.00,THE CLARKS SHOP,SHOE STORES,Children's Disability Service,Head of RSS,OTHER SERVICE USER SUPPORT
Cambridgeshire County Council,14/04/2022,40.00,TESCO STORE 2694,"GROCERY STORES, SUPERMARKETS",LD - In House Provider Services,6 St Lukes Close (Respite),
Cambridgeshire County Council,14/04/2022,48.35,TESCO STORE 2694,"GROCERY STORES, SUPERMARKETS",LD - In House Provider Services,6 St Lukes Close (Respite),
Cambridgeshire County Council,14/04/2022,57.24,W M MORRISONS.COM,"GROCERY STORES, SUPERMARKETS",Children's Disability Service,Head of RSS,CATERING PROVISIONS
Cambridgeshire County Council,14/04/2022,59.24,TESCO PAY AT PUMP 4279,"FUEL DISPENSER, AUTOMATED",Park & Ride,Park and Ride Admin,VEHICLE FUEL
Cambridgeshire County Council,14/04/2022,97.39,TESCO STORES 5657,"GROCERY STORES, SUPERMARKETS",LD - In House Provider Services,No. 20 Alder Close Respite,CATERING PROVISIONS
Cambridgeshire County Council,14/04/2022,108.00,PREMIER INN,PREMIER INN,"Children, Education and Families Directorate","Children, Education and Families Directorate",ADOPTION ALLOWANCES
Cambridgeshire County Council,14/04/2022,137.90,EBAY O 18-08505-54915,DEPARTMENT STORES,SEND Specialist Services,Head of SEND Services (0-25),EDUCATIONAL EQUIPMENT
Cambridgeshire County Council,14/04/2022,193.26,AMZNMKTPLACE AMAZON.CO,MISCELLANEOUS AND SPECIALTY RETAIL STORES,Targeted Support Service - North,EH Child and Family Centre - Wisbech,EDUCATIONAL MATERIALS
Cambridgeshire County Council,15/04/2022,0.74,APPLE.COM/BILL,DIGITAL GOODS MULTI CATEGORY,ICT Service (Education),ICT Service Systems Development,
Cambridgeshire County Council,15/04/2022,1.49,APPLE.COM/BILL,DIGITAL GOODS AUDIOVISUAL MEDIA,ICT Service (Education),ICT Service Systems Development,
Cambridgeshire County Council,15/04/2022,2.07,APPLE.COM/BILL,DIGITAL GOODS AUDIOVISUAL MEDIA,ICT Service (Education),ICT Service Systems Development,
Cambridgeshire County Council,15/04/2022,3.00,HM LAND REGISTRY - ONL,GOVERNMENT SERVICES-NOT ELSEWHERE CLASSIFIED,Shared Services,Debt Team,DEBT RECOVERY COSTS
Cambridgeshire County Council,15/04/2022,3.74,APPLE.COM/BILL,DIGITAL GOODS AUDIOVISUAL MEDIA,ICT Service (Education),ICT Service Systems Development,
Cambridgeshire County Council,15/04/2022,4.14,APPLE.COM/BILL,DIGITAL GOODS MULTI CATEGORY,ICT Service (Education),ICT Service Systems Development,
Cambridgeshire County Council,15/04/2022,4.14,APPLE.COM/BILL,DIGITAL GOODS MULTI CATEGORY,ICT Service (Education),ICT Service Systems Development,
Cambridgeshire County Council,15/04/2022,4.14,APPLE.COM/BILL,DIGITAL GOODS AUDIOVISUAL MEDIA,ICT Service (Education),ICT Service Systems Development,
Cambridgeshire County Council,15/04/2022,4.90,1 AND 1 IONOS LTD,COMPUTER NETWORK/INFORMATION SERVICES,Schools,Pilgrim Pathways School,
Cambridgeshire County Council,15/04/2022,5.80,APPLE.COM/BILL,DIGITAL GOODS MULTI CATEGORY,ICT Service (Education),ICT Service Systems Development,
Cambridgeshire County Council,15/04/2022,5.82,APPLE.COM/BILL,DIGITAL GOODS AUDIOVISUAL MEDIA,ICT Service (Education),ICT Service Systems Development,
Cambridgeshire County Council,15/04/2022,7.99,B&M 254 - CROMWELL,MISCELLANEOUS GENERAL MERCHANDISE,Changing Futures & Projects,Housing First,
Cambridgeshire County Council,15/04/2022,7.99,AMAZON PRIME 2E2LO9544,DIRECT MARKETING-CONTINUITY/SUBSCRIPTION MERCHANTS,LD - In House Provider Services,6 St Lukes Close (Respite),
Cambridgeshire County Council,15/04/2022,13.38,MCDONALDS,FAST FOOD RESTAURANTS,Safeguarding and Quality Assurance,Childrens Participation,CATERING PROVISIONS
Cambridgeshire County Council,15/04/2022,14.50,TL&GN RAILWAY WEB,PASSENGER RAILWAYS,Corporate Parenting,South Child Looked After Team 2,CAR MILEAGE AND ALLOWANCES - OTHER
Cambridgeshire County Council,15/04/2022,15.00,WEST NORTHAMPTONSHIRE,GOVERNMENT SERVICES-NOT ELSEWHERE CLASSIFIED,0-19 Organisation & Planning,Attendance and Behaviour,PROFESSIONAL FEES AND HIRED SERVICES
Cambridgeshire County Council,15/04/2022,15.00,WEST NORTHAMPTONSHIRE,GOVERNMENT SERVICES-NOT ELSEWHERE CLASSIFIED,0-19 Organisation & Planning,Attendance and Behaviour,PROFESSIONAL FEES AND HIRED SERVICES
Cambridgeshire County Council,15/04/2022,15.00,WEST NORTHAMPTONSHIRE,GOVERNMENT SERVICES-NOT ELSEWHERE CLASSIFIED,0-19 Organisation & Planning,Attendance and Behaviour,PROFESSIONAL FEES AND HIRED SERVICES
Cambridgeshire County Council,15/04/2022,15.00,WEST NORTHAMPTONSHIRE,GOVERNMENT SERVICES-NOT ELSEWHERE CLASSIFIED,0-19 Organisation & Planning,Attendance and Behaviour,PROFESSIONAL FEES AND HIRED SERVICES
Cambridgeshire County Council,15/04/2022,15.00,WEST NORTHAMPTONSHIRE,GOVERNMENT SERVICES-NOT ELSEWHERE CLASSIFIED,0-19 Organisation & Planning,Attendance and Behaviour,PROFESSIONAL FEES AND HIRED SERVICES
Cambridgeshire County Council,15/04/2022,15.00,WEST NORTHAMPTONSHIRE,GOVERNMENT SERVICES-NOT ELSEWHERE CLASSIFIED,0-19 Organisation & Planning,Attendance and Behaviour,PROFESSIONAL FEES AND HIRED SERVICES
Cambridgeshire County Council,15/04/2022,15.00,WEST NORTHAMPTONSHIRE,GOVERNMENT SERVICES-NOT ELSEWHERE CLASSIFIED,0-19 Organisation & Planning,Attendance and Behaviour,PROFESSIONAL FEES AND HIRED SERVICES
Cambridgeshire County Council,15/04/2022,15.00,WEST NORTHAMPTONSHIRE,GOVERNMENT SERVICES-NOT ELSEWHERE CLASSIFIED,0-19 Organisation & Planning,Attendance and Behaviour,PROFESSIONAL FEES AND HIRED SERVICES
Cambridgeshire County Council,15/04/2022,15.00,WEST NORTHAMPTONSHIRE,GOVERNMENT SERVICES-NOT ELSEWHERE CLASSIFIED,0-19 Organisation & Planning,Attendance and Behaviour,PROFESSIONAL FEES AND HIRED SERVICES
Cambridgeshire County Council,15/04/2022,16.48,TESCO STORES 5657,"GROCERY STORES, SUPERMARKETS",LD - In House Provider Services,No. 20 Alder Close Respite,CATERING PROVISIONS
Cambridgeshire County Council,15/04/2022,16.98,DOMINO S PIZZA,"EATING PLACES, RESTAURANTS",Safeguarding and Quality Assurance,Childrens Participation,CATERING PROVISIONS
Cambridgeshire County Council,15/04/2022,18.63,APPLE.COM/BILL,DIGITAL GOODS MULTI CATEGORY,ICT Service (Education),ICT Service Systems Development,
Cambridgeshire County Council,15/04/2022,20.70,APPLE.COM/BILL,DIGITAL GOODS MULTI CATEGORY,ICT Service (Education),ICT Service Systems Development,
Cambridgeshire County Council,15/04/2022,24.99,RING YEARLY PLAN,"COMPUTERS, COMPUTER PERIPHERAL EQUIPMENT, SOFTWARE",Changing Futures & Projects,Housing First,OTHER SERVICE USER SUPPORT
Cambridgeshire County Council,15/04/2022,25.00,GEN REGISTER OFFICE,GOVERNMENT SERVICES-NOT ELSEWHERE CLASSIFIED,Corporate Parenting,North Child Looked After Team 1,GRANTS&SUPPORT FOR OTHER SERVICE USERS
Cambridgeshire County Council,15/04/2022,25.10,POST OFFICE COUNTER,POSTAL SERVICES-GOVERNMENT ONLY,Coroners,Coroners General,POSTAGE & CARRIAGE
Cambridgeshire County Council,15/04/2022,26.00,ASDA  STORES 5784,"GROCERY STORES, SUPERMARKETS",Outdoor Education (includes Grafham Water),Grafham Water Centre,EDUCATIONAL MATERIALS
Cambridgeshire County Council,15/04/2022,26.10,APPLE.COM/BILL,DIGITAL GOODS MULTI CATEGORY,ICT Service (Education),ICT Service Systems Development,
Cambridgeshire County Council,15/04/2022,28.51,SAINSBURYS,"GROCERY STORES, SUPERMARKETS",Changing Futures & Projects,Housing First,OTHER SERVICE USER SUPPORT
Cambridgeshire County Council,15/04/2022,29.15,APPLE.COM/BILL,RECORD SHOPS,ICT Service (Education),ICT Service Systems Development,
Cambridgeshire County Council,15/04/2022,30.00,TESCO GIFT CARD,"GROCERY STORES, SUPERMARKETS",Corporate Parenting,South Child Looked After Team 2,SPECIALIST EQUIPMENT FOR SERVICE DELIV
Cambridgeshire County Council,15/04/2022,33.00,MARCH REGSTRN OFFI,"COLLEGES, UNIV, PRO SCHOOLS, JUNIOR COLLEGES",Family Safeguarding East,Fenland Children's Team 2,
Cambridgeshire County Council,15/04/2022,43.30,APPLE.COM/BILL,RECORD SHOPS,ICT Service (Education),ICT Service Systems Development,
Cambridgeshire County Council,15/04/2022,44.00,BUYATAB - ALDI,"GIFT, CARD, NOVELTY AND SOUVENIR SHOPS",Corporate Parenting,North Child Looked After Team 1,LIVING SUPPORT GRANTS
Cambridgeshire County Council,15/04/2022,47.50,POST OFFICE COUNTER,POSTAL SERVICES-GOVERNMENT ONLY,0-19 Organisation & Planning,Attendance and Behaviour,POSTAGE & CARRIAGE
Cambridgeshire County Council,15/04/2022,48.00,WWW.PHS.CO.UK,BUSINESS SERVICES-NOT ELSEWHERE CLASSIFIED,Cambridgeshire Music,Cambs Music Business Development,
Cambridgeshire County Council,15/04/2022,52.00,WENSUM PRINT,MISCELLANEOUS PUBLISHING AND PRINTING,Planning and Sustainable Growth,Travel Plan +,PRINTING
Cambridgeshire County Council,15/04/2022,86.35,FINDEL EDUCATION,DIRECT MARKETING-OTHER DIRECT MARKETERS/NOT ELSEW.,Targeted Support Service - South,EH Child and Family Centre - Cambridge City,EDUCATIONAL MATERIALS
Cambridgeshire County Council,15/04/2022,90.72,AMZNMKTPLACE,MISCELLANEOUS AND SPECIALTY RETAIL STORES,Targeted Support Service - South,EH Child and Family Centre - Cambridge City,EDUCATIONAL MATERIALS
Cambridgeshire County Council,15/04/2022,96.00,AMAZON PRIME 2E5J405M4,DIRECT MARKETING-CONTINUITY/SUBSCRIPTION MERCHANTS,Outdoor Education (includes Grafham Water),Grafham Water Centre,CURRICULUM EXPENSES
Cambridgeshire County Council,15/04/2022,108.00,B & Q 1140,HOME SUPPLY WAREHOUSE STORES,School Improvement Service,Adventure Playground,GROUNDS MAINTENANCE
Cambridgeshire County Council,15/04/2022,110.00,WWW.CIPFA.ORG.UK,"ORGANIZATIONS, MEMBERSHIP-NOT ELSEWHERE CLASSIFIED",Internal Audit,Audit Division,EXAM FEES
Cambridgeshire County Council,15/04/2022,110.00,WWW.CIPFA.ORG.UK,"ORGANIZATIONS, MEMBERSHIP-NOT ELSEWHERE CLASSIFIED",Internal Audit,Audit Division,EXAM FEES
Cambridgeshire County Council,15/04/2022,110.00,WWW.CIPFA.ORG.UK,"ORGANIZATIONS, MEMBERSHIP-NOT ELSEWHERE CLASSIFIED",Professional Finance,Cipfa Trainees,EXAM FEES
Cambridgeshire County Council,15/04/2022,110.00,WWW.CIPFA.ORG.UK,"ORGANIZATIONS, MEMBERSHIP-NOT ELSEWHERE CLASSIFIED",Professional Finance,Cipfa Trainees,EXAM FEES
Cambridgeshire County Council,15/04/2022,126.47,AMZNMKTPLACE,MISCELLANEOUS AND SPECIALTY RETAIL STORES,Targeted Support Service - South,EH Child and Family Centre - Cambridge City,EDUCATIONAL MATERIALS
Cambridgeshire County Council,15/04/2022,145.82,APPLE.COM/BILL,DIGITAL GOODS AUDIOVISUAL MEDIA,ICT Service (Education),ICT Service Systems Development,
Cambridgeshire County Council,15/04/2022,165.58,DNH GODADDY.COM EUROPE,COMPUTER NETWORK/INFORMATION SERVICES,ICT Service (Education),ICT Service Systems Development,
Cambridgeshire County Council,15/04/2022,183.32,APPLE.COM/BILL,RECORD SHOPS,ICT Service (Education),ICT Service Systems Development,
Cambridgeshire County Council,15/04/2022,287.10,PYN BEDS CO UK,"EQUIP, FURNITURE, HOME FURNSHNGS STRS (EXCPT APPL)",Corporate Parenting,South Child Looked After Team 2,LEAVING CARE GRANTS
Cambridgeshire County Council,15/04/2022,"1,635.04",AMZNMKTPLACE,MISCELLANEOUS AND SPECIALTY RETAIL STORES,ICT Service (Education),ICT Service Systems Development,
Cambridgeshire County Council,18/04/2022,0.74,APPLE.COM/BILL,RECORD SHOPS,ICT Service (Education),ICT Service Systems Development,
Cambridgeshire County Council,18/04/2022,0.99,HPI INSTANT INK UK,ELECTRONIC SALES,Safeguarding and Quality Assurance,Safeguarding and Quality Assurance,
Cambridgeshire County Council,18/04/2022,3.00,FACEBK  VZ7JXC7ZS2,ADVERTISING SERVICES,Domestic Abuse and Sexual Violence Service,Domestic Violence Unit,
Cambridgeshire County Council,18/04/2022,3.70,GRAFHAM WATER PARK,AUTOMOBILE PARKING LOTS AND GARAGES,LD - In House Provider Services,6 St Lukes Close (Respite),
Cambridgeshire County Council,18/04/2022,4.70,TESCO STORES 5657,"GROCERY STORES, SUPERMARKETS",LD - In House Provider Services,No. 20 Alder Close Respite,CATERING PROVISIONS
Cambridgeshire County Council,18/04/2022,7.99,MICROSOFT CONSOLE 1 MO,DIGITAL GOODS GAMES,Children's Disability Service,Head of RSS,SUBSCRIPTIONS
Cambridgeshire County Council,18/04/2022,7.99,AMAZON PRIME 2E5TF0884,DIRECT MARKETING-CONTINUITY/SUBSCRIPTION MERCHANTS,0-19 Organisation & Planning,Education Safeguarding,GENERAL OFFICE EXPENSES & STATIONERY
Cambridgeshire County Council,18/04/2022,8.48,ALDI,"GROCERY STORES, SUPERMARKETS",Targeted Support Service - North,EH Child and Family Centre - Wisbech,EDUCATIONAL MATERIALS
Cambridgeshire County Council,18/04/2022,12.75,AMAZON.CO.UK 2E9VY7844,DIRECT MARKETING-OTHER DIRECT MARKETERS/NOT ELSEW.,Children's Disability Service,Head of RSS,
Cambridgeshire County Council,18/04/2022,13.55,AMZNMKTPLACE,MISCELLANEOUS AND SPECIALTY RETAIL STORES,Outdoor Education (includes Grafham Water),Grafham Water Centre,EDUCATIONAL MATERIALS
Cambridgeshire County Council,18/04/2022,15.00,WEST NORTHAMPTONSHIRE,GOVERNMENT SERVICES-NOT ELSEWHERE CLASSIFIED,0-19 Organisation & Planning,Attendance and Behaviour,PROFESSIONAL FEES AND HIRED SERVICES
Cambridgeshire County Council,18/04/2022,18.29,ALDI 776 94,"GROCERY STORES, SUPERMARKETS",Children's Disability Service,Head of RSS,OTHER SERVICE USER SUPPORT
Cambridgeshire County Council,18/04/2022,31.99,AMZNMKTPLACE,MISCELLANEOUS AND SPECIALTY RETAIL STORES,Children's Disability Service,Head of RSS,
Cambridgeshire County Council,18/04/2022,36.38,AMAZON.CO.UK 2E8ZH1KI4,DIRECT MARKETING-OTHER DIRECT MARKETERS/NOT ELSEW.,Children's Disability Service,Head of RSS,
Cambridgeshire County Council,18/04/2022,43.16,ZOOM.US 888-799-9666,TELECOM INCL PREPAID/RECURRING PHONE SVCS,School Improvement Service,"Education, Health, Safety and Wellbeing - PSHE",SUBSCRIPTIONS
Cambridgeshire County Council,18/04/2022,51.06,TESCO STORE 2694,"GROCERY STORES, SUPERMARKETS",LD - In House Provider Services,6 St Lukes Close (Respite),
Cambridgeshire County Council,18/04/2022,66.00,NORFOLK COUNTY COUNCIL,GOVERNMENT SERVICES-NOT ELSEWHERE CLASSIFIED,Family Safeguarding East,Fenland Children's Team 2,
Cambridgeshire County Council,18/04/2022,84.90,ARGOS LTD,DISCOUNT STORES,Corporate Parenting,North Care Leaving Team 2,LEAVING CARE GRANTS
Cambridgeshire County Council,18/04/2022,96.09,TESCO STORE 2555,"GROCERY STORES, SUPERMARKETS",LD - In House Provider Services,40 & 44 Russell Street,CATERING PROVISIONS
Cambridgeshire County Council,18/04/2022,100.00,GOOGLE ADS5651672097,ADVERTISING SERVICES,Fostering & Supervised Contact Services,Fostering Recruitment & Assessment Team,RECRUITMENT ADVERTISING
Cambridgeshire County Council,18/04/2022,112.35,AMZNMKTPLACE,MISCELLANEOUS AND SPECIALTY RETAIL STORES,ICT Service (Education),ICT Service Systems Development,
Cambridgeshire County Council,18/04/2022,126.12,TESCO STORES 2228,"GROCERY STORES, SUPERMARKETS",Children's Disability Service,Head of RSS,
Cambridgeshire County Council,18/04/2022,137.97,W M MORRISONS.COM,"GROCERY STORES, SUPERMARKETS",Children's Disability Service,Head of RSS,CATERING PROVISIONS
Cambridgeshire County Council,18/04/2022,171.44,WM MORRISONS STORE PIC,"GROCERY STORES, SUPERMARKETS",Children's Disability Service,Head of RSS,
Cambridgeshire County Council,18/04/2022,400.00,ZOOM.US 888-799-9666,TELECOM INCL PREPAID/RECURRING PHONE SVCS,Cambridgeshire Music,Cambs Music Holding Account,
Cambridgeshire County Council,18/04/2022,562.95,ARGOS LTD,DISCOUNT STORES,Corporate Parenting,North Care Leaving Team 2,LEAVING CARE GRANTS
Cambridgeshire County Council,19/04/2022,4.99,AMZNFREETIME,RECORD SHOPS,Children's Disability Service,Head of RSS,
Cambridgeshire County Council,19/04/2022,11.30,TESCO STORES 3315,"GROCERY STORES, SUPERMARKETS",LD - In House Provider Services,6 St Lukes Close (Respite),
Cambridgeshire County Council,19/04/2022,14.39,ZOOM.US 888-799-9666,TELECOM INCL PREPAID/RECURRING PHONE SVCS,School Improvement Service,Education Health Safety and Wellbeing: PE & Sport Advisor,SUBSCRIPTIONS
Cambridgeshire County Council,19/04/2022,40.44,AMZNMKTPLACE,MISCELLANEOUS AND SPECIALTY RETAIL STORES,ICT Service (Education),ICT Service Systems Development,
Cambridgeshire County Council,19/04/2022,53.98,AMZNMKTPLACE,MISCELLANEOUS AND SPECIALTY RETAIL STORES,ICT Service (Education),ICT Service Systems Development,
Cambridgeshire County Council,19/04/2022,56.14,AMZNMKTPLACE,MISCELLANEOUS AND SPECIALTY RETAIL STORES,ICT Service (Education),ICT Service Systems Development,
Cambridgeshire County Council,19/04/2022,65.03,TESCO STORES 2228,"GROCERY STORES, SUPERMARKETS",Children's Disability Service,Head of RSS,
Cambridgeshire County Council,19/04/2022,90.00,FACEBK  PF5XUCBVC2,ADVERTISING SERVICES,Fostering & Supervised Contact Services,Fostering Recruitment & Assessment Team,RECRUITMENT ADVERTISING
Cambridgeshire County Council,19/04/2022,115.00,AMZNMKTPLACE,MISCELLANEOUS AND SPECIALTY RETAIL STORES,ICT Service (Education),ICT Service Systems Development,
Cambridgeshire County Council,19/04/2022,115.29,AMZNMKTPLACE,MISCELLANEOUS AND SPECIALTY RETAIL STORES,Outdoor Education (includes Grafham Water),Grafham Water Centre,EDUCATIONAL MATERIALS
Cambridgeshire County Council,19/04/2022,"1,487.64",AMZNMKTPLACE,MISCELLANEOUS AND SPECIALTY RETAIL STORES,ICT Service (Education),ICT Service Systems Development,
Cambridgeshire County Council,20/04/2022,0.95,POST OFFICE COUNTER,POSTAL SERVICES-GOVERNMENT ONLY,Corporate Parenting,North Child Looked After Team 1,POSTAGE & CARRIAGE
Cambridgeshire County Council,20/04/2022,2.30,GRAFTON WEST CAR PARK,GOVERNMENT SERVICES-NOT ELSEWHERE CLASSIFIED,Changing Futures & Projects,Housing First,
Cambridgeshire County Council,20/04/2022,4.20,PAYPAL  NAS UK,"ORGANIZATIONS, CHARITABLE AND SOCIAL SERVICES",Targeted Support Service - South,EH East Cambridgeshire District,BOOKS AND MULTIMEDIA SUPPLIES
Cambridgeshire County Council,20/04/2022,4.70,POST OFFICE COUNTER,POSTAL SERVICES-GOVERNMENT ONLY,Coroners,Coroners General,POSTAGE & CARRIAGE
Cambridgeshire County Council,20/04/2022,7.50,TRAINLINE.COM,PASSENGER RAILWAYS,Coroners,Coroners General,GENERAL OFFICE EXPENSES & STATIONERY
Cambridgeshire County Council,20/04/2022,8.48,KFC PETERBOROUGH,FAST FOOD RESTAURANTS,Changing Futures & Projects,Housing First,OTHER SERVICE USER SUPPORT
Cambridgeshire County Council,20/04/2022,11.00,ASDA STORES 4857,"GROCERY STORES, SUPERMARKETS",Outdoor Education (includes Grafham Water),Burwell House Residential Centre,CATERING PROVISIONS
Cambridgeshire County Council,20/04/2022,13.30,POST OFFICE COUNTER,POSTAL SERVICES-GOVERNMENT ONLY,Coroners,Coroners General,POSTAGE & CARRIAGE
Cambridgeshire County Council,20/04/2022,14.15,POST OFFICE COUNTER,POSTAL SERVICES-GOVERNMENT ONLY,Coroners,Coroners General,POSTAGE & CARRIAGE
Cambridgeshire County Council,20/04/2022,14.99,AMAZON MUSIC 2E9JB4RZ4,RECORD SHOPS,Children's Disability Service,Head of RSS,
Cambridgeshire County Council,20/04/2022,20.00,WWW.UTILITA.CO.UK,"UTLTS-ELCTRC, GAS, HEATING OIL, SANITARY, WATER",Family Safeguarding East,Adolescent Team South,ELECTRICITY
Cambridgeshire County Council,20/04/2022,20.00,ASDA GROCERIES ONLINE,"GROCERY STORES, SUPERMARKETS",LD - In House Provider Services,Horizon,SPECIALIST SUPPLIES AND MATERIALS
Cambridgeshire County Council,20/04/2022,20.84,TESCO STORES 5657,"GROCERY STORES, SUPERMARKETS",LD - In House Provider Services,No. 20 Alder Close Respite,CATERING PROVISIONS
Cambridgeshire County Council,20/04/2022,23.95,PAYPAL  NAS UK,"ORGANIZATIONS, CHARITABLE AND SOCIAL SERVICES",Targeted Support Service - South,EH East Cambridgeshire District,BOOKS AND MULTIMEDIA SUPPLIES
Cambridgeshire County Council,20/04/2022,31.05,MAILCHIMP,DIGITAL GOODS MULTI CATEGORY,ICT Service (Education),ICT Service Systems Development,
Cambridgeshire County Council,20/04/2022,35.00,GARLAND ENTERPRISES LI,MISCELLANEOUS GENERAL MERCHANDISE,Changing Futures & Projects,Housing First,
Cambridgeshire County Council,20/04/2022,36.67,TESCO STORES 5657,"GROCERY STORES, SUPERMARKETS",LD - In House Provider Services,No. 20 Alder Close Respite,CATERING PROVISIONS
Cambridgeshire County Council,20/04/2022,42.00,THE EXCHANGE,"EATING PLACES, RESTAURANTS",Alternative Provision and Inclusion,Alternative Education Service & EIO's,
Cambridgeshire County Council,20/04/2022,48.00,TESCO STORE 2555,"GROCERY STORES, SUPERMARKETS",Early Years Service,Trumpington Park Early Years,CATERING PROVISIONS
Cambridgeshire County Council,20/04/2022,49.99,AMZNMKTPLACE,MISCELLANEOUS AND SPECIALTY RETAIL STORES,Virtual School,Virtual School for Care Experienced Children,
Cambridgeshire County Council,20/04/2022,55.99,AMZNMKTPLACE,MISCELLANEOUS AND SPECIALTY RETAIL STORES,School Improvement Service,"Education, Health, Safety and Wellbeing - Outdoor Education",COMPUTER HARDWARE - PURCHASE
Cambridgeshire County Council,20/04/2022,59.51,MCINTOSH?S WORKWEAR,MEN'S AND WOMEN'S CLOTHING STORES,School Improvement Service,Adventure Playground,CLOTHING / UNIFORM
Cambridgeshire County Council,20/04/2022,67.60,ASDA GROCERIES ONLINE,"GROCERY STORES, SUPERMARKETS",LD - In House Provider Services,Horizon,CATERING PROVISIONS
Cambridgeshire County Council,20/04/2022,70.00,AMAZON.CO.UK 2E8Y09RE4,DIRECT MARKETING-OTHER DIRECT MARKETERS/NOT ELSEW.,Safeguarding and Quality Assurance,Childrens Participation,SPECIALIST EQUIPMENT FOR SERVICE DELIV
Cambridgeshire County Council,20/04/2022,70.00,CAM CAB,LIMOUSINES AND TAXICABS,Children's Disability Service,DCSWT Cambridge,
Cambridgeshire County Council,20/04/2022,109.46,WM MORRISONS STORE PIC,"GROCERY STORES, SUPERMARKETS",Children's Disability Service,Head of RSS,
Cambridgeshire County Council,20/04/2022,149.99,AMAZON.CO.UK 2E42N6W64,DIRECT MARKETING-OTHER DIRECT MARKETERS/NOT ELSEW.,School Improvement Service,"Education, Health, Safety and Wellbeing - Outdoor Education",COMPUTER HARDWARE - PURCHASE
Cambridgeshire County Council,21/04/2022,-87.70,GREENHAM TRADING LTD,INDUSTRIAL SUPPLIES NOT ELSEWHERE CLASSIFIED,Park & Ride,Park and Ride Admin,PROTECTIVE CLOTHING
Cambridgeshire County Council,21/04/2022,1.50,ROYAL MAIL CHARGES,POSTAL SERVICES-GOVERNMENT ONLY,Corporate Parenting,South Child Looked After Team 2,POSTAGE & CARRIAGE
Cambridgeshire County Council,21/04/2022,2.90,COSTA COFFEE,FAST FOOD RESTAURANTS,Changing Futures & Projects,Housing First,OTHER SERVICE USER SUPPORT
Cambridgeshire County Council,21/04/2022,6.30,CO-OP GROUP 171471,"GROCERY STORES, SUPERMARKETS",Outdoor Education (includes Grafham Water),Burwell House Residential Centre,CATERING PROVISIONS
Cambridgeshire County Council,21/04/2022,7.99,AMAZON MUSIC 2E4XC2YB4,RECORD SHOPS,Children's Disability Service,Head of RSS,
Cambridgeshire County Council,21/04/2022,10.66,ASDA SUPERSTORE  4981,"GROCERY STORES, SUPERMARKETS",Changing Futures & Projects,Counting Every Adult,OTHER SERVICE USER SUPPORT
Cambridgeshire County Council,21/04/2022,10.99,AMZNMKTPLACE,MISCELLANEOUS AND SPECIALTY RETAIL STORES,ICT Service (Education),ICT Service Systems Development,
Cambridgeshire County Council,21/04/2022,12.10,WEST END DIY,HARDWARE STORES,LD - In House Provider Services,IHPS - Tennyson Lodge,GROUNDS MAINTENANCE
Cambridgeshire County Council,21/04/2022,15.54,TENPIN.CO.UK,BOWLING ALLEYS,Children's Disability Service,Head of RSS,
Cambridgeshire County Council,21/04/2022,16.99,AMAZON.CO.UK 2P4Y31CW4,DIRECT MARKETING-OTHER DIRECT MARKETERS/NOT ELSEW.,LD - In House Provider Services,Horizon,SPECIALIST SUPPLIES AND MATERIALS
Cambridgeshire County Council,21/04/2022,17.97,AMZNMKTPLACE,MISCELLANEOUS AND SPECIALTY RETAIL STORES,ICT Service (Education),ICT Service Systems Development,
Cambridgeshire County Council,21/04/2022,18.55,ROYAL MAIL ONLINE SHOP,POSTAL SERVICES-GOVERNMENT ONLY,Family Safeguarding East,Fenland Children's Team 2,
Cambridgeshire County Council,21/04/2022,21.63,WWW.EATNBOWL.CO.UK,BOWLING ALLEYS,Children's Disability Service,Head of RSS,OTHER SERVICE USER SUPPORT
Cambridgeshire County Council,21/04/2022,24.49,AMZNMKTPLACE,MISCELLANEOUS AND SPECIALTY RETAIL STORES,ICT Service (Education),ICT Service Systems Development,
Cambridgeshire County Council,21/04/2022,26.99,AMZNMKTPLACE,MISCELLANEOUS AND SPECIALTY RETAIL STORES,ICT Service (Education),ICT Service Systems Development,
Cambridgeshire County Council,21/04/2022,30.00,ASDA STORES LTD,"GROCERY STORES, SUPERMARKETS",Corporate Parenting,North Care Leaving Team 2,GRANTS&SUPPORT FOR OTHER SERVICE USERS
Cambridgeshire County Council,21/04/2022,30.00,ASDA STORES LTD,"GROCERY STORES, SUPERMARKETS",Corporate Parenting,North Care Leaving Team 2,GRANTS&SUPPORT FOR OTHER SERVICE USERS
Cambridgeshire County Council,21/04/2022,30.00,TESCO GIFT CARD,"GROCERY STORES, SUPERMARKETS",Corporate Parenting,North Care Leaving Team 2,GRANTS&SUPPORT FOR OTHER SERVICE USERS
Cambridgeshire County Council,21/04/2022,30.49,AMZNMKTPLACE,MISCELLANEOUS AND SPECIALTY RETAIL STORES,ICT Service (Education),ICT Service Systems Development,
Cambridgeshire County Council,21/04/2022,32.74,AMZNMKTPLACE,MISCELLANEOUS AND SPECIALTY RETAIL STORES,LD - In House Provider Services,"Larkfield, Ely",EQUIPMENT AND TOOLS
Cambridgeshire County Council,21/04/2022,40.00,WWW.ICO.ORG.UK,GOVERNMENT SERVICES-NOT ELSEWHERE CLASSIFIED,Information Management,Data Protection,
Cambridgeshire County Council,21/04/2022,44.44,TESCO STORES 2470,"GROCERY STORES, SUPERMARKETS",Family Safeguarding East,Adolescent Team South,LEAVING CARE GRANTS
Cambridgeshire County Council,21/04/2022,48.98,AMZNMKTPLACE,MISCELLANEOUS AND SPECIALTY RETAIL STORES,ICT Service (Education),ICT Service Systems Development,
Cambridgeshire County Council,21/04/2022,49.00,HM PASSPORT OFFICE,GOVERNMENT SERVICES-NOT ELSEWHERE CLASSIFIED,Corporate Parenting,South Child Looked After Team 2,BOOKS AND MULTIMEDIA SUPPLIES
Cambridgeshire County Council,21/04/2022,49.00,HM PASSPORT OFFICE,GOVERNMENT SERVICES-NOT ELSEWHERE CLASSIFIED,Corporate Parenting,South Child Looked After Team 2,BOOKS AND MULTIMEDIA SUPPLIES
Cambridgeshire County Council,21/04/2022,60.00,TESCO GIFT CARD,"GROCERY STORES, SUPERMARKETS",Corporate Parenting,North Care Leaving Team 2,GRANTS&SUPPORT FOR OTHER SERVICE USERS
Cambridgeshire County Council,21/04/2022,69.00,AMZNMKTPLACE AMAZON.CO,MISCELLANEOUS AND SPECIALTY RETAIL STORES,ICT Service (Education),ICT Service Systems Development,
Cambridgeshire County Council,21/04/2022,70.00,CAM CAB,LIMOUSINES AND TAXICABS,Children's Disability Service,Disability Referral & Access Team,
Cambridgeshire County Council,21/04/2022,100.62,TALKTALK BUSINESS,COMPUTER NETWORK/INFORMATION SERVICES,Park & Ride,Park and Ride Admin,TELEPHONE COSTS
Cambridgeshire County Council,21/04/2022,179.70,AMZNMKTPLACE,MISCELLANEOUS AND SPECIALTY RETAIL STORES,Early Years Service,Trumpington Park Early Years,EDUCATIONAL EQUIPMENT
Cambridgeshire County Council,21/04/2022,297.00,WWW.GREYSOFELY.CO.UK,LIMOUSINES AND TAXICABS,Targeted Support Service - South,EH East Cambridgeshire District,OTHER TRAVEL EXPENSES
Cambridgeshire County Council,21/04/2022,297.00,WWW.GREYSOFELY.CO.UK,LIMOUSINES AND TAXICABS,Targeted Support Service - South,EH East Cambridgeshire District,OTHER TRAVEL EXPENSES
Cambridgeshire County Council,22/04/2022,2.07,APPLE.COM/BILL,RECORD SHOPS,ICT Service (Education),ICT Service Systems Development,
Cambridgeshire County Council,22/04/2022,2.20,ASDA STORES 4857,"GROCERY STORES, SUPERMARKETS",Outdoor Education (includes Grafham Water),Burwell House Residential Centre,CATERING PROVISIONS
Cambridgeshire County Council,22/04/2022,2.30,AMAZON.CO.UK 2P50P8ZD4,DIRECT MARKETING-OTHER DIRECT MARKETERS/NOT ELSEW.,Outdoor Education (includes Grafham Water),Burwell House Residential Centre,CATERING PROVISIONS
Cambridgeshire County Council,22/04/2022,2.90,APPLE.COM/BILL,DIGITAL GOODS MULTI CATEGORY,ICT Service (Education),ICT Service Systems Development,
Cambridgeshire County Council,22/04/2022,2.90,APPLE.COM/BILL,DIGITAL GOODS MULTI CATEGORY,ICT Service (Education),ICT Service Systems Development,
Cambridgeshire County Council,22/04/2022,4.50,GREGGS PLC,"EATING PLACES, RESTAURANTS",Changing Futures & Projects,Housing First,OTHER SERVICE USER SUPPORT
Cambridgeshire County Council,22/04/2022,7.20,BALS GENERAL STORE,NEWS DEALERS AND NEWSSTANDS,Changing Futures & Projects,Counting Every Adult,OTHER SERVICE USER SUPPORT
Cambridgeshire County Council,22/04/2022,7.46,AMZNMKTPLACE,MISCELLANEOUS AND SPECIALTY RETAIL STORES,"Property, Facilities Management and Building Compliance",Shire Hall Area,BUILDING REPAIR AND MAINTENANCE
Cambridgeshire County Council,22/04/2022,7.49,APPLE.COM/BILL,DIGITAL GOODS AUDIOVISUAL MEDIA,ICT Service (Education),ICT Service Systems Development,
Cambridgeshire County Council,22/04/2022,7.98,AMZNMKTPLACE AMAZON.CO,MISCELLANEOUS AND SPECIALTY RETAIL STORES,School Improvement Service,"Education, Health, Safety and Wellbeing - PSHE",GENERAL OFFICE EXPENSES & STATIONERY
Cambridgeshire County Council,22/04/2022,7.99,AMAZON PRIME 2P8BA04L4,DIRECT MARKETING-CONTINUITY/SUBSCRIPTION MERCHANTS,Domestic Abuse and Sexual Violence Service,Domestic Violence Unit,
Cambridgeshire County Council,22/04/2022,9.30,STARBUCKS COFFEE,FAST FOOD RESTAURANTS,Changing Futures & Projects,Counting Every Adult,
Cambridgeshire County Council,22/04/2022,10.00,TESCO STORES 2228,"GROCERY STORES, SUPERMARKETS",Changing Futures & Projects,Housing First,OTHER SERVICE USER SUPPORT
Cambridgeshire County Council,22/04/2022,10.00,APPLE.COM/UK,ELECTRONIC SALES,ICT Service (Education),ICT Service Systems Development,
Cambridgeshire County Council,22/04/2022,11.20,STAGECOACH SERVICE,BUS LINES,Family Safeguarding West,Family Safeguarding Hunts and Fenland,ASYLUM SEEKERS
Cambridgeshire County Council,22/04/2022,12.58,TESCO STORES 2228,"GROCERY STORES, SUPERMARKETS",Changing Futures & Projects,Housing First,OTHER SERVICE USER SUPPORT
Cambridgeshire County Council,22/04/2022,12.99,ARGOS PETERBOROUGH,DISCOUNT STORES,Changing Futures & Projects,Housing First,OTHER SERVICE USER SUPPORT
Cambridgeshire County Council,22/04/2022,13.92,AMZNMKTPLACE AMAZON.CO,MISCELLANEOUS AND SPECIALTY RETAIL STORES,Children's Disability Service,Head of RSS,
Cambridgeshire County Council,22/04/2022,13.98,AMZNMKTPLACE,MISCELLANEOUS AND SPECIALTY RETAIL STORES,Early Years Service,Trumpington Park Early Years,EDUCATIONAL EQUIPMENT
Cambridgeshire County Council,22/04/2022,15.00,WEST NORTHAMPTONSHIRE,GOVERNMENT SERVICES-NOT ELSEWHERE CLASSIFIED,0-19 Organisation & Planning,Attendance and Behaviour,PROFESSIONAL FEES AND HIRED SERVICES
Cambridgeshire County Council,22/04/2022,15.00,WEST NORTHAMPTONSHIRE,GOVERNMENT SERVICES-NOT ELSEWHERE CLASSIFIED,0-19 Organisation & Planning,Attendance and Behaviour,PROFESSIONAL FEES AND HIRED SERVICES
Cambridgeshire County Council,22/04/2022,15.00,WEST NORTHAMPTONSHIRE,GOVERNMENT SERVICES-NOT ELSEWHERE CLASSIFIED,0-19 Organisation & Planning,Attendance and Behaviour,PROFESSIONAL FEES AND HIRED SERVICES
Cambridgeshire County Council,22/04/2022,20.00,MARCH QUALITY MEATS,"FREEZER, LOCKER MEAT PROVISIONERS",Cambridgeshire Skills,Cambridgeshire Skills - March Community Centre - Staff,
Cambridgeshire County Council,22/04/2022,21.57,AMZNMKTPLACE,MISCELLANEOUS AND SPECIALTY RETAIL STORES,Outdoor Education (includes Grafham Water),Grafham Water Centre,GROUNDS MAINTENANCE
Cambridgeshire County Council,22/04/2022,24.45,TRAINLINE,PASSENGER RAILWAYS,"Communities, Employment & Skills",YS - National Citizen Service,PUBLIC TRANSPORT FARES
Cambridgeshire County Council,22/04/2022,24.45,TRAINLINE,PASSENGER RAILWAYS,"Communities, Employment & Skills",YS - National Citizen Service,PUBLIC TRANSPORT FARES
Cambridgeshire County Council,22/04/2022,25.00,APPLE.COM/UK,ELECTRONIC SALES,ICT Service (Education),ICT Service Systems Development,
Cambridgeshire County Council,22/04/2022,25.00,APPLE.COM/UK,ELECTRONIC SALES,ICT Service (Education),ICT Service Systems Development,
Cambridgeshire County Council,22/04/2022,25.00,APPLE.COM/UK,ELECTRONIC SALES,ICT Service (Education),ICT Service Systems Development,
Cambridgeshire County Council,22/04/2022,25.00,APPLE.COM/UK,ELECTRONIC SALES,ICT Service (Education),ICT Service Systems Development,
Cambridgeshire County Council,22/04/2022,25.00,APPLE.COM/UK,ELECTRONIC SALES,ICT Service (Education),ICT Service Systems Development,
Cambridgeshire County Council,22/04/2022,25.00,APPLE.COM/UK,ELECTRONIC SALES,ICT Service (Education),ICT Service Systems Development,
Cambridgeshire County Council,22/04/2022,25.00,APPLE.COM/UK,ELECTRONIC SALES,ICT Service (Education),ICT Service Systems Development,
Cambridgeshire County Council,22/04/2022,25.00,APPLE.COM/UK,ELECTRONIC SALES,ICT Service (Education),ICT Service Systems Development,
Cambridgeshire County Council,22/04/2022,25.00,APPLE.COM/UK,ELECTRONIC SALES,ICT Service (Education),ICT Service Systems Development,
Cambridgeshire County Council,22/04/2022,26.00,SPORTSDIRECT.COM,SPORTING GOODS STORES,School Improvement Service,Adventure Playground,CLOTHING / UNIFORM
Cambridgeshire County Council,22/04/2022,33.15,AMZNMKTPLACE,MISCELLANEOUS AND SPECIALTY RETAIL STORES,Children's Disability Service,Head of RSS,
Cambridgeshire County Council,22/04/2022,36.00,GEN REGISTER OFFICE,GOVERNMENT SERVICES-NOT ELSEWHERE CLASSIFIED,Corporate Parenting,North Care Leaving Team 2,GRANTS&SUPPORT FOR OTHER SERVICE USERS
Cambridgeshire County Council,22/04/2022,38.54,AMZNMKTPLACE,MISCELLANEOUS AND SPECIALTY RETAIL STORES,Children's Disability Service,Head of RSS,
Cambridgeshire County Council,22/04/2022,39.99,TESCO STORES 2228,"GROCERY STORES, SUPERMARKETS",Changing Futures & Projects,Counting Every Adult,
Cambridgeshire County Council,22/04/2022,40.98,AMZNMKTPLACE,MISCELLANEOUS AND SPECIALTY RETAIL STORES,Outdoor Education (includes Grafham Water),Grafham Water Centre,EDUCATIONAL MATERIALS
Cambridgeshire County Council,22/04/2022,41.99,AMZNMKTPLACE,MISCELLANEOUS AND SPECIALTY RETAIL STORES,Children's Disability Service,Head of RSS,
Cambridgeshire County Council,22/04/2022,49.99,AMZNMKTPLACE AMAZON.CO,MISCELLANEOUS AND SPECIALTY RETAIL STORES,ICT Service (Education),ICT Service Systems Development,
Cambridgeshire County Council,22/04/2022,50.00,APPLE.COM/UK,ELECTRONIC SALES,ICT Service (Education),ICT Service Systems Development,
Cambridgeshire County Council,22/04/2022,50.00,APPLE.COM/UK,ELECTRONIC SALES,ICT Service (Education),ICT Service Systems Development,
Cambridgeshire County Council,22/04/2022,50.00,APPLE.COM/UK,ELECTRONIC SALES,ICT Service (Education),ICT Service Systems Development,
Cambridgeshire County Council,22/04/2022,50.00,APPLE.COM/UK,ELECTRONIC SALES,ICT Service (Education),ICT Service Systems Development,
Cambridgeshire County Council,22/04/2022,50.00,APPLE.COM/UK,ELECTRONIC SALES,ICT Service (Education),ICT Service Systems Development,
Cambridgeshire County Council,22/04/2022,55.83,AMZNMKTPLACE,MISCELLANEOUS AND SPECIALTY RETAIL STORES,Cambridgeshire Skills,Cambridgeshire Skills - March Community Centre - Staff,
Cambridgeshire County Council,22/04/2022,56.83,AMZNMKTPLACE AMAZON.CO,MISCELLANEOUS AND SPECIALTY RETAIL STORES,Targeted Support Service - North,EH Child and Family Centre - Wisbech,EDUCATIONAL MATERIALS
Cambridgeshire County Council,22/04/2022,69.99,AMAZON.CO.UK 2P3H06F04,DIRECT MARKETING-OTHER DIRECT MARKETERS/NOT ELSEW.,LD - In House Provider Services,Horizon,SPECIALIST SUPPLIES AND MATERIALS
Cambridgeshire County Council,22/04/2022,79.65,TSGN,PASSENGER RAILWAYS,Parking Enforcement,Civil Parking Enforcement,OTHER TRAVEL EXPENSES
Cambridgeshire County Council,22/04/2022,85.00,PARK INN BY RADISSON,PARK INN BY RADISSON,Domestic Abuse and Sexual Violence Service,Domestic Violence Unit,
Cambridgeshire County Council,22/04/2022,95.30,FORDHAM SERVICE STATIO,SERVICE STATIONS WITH OR WITHOUT ANCILLARY SERVICE,Outdoor Education (includes Grafham Water),Burwell House Residential Centre,CATERING EQUIPMENT-PURCHASES
Cambridgeshire County Council,22/04/2022,100.12,TESCO STORES 2228,"GROCERY STORES, SUPERMARKETS",Children's Disability Service,Head of RSS,
Cambridgeshire County Council,22/04/2022,105.18,AMZNMKTPLACE,MISCELLANEOUS AND SPECIALTY RETAIL STORES,Cambridgeshire Skills,Cambridgeshire Skills - March Community Centre - Staff,
Cambridgeshire County Council,22/04/2022,205.79,TESCO STORE 2555,"GROCERY STORES, SUPERMARKETS",LD - In House Provider Services,40 & 44 Russell Street,CATERING PROVISIONS
Cambridgeshire County Council,25/04/2022,-183.32,APPLE.COM/BILL,RECORD SHOPS,ICT Service (Education),ICT Service Systems Development,
Cambridgeshire County Council,25/04/2022,-7.50,GEN REGISTER OFFICE,GOVERNMENT SERVICES-NOT ELSEWHERE CLASSIFIED,Family Safeguarding East,East Cambs Children's Team 1,GENERAL OFFICE EXPENSES & STATIONERY
Cambridgeshire County Council,25/04/2022,-3.63,ASDA GROCERIES ONLINE,"GROCERY STORES, SUPERMARKETS",Outdoor Education (includes Grafham Water),Burwell House Residential Centre,CATERING PROVISIONS
Cambridgeshire County Council,25/04/2022,-0.37,ASDA GROCERIES ONLINE,"GROCERY STORES, SUPERMARKETS",Outdoor Education (includes Grafham Water),Burwell House Residential Centre,CATERING PROVISIONS
Cambridgeshire County Council,25/04/2022,2.20,AMAZON.CO.UK 2P43N8T64,DIRECT MARKETING-OTHER DIRECT MARKETERS/NOT ELSEW.,Outdoor Education (includes Grafham Water),Burwell House Residential Centre,CATERING PROVISIONS
Cambridgeshire County Council,25/04/2022,2.50,TFL TRAVEL CH,"TRANSPRTN-SUBRBN & LOCAL COMTR PSNGR, INCL FERRIES",Parking Enforcement,Civil Parking Enforcement,OTHER TRAVEL EXPENSES
Cambridgeshire County Council,25/04/2022,4.99,THANKBOX,DIGITAL GOODS AUDIOVISUAL MEDIA,Early Years Service,Early Years Workforce Development,EDUCATIONAL MATERIALS
Cambridgeshire County Council,25/04/2022,5.98,OXFAM,"ORGANIZATIONS, CHARITABLE AND SOCIAL SERVICES",Changing Futures & Projects,Housing First,OTHER SERVICE USER SUPPORT
Cambridgeshire County Council,25/04/2022,6.34,FASTHOSTS,COMPUTER NETWORK/INFORMATION SERVICES,ICT Service (Education),ICT Service Systems Development,
Cambridgeshire County Council,25/04/2022,7.50,POST OFFICE COUNTER,POSTAL SERVICES-GOVERNMENT ONLY,Coroners,Coroners General,POSTAGE & CARRIAGE
Cambridgeshire County Council,25/04/2022,7.99,AMAZON PRIME 2P5PN0E64,DIRECT MARKETING-CONTINUITY/SUBSCRIPTION MERCHANTS,Children's Disability Service,Head of RSS,SUBSCRIPTIONS
Cambridgeshire County Council,25/04/2022,8.00,W M MORRISONS.COM,"GROCERY STORES, SUPERMARKETS",Children's Disability Service,Head of RSS,SUBSCRIPTIONS
Cambridgeshire County Council,25/04/2022,8.12,ALDI,"GROCERY STORES, SUPERMARKETS",Changing Futures & Projects,Housing First,OTHER SERVICE USER SUPPORT
Cambridgeshire County Council,25/04/2022,9.99,AMZNMKTPLACE,MISCELLANEOUS AND SPECIALTY RETAIL STORES,Outdoor Education (includes Grafham Water),Grafham Water Centre,BUILDING REPAIR AND MAINTENANCE
Cambridgeshire County Council,25/04/2022,14.00,GEN REGISTER OFFICE,GOVERNMENT SERVICES-NOT ELSEWHERE CLASSIFIED,Corporate Parenting,North Care Leaving Team 2,
Cambridgeshire County Council,25/04/2022,14.00,POST OFFICE COUNTER,POSTAL SERVICES-GOVERNMENT ONLY,Coroners,Coroners General,POSTAGE & CARRIAGE
Cambridgeshire County Council,25/04/2022,15.00,WEST NORTHAMPTONSHIRE,GOVERNMENT SERVICES-NOT ELSEWHERE CLASSIFIED,0-19 Organisation & Planning,Attendance and Behaviour,PROFESSIONAL FEES AND HIRED SERVICES
Cambridgeshire County Council,25/04/2022,15.00,WEST NORTHAMPTONSHIRE,GOVERNMENT SERVICES-NOT ELSEWHERE CLASSIFIED,0-19 Organisation & Planning,Attendance and Behaviour,PROFESSIONAL FEES AND HIRED SERVICES
Cambridgeshire County Council,25/04/2022,15.00,WEST NORTHAMPTONSHIRE,GOVERNMENT SERVICES-NOT ELSEWHERE CLASSIFIED,0-19 Organisation & Planning,Attendance and Behaviour,PROFESSIONAL FEES AND HIRED SERVICES
Cambridgeshire County Council,25/04/2022,15.00,WEST NORTHAMPTONSHIRE,GOVERNMENT SERVICES-NOT ELSEWHERE CLASSIFIED,0-19 Organisation & Planning,Attendance and Behaviour,PROFESSIONAL FEES AND HIRED SERVICES
Cambridgeshire County Council,25/04/2022,15.00,WEST NORTHAMPTONSHIRE,GOVERNMENT SERVICES-NOT ELSEWHERE CLASSIFIED,0-19 Organisation & Planning,Attendance and Behaviour,PROFESSIONAL FEES AND HIRED SERVICES
Cambridgeshire County Council,25/04/2022,15.00,WEST NORTHAMPTONSHIRE,GOVERNMENT SERVICES-NOT ELSEWHERE CLASSIFIED,0-19 Organisation & Planning,Attendance and Behaviour,PROFESSIONAL FEES AND HIRED SERVICES
Cambridgeshire County Council,25/04/2022,15.00,WEST NORTHAMPTONSHIRE,GOVERNMENT SERVICES-NOT ELSEWHERE CLASSIFIED,0-19 Organisation & Planning,Attendance and Behaviour,PROFESSIONAL FEES AND HIRED SERVICES
Cambridgeshire County Council,25/04/2022,16.84,AMZNMKTPLACE AMAZON.CO,MISCELLANEOUS AND SPECIALTY RETAIL STORES,Outdoor Education (includes Grafham Water),Burwell House Residential Centre,EDUCATIONAL MATERIALS
Cambridgeshire County Council,25/04/2022,17.38,AMZNMKTPLACE AMAZON.CO,MISCELLANEOUS AND SPECIALTY RETAIL STORES,LD - In House Provider Services,40 & 44 Russell Street,CLEANING AND DOMESTIC SUPPLIES
Cambridgeshire County Council,25/04/2022,18.51,TESCO STORES 5292,"GROCERY STORES, SUPERMARKETS",LD - In House Provider Services,6 St Lukes Close (Respite),
Cambridgeshire County Council,25/04/2022,19.96,AMZNMKTPLACE,MISCELLANEOUS AND SPECIALTY RETAIL STORES,Children's Disability Service,Head of RSS,
Cambridgeshire County Council,25/04/2022,23.78,ONTOPUP.COM,"ORGANIZATIONS, MEMBERSHIP-NOT ELSEWHERE CLASSIFIED",Targeted Support Service - South,EH Child and Family Centre - East Cambs,
Cambridgeshire County Council,25/04/2022,24.00,HALFORDS ON LINE,"AUTOMOTIVE PARTS, ACCESSORIES STORES",Changing Futures & Projects,Housing First,OTHER SERVICE USER SUPPORT
Cambridgeshire County Council,25/04/2022,24.99,SPORTSDIRECT 54,SPORTING GOODS STORES,Changing Futures & Projects,Counting Every Adult,OTHER SERVICE USER SUPPORT
Cambridgeshire County Council,25/04/2022,33.23,TESCO STORES 5657,"GROCERY STORES, SUPERMARKETS",LD - In House Provider Services,No. 20 Alder Close Respite,CATERING PROVISIONS
Cambridgeshire County Council,25/04/2022,34.85,THETRAINLINE.COM,PASSENGER RAILWAYS,Corporate Parenting,North Child Looked After Team 1,GRANTS&SUPPORT FOR OTHER SERVICE USERS
Cambridgeshire County Council,25/04/2022,41.78,THETRAINLINE.COM,PASSENGER RAILWAYS,Corporate Parenting,North Child Looked After Team 1,GRANTS&SUPPORT FOR OTHER SERVICE USERS
Cambridgeshire County Council,25/04/2022,44.99,CANON EUROPA NV,CAMERA AND PHOTOGRAPHIC SUPPLY STORES,LD - In House Provider Services,Horizon,SPECIALIST EQUIPMENT FOR SERVICE DELIV
Cambridgeshire County Council,25/04/2022,45.93,AMZNMKTPLACE,MISCELLANEOUS AND SPECIALTY RETAIL STORES,Targeted Support Service - North,EH Child and Family Centre - Wisbech,EDUCATIONAL MATERIALS
Cambridgeshire County Council,25/04/2022,47.61,AMZNMKTPLACE,MISCELLANEOUS AND SPECIALTY RETAIL STORES,Children's Disability Service,Head of RSS,
Cambridgeshire County Council,25/04/2022,49.90,AMZNMKTPLACE,MISCELLANEOUS AND SPECIALTY RETAIL STORES,Targeted Support Service - North,EH Child and Family Centre - Wisbech,EDUCATIONAL MATERIALS
Cambridgeshire County Council,25/04/2022,49.98,AMZNMKTPLACE AMAZON.CO,MISCELLANEOUS AND SPECIALTY RETAIL STORES,Cultural Services,The Library Presents,
Cambridgeshire County Council,25/04/2022,52.86,ASDA GROCERIES ONLINE,"GROCERY STORES, SUPERMARKETS",Outdoor Education (includes Grafham Water),Burwell House Residential Centre,CATERING PROVISIONS
Cambridgeshire County Council,25/04/2022,56.05,THETRAINLINE.COM,PASSENGER RAILWAYS,Corporate Parenting,North Child Looked After Team 1,VEHICLE AND PLANT HIRE
Cambridgeshire County Council,25/04/2022,62.67,TRAINLINE.COM,PASSENGER RAILWAYS,Corporate Parenting,North Care Leaving Team 2,
Cambridgeshire County Council,25/04/2022,67.50,PAPER CHAIN,"GIFT, CARD, NOVELTY AND SOUVENIR SHOPS",Cambridgeshire Skills,Cambridgeshire Skills - March Community Centre - Staff,
Cambridgeshire County Council,25/04/2022,72.95,ARGOS LTD,DISCOUNT STORES,Corporate Parenting,North Child Looked After Team 1,LEAVING CARE GRANTS
Cambridgeshire County Council,25/04/2022,83.84,WM MORRISONS STORE PIC,"GROCERY STORES, SUPERMARKETS",Children's Disability Service,Head of RSS,
Cambridgeshire County Council,25/04/2022,95.00,PSHE ASSOCIATION,"ORGANIZATIONS, CHARITABLE AND SOCIAL SERVICES",School Improvement Service,"Education, Health, Safety and Wellbeing - PSHE",STAFF TRAINING & DEVELOPMENT
Cambridgeshire County Council,25/04/2022,101.62,TALKTALK BUSINESS,COMPUTER NETWORK/INFORMATION SERVICES,Park & Ride,Park and Ride Admin,TELEPHONE COSTS
Cambridgeshire County Council,25/04/2022,111.99,CARTRIDGEPEOPLE.COM,STATIONERY/OFFICE SUPPLIES/PRINTING & WRITING PAP.,Early Years Service,Trumpington Park Early Years,GENERAL OFFICE EXPENSES & STATIONERY
Cambridgeshire County Council,25/04/2022,137.19,W M MORRISONS.COM,"GROCERY STORES, SUPERMARKETS",Children's Disability Service,Head of RSS,CATERING PROVISIONS
Cambridgeshire County Council,25/04/2022,139.99,ARGOS LTD,DISCOUNT STORES,Changing Futures & Projects,Counting Every Adult,
Cambridgeshire County Council,25/04/2022,145.00,POST OFFICE COUNTER,POSTAL SERVICES-GOVERNMENT ONLY,0-19 Organisation & Planning,Attendance and Behaviour,POSTAGE & CARRIAGE
Cambridgeshire County Council,25/04/2022,200.00,APPLE.COM/UK,ELECTRONIC SALES,ICT Service (Education),ICT Service Systems Development,
Cambridgeshire County Council,25/04/2022,272.24,FACEBK 7APGGDBUK2,ADVERTISING SERVICES,Human Resources,Social Work Recruit & Retain,RECRUITMENT ADVERTISING
Cambridgeshire County Council,25/04/2022,337.59,BRIGHTGAUGE SOFTWARE,"COMP PROGRAMING,DATA PRCSNG,INTGRTD SYS DSGN SRVS",ICT Service (Education),ICT Service Systems Development,
Cambridgeshire County Council,25/04/2022,339.28,GOOGLE ADS9460467845,ADVERTISING SERVICES,Human Resources,Social Work Recruit & Retain,RECRUITMENT COSTS
Cambridgeshire County Council,25/04/2022,406.80,ROYAL MAIL,POSTAL SERVICES-GOVERNMENT ONLY,Coroners,Coroners General,POSTAGE & CARRIAGE
Cambridgeshire County Council,25/04/2022,406.80,ROYAL MAIL,POSTAL SERVICES-GOVERNMENT ONLY,Coroners,Coroners General,POSTAGE & CARRIAGE
Cambridgeshire County Council,25/04/2022,"1,210.50",TEAMVIEWER GMBH,COMPUTER SOFTWARE STORES,Traffic Management,Signals and Systems,STAFF SUBSISTENCE
Cambridgeshire County Council,26/04/2022,-23.78,ONTOPUP.COM,"ORGANIZATIONS, MEMBERSHIP-NOT ELSEWHERE CLASSIFIED",Targeted Support Service - South,EH Child and Family Centre - East Cambs,SPECIALIST EQUIPMENT FOR SERVICE DELIV
Cambridgeshire County Council,26/04/2022,-3.94,ASDA GROCERIES ONLINE,"GROCERY STORES, SUPERMARKETS",LD - In House Provider Services,Horizon,CATERING PROVISIONS
Cambridgeshire County Council,26/04/2022,-1.60,ASDA GROCERIES ONLINE,"GROCERY STORES, SUPERMARKETS",LD - In House Provider Services,Horizon,CATERING PROVISIONS
Cambridgeshire County Council,26/04/2022,-0.80,AMZNMKTPLACE,MISCELLANEOUS AND SPECIALTY RETAIL STORES,Children's Disability Service,Head of RSS,
Cambridgeshire County Council,26/04/2022,2.00,SUMUP   DIAMOND HAMPE,"GROCERY STORES, SUPERMARKETS",Changing Futures & Projects,Housing First,OTHER SERVICE USER SUPPORT
Cambridgeshire County Council,26/04/2022,3.00,HM LAND REGISTRY - ONL,GOVERNMENT SERVICES-NOT ELSEWHERE CLASSIFIED,Shared Services,Debt Team,DEBT RECOVERY COSTS
Cambridgeshire County Council,26/04/2022,5.90,WILDFROST CAFE RAMSEY,"EATING PLACES, RESTAURANTS",Changing Futures & Projects,Housing First,STAFF SUBSISTENCE
Cambridgeshire County Council,26/04/2022,6.00,WILKO RETAIL LIMITED,MISCELLANEOUS GENERAL MERCHANDISE,Changing Futures & Projects,Housing First,OTHER SERVICE USER SUPPORT
Cambridgeshire County Council,26/04/2022,6.59,SUMUP   DIAMOND HAMPE,"GROCERY STORES, SUPERMARKETS",Changing Futures & Projects,Housing First,STAFF SUBSISTENCE
Cambridgeshire County Council,26/04/2022,8.50,PPOINT_ LONDIS MILL RO,"GROCERY STORES, SUPERMARKETS",Changing Futures & Projects,Housing First,OTHER SERVICE USER SUPPORT
Cambridgeshire County Council,26/04/2022,12.49,AMAZON.CO.UK 2P4445PE4,DIRECT MARKETING-OTHER DIRECT MARKETERS/NOT ELSEW.,LD - In House Provider Services,40 & 44 Russell Street,GENERAL OFFICE EXPENSES & STATIONERY
Cambridgeshire County Council,26/04/2022,13.99,AMZNMKTPLACE,MISCELLANEOUS AND SPECIALTY RETAIL STORES,Cambridgeshire Skills,Cambridgeshire Skills - March Community Centre - Staff,
Cambridgeshire County Council,26/04/2022,14.00,APCOA,AUTOMOBILE PARKING LOTS AND GARAGES,Traffic Management,Traffic,
Cambridgeshire County Council,26/04/2022,14.99,AMZNMKTPLACE AMAZON.CO,MISCELLANEOUS AND SPECIALTY RETAIL STORES,Outdoor Education (includes Grafham Water),CEES Stibbington Centre,GENERAL OFFICE EXPENSES & STATIONERY
Cambridgeshire County Council,26/04/2022,17.32,ASDA GROCERIES ONLINE,"GROCERY STORES, SUPERMARKETS",LD - In House Provider Services,Horizon,SPECIALIST SUPPLIES AND MATERIALS
Cambridgeshire County Council,26/04/2022,23.78,ONTOPUP.COM,"ORGANIZATIONS, MEMBERSHIP-NOT ELSEWHERE CLASSIFIED",Changing Futures & Projects,Housing First,OTHER SERVICE USER SUPPORT
Cambridgeshire County Council,26/04/2022,29.98,EUROFLORIST UK LTD,FLORISTS,Fostering & Supervised Contact Services,Fostering Support and Supervision,SUPPORT AND GRANTS TO FOSTER CARERS
Cambridgeshire County Council,26/04/2022,35.00,WWW.CAMCAB.CO.UK,LIMOUSINES AND TAXICABS,Children's Disability Service,Disability Referral & Access Team,
Cambridgeshire County Council,26/04/2022,35.00,WWW.CAMCAB.CO.UK,LIMOUSINES AND TAXICABS,Children's Disability Service,Disability Referral & Access Team,
Cambridgeshire County Council,26/04/2022,68.00,HUNTS TAXIS LTD,LIMOUSINES AND TAXICABS,"Communities, Employment & Skills",Communities Service - Management,OTHER TRAVEL EXPENSES
Cambridgeshire County Council,26/04/2022,74.38,TESCO STORE 2555,"GROCERY STORES, SUPERMARKETS",Early Years Service,Trumpington Park Early Years,CATERING PROVISIONS
Cambridgeshire County Council,26/04/2022,136.00,ROYAL MAIL ONLINE SHOP,POSTAL SERVICES-GOVERNMENT ONLY,Planning and Sustainable Growth,Travel Plan +,GENERAL OFFICE EXPENSES & STATIONERY
Cambridgeshire County Council,26/04/2022,159.00,TVLICENSING.CO.UK,"CONSULTING, MANAGEMENT, AND PUBLIC RELATIONS SVCS",Outdoor Education (includes Grafham Water),Burwell House Residential Centre,BUILDING REPAIR AND MAINTENANCE
Cambridgeshire County Council,26/04/2022,163.28,TESCO STORES 2228,"GROCERY STORES, SUPERMARKETS",Children's Disability Service,Head of RSS,
Cambridgeshire County Council,26/04/2022,176.21,ASDA GROCERIES ONLINE,"GROCERY STORES, SUPERMARKETS",LD - In House Provider Services,Horizon,CATERING PROVISIONS
Cambridgeshire County Council,26/04/2022,200.00,FACEBK  LQXJJBTV52,ADVERTISING SERVICES,Communication and Information,Communication and Information,
Cambridgeshire County Council,26/04/2022,220.00,WWW.CIPFA.ORG.UK,"ORGANIZATIONS, MEMBERSHIP-NOT ELSEWHERE CLASSIFIED",Professional Finance,Cipfa Trainees,EXAM FEES
Cambridgeshire County Council,26/04/2022,220.00,WWW.CIPFA.ORG.UK,"ORGANIZATIONS, MEMBERSHIP-NOT ELSEWHERE CLASSIFIED",Professional Finance,Cipfa Trainees,SUBSCRIPTIONS
Cambridgeshire County Council,26/04/2022,397.54,FACEBK  MXKWTB7V52,ADVERTISING SERVICES,Communication and Information,Communication and Information,
Cambridgeshire County Council,26/04/2022,501.97,INDEED TEL+35312545907,BUSINESS SERVICES-NOT ELSEWHERE CLASSIFIED,Children's Disability Service,Head of RSS,RECRUITMENT COSTS
Cambridgeshire County Council,27/04/2022,1.50,WWW.GOV.UK,PROFESSIONAL SERVICES-NOT ELSEWHERE CLASSIFIED,Shared Services,Debt Team,DEBT RECOVERY COSTS
Cambridgeshire County Council,27/04/2022,1.50,WWW.GOV.UK,PROFESSIONAL SERVICES-NOT ELSEWHERE CLASSIFIED,Shared Services,Debt Team,DEBT RECOVERY COSTS
Cambridgeshire County Council,27/04/2022,4.00,GRAFHAM WATER PARK,AUTOMOBILE PARKING LOTS AND GARAGES,Youth Offending Service,YOT - High Risk and Deter,OFFENDERS SUPPORT
Cambridgeshire County Council,27/04/2022,4.25,ASDA STORES 4857,"GROCERY STORES, SUPERMARKETS",Outdoor Education (includes Grafham Water),Burwell House Residential Centre,CATERING PROVISIONS
Cambridgeshire County Council,27/04/2022,4.30,TESCO STORES 3009,"GROCERY STORES, SUPERMARKETS",Changing Futures & Projects,Housing First,OTHER SERVICE USER SUPPORT
Cambridgeshire County Council,27/04/2022,4.49,FAST KEY SERVICES LIMI,BUSINESS SERVICES-NOT ELSEWHERE CLASSIFIED,LD - In House Provider Services,"Larkfield, Ely",EQUIPMENT AND TOOLS
Cambridgeshire County Council,27/04/2022,5.05,SAINSBURYS S/MKTS,"GROCERY STORES, SUPERMARKETS",Youth Offending Service,YOT - High Risk and Deter,OFFENDERS SUPPORT
Cambridgeshire County Council,27/04/2022,8.00,TIMPSON LTD,MISCELLANEOUS AND SPECIALTY RETAIL STORES,LD - In House Provider Services,Horizon,GENERAL OFFICE EXPENSES & STATIONERY
Cambridgeshire County Council,27/04/2022,9.95,AMZNMKTPLACE AMAZON.CO,MISCELLANEOUS AND SPECIALTY RETAIL STORES,Outdoor Education (includes Grafham Water),CEES Stibbington Centre,CATERING EQUIPMENT-PURCHASES
Cambridgeshire County Council,27/04/2022,10.97,HTTPS://WWW.THEDYSLEXI,MISCELLANEOUS AND SPECIALTY RETAIL STORES,SEND Specialist Services,Head of SEND Services (0-25),
Cambridgeshire County Council,27/04/2022,12.00,CASTLE BOULEVARD,DISCOUNT STORES,Changing Futures & Projects,Housing First,OTHER SERVICE USER SUPPORT
Cambridgeshire County Council,27/04/2022,15.00,WEST NORTHAMPTONSHIRE,GOVERNMENT SERVICES-NOT ELSEWHERE CLASSIFIED,0-19 Organisation & Planning,Attendance and Behaviour,PROFESSIONAL FEES AND HIRED SERVICES
Cambridgeshire County Council,27/04/2022,15.00,WEST NORTHAMPTONSHIRE,GOVERNMENT SERVICES-NOT ELSEWHERE CLASSIFIED,0-19 Organisation & Planning,Attendance and Behaviour,PROFESSIONAL FEES AND HIRED SERVICES
Cambridgeshire County Council,27/04/2022,15.00,WEST NORTHAMPTONSHIRE,GOVERNMENT SERVICES-NOT ELSEWHERE CLASSIFIED,0-19 Organisation & Planning,Attendance and Behaviour,PROFESSIONAL FEES AND HIRED SERVICES
Cambridgeshire County Council,27/04/2022,15.34,AMAZON.CO.UK 2P2G765A4,DIRECT MARKETING-OTHER DIRECT MARKETERS/NOT ELSEW.,Learning & Development,L&D Team,BOOKS AND MULTIMEDIA SUPPLIES
Cambridgeshire County Council,27/04/2022,16.00,TIMPSON LTD,MISCELLANEOUS AND SPECIALTY RETAIL STORES,Changing Futures & Projects,Housing First,OTHER SERVICE USER SUPPORT
Cambridgeshire County Council,27/04/2022,17.14,AMZNMKTPLACE AMAZON.CO,MISCELLANEOUS AND SPECIALTY RETAIL STORES,Outdoor Education (includes Grafham Water),CEES Stibbington Centre,GENERAL OFFICE EXPENSES & STATIONERY
Cambridgeshire County Council,27/04/2022,19.98,WWW.SUPERSTARCOMPONENT,BICYCLE SHOPS-SALES AND SERVICE,Outdoor Education (includes Grafham Water),Grafham Water Centre,EDUCATIONAL MATERIALS
Cambridgeshire County Council,27/04/2022,21.00,CROSS COUNTRY TRAINS,PASSENGER RAILWAYS,Changing Futures & Projects,Counting Every Adult,
Cambridgeshire County Council,27/04/2022,24.99,CASTLE BOULEVARD,DISCOUNT STORES,Changing Futures & Projects,Housing First,OTHER SERVICE USER SUPPORT
Cambridgeshire County Council,27/04/2022,27.18,ONE STOP 0388,"GROCERY STORES, SUPERMARKETS",Changing Futures & Projects,Housing First,
Cambridgeshire County Council,27/04/2022,35.00,WWW.CAMCAB.CO.UK,LIMOUSINES AND TAXICABS,Children's Disability Service,Disability Referral & Access Team,
Cambridgeshire County Council,27/04/2022,35.00,WWW.CAMCAB.CO.UK,LIMOUSINES AND TAXICABS,Children's Disability Service,Disability Referral & Access Team,
Cambridgeshire County Council,27/04/2022,46.97,AMZNMKTPLACE,MISCELLANEOUS AND SPECIALTY RETAIL STORES,Cambridgeshire Skills,Cambridgeshire Skills - March Community Centre - Staff,
Cambridgeshire County Council,27/04/2022,48.45,TESCO STORES 5657,"GROCERY STORES, SUPERMARKETS",LD - In House Provider Services,No. 20 Alder Close Respite,CATERING PROVISIONS
Cambridgeshire County Council,27/04/2022,56.35,TRAINLINE,PASSENGER RAILWAYS,Adoption,Regional Adoption Agency,
Cambridgeshire County Council,27/04/2022,60.00,SENSORY DIRECT,"GAME, TOY, AND HOBBY SHOPS",SEND Specialist Services,Head of SEND Services (0-25),
Cambridgeshire County Council,27/04/2022,69.00,CVAA UK LTD,"ORGANIZATIONS, CHARITABLE AND SOCIAL SERVICES",Adoption,Regional Adoption Agency,STAFF TRAINING & DEVELOPMENT
Cambridgeshire County Council,27/04/2022,90.00,TESCO GIFT CARD,"GROCERY STORES, SUPERMARKETS",Corporate Parenting,North Care Leaving Team 2,
Cambridgeshire County Council,27/04/2022,108.72,RUTLAND CYCLING GRAFHA,BICYCLE SHOPS-SALES AND SERVICE,Youth Offending Service,YOT - High Risk and Deter,OFFENDERS SUPPORT
Cambridgeshire County Council,27/04/2022,113.94,AMAZON.CO.UK 2P6RG4M84,DIRECT MARKETING-OTHER DIRECT MARKETERS/NOT ELSEW.,Shared Services,Insurance Section,GENERAL OFFICE EXPENSES & STATIONERY
Cambridgeshire County Council,27/04/2022,148.75,BRIAR ROSE,"EATING PLACES, RESTAURANTS",Traffic Management,Traffic,
Cambridgeshire County Council,27/04/2022,157.20,SHELFORD HEATING,PLUMBING AND HEATING EQUIPMENT,Early Years Service,Trumpington Park Early Years,SPECIALIST WORKS AND REPAIRS
Cambridgeshire County Council,27/04/2022,158.68,WM MORRISONS STORE PIC,"GROCERY STORES, SUPERMARKETS",Children's Disability Service,Head of RSS,
Cambridgeshire County Council,27/04/2022,372.00,SUMUP   SIMON ROWE LTD,"FREIGHT CARRIER,TRUCKING-LCL/LNG DIST, MVG/STORAGE",IT & Digital Service,Business & Digital Systems,
Cambridgeshire County Council,28/04/2022,1.09,LIDL GB MARCH,"GROCERY STORES, SUPERMARKETS",LD - In House Provider Services,IHPS - Tennyson Lodge,SPECIALIST EQUIPMENT FOR SERVICE DELIV
Cambridgeshire County Council,28/04/2022,3.50,PETERBOROUGH CITY COUN,AUTOMOBILE PARKING LOTS AND GARAGES,Changing Futures & Projects,Housing First,OTHER SERVICE USER SUPPORT
Cambridgeshire County Council,28/04/2022,5.00,ASDA STORES 4857,"GROCERY STORES, SUPERMARKETS",Outdoor Education (includes Grafham Water),Burwell House Residential Centre,CATERING PROVISIONS
Cambridgeshire County Council,28/04/2022,5.99,SPORTSDIRECT 227,SPORTING GOODS STORES,Youth Offending Service,YOT - High Risk and Deter,OFFENDERS SUPPORT
Cambridgeshire County Council,28/04/2022,6.70,SAINSBURYS SMKT,"GROCERY STORES, SUPERMARKETS",Outdoor Education (includes Grafham Water),CEES Stibbington Centre,CATERING PROVISIONS
Cambridgeshire County Council,28/04/2022,7.05,ASDA STORES 4857,"GROCERY STORES, SUPERMARKETS",Outdoor Education (includes Grafham Water),Burwell House Residential Centre,CATERING PROVISIONS
Cambridgeshire County Council,28/04/2022,7.50,EURO SHOP,"MISC FOOD STORE-CONVENIENCE,MRKT,SPLTY,VENDNG MACS",Changing Futures & Projects,Housing First,OTHER SERVICE USER SUPPORT
Cambridgeshire County Council,28/04/2022,7.95,AMZNMKTPLACE AMAZON.CO,MISCELLANEOUS AND SPECIALTY RETAIL STORES,ICT Service (Education),ICT Service Systems Development,
Cambridgeshire County Council,28/04/2022,8.00,AMZNMKTPLACE,MISCELLANEOUS AND SPECIALTY RETAIL STORES,Outdoor Education (includes Grafham Water),Grafham Water Centre,GROUNDS MAINTENANCE
Cambridgeshire County Council,28/04/2022,8.20,NCP LTD,AUTOMOBILE PARKING LOTS AND GARAGES,Changing Futures & Projects,Housing First,OTHER SERVICE USER SUPPORT
Cambridgeshire County Council,28/04/2022,8.99,AMZNMKTPLACE,MISCELLANEOUS AND SPECIALTY RETAIL STORES,Outdoor Education (includes Grafham Water),Grafham Water Centre,GROUNDS MAINTENANCE
Cambridgeshire County Council,28/04/2022,8.99,AMZNMKTPLACE,MISCELLANEOUS AND SPECIALTY RETAIL STORES,Outdoor Education (includes Grafham Water),Grafham Water Centre,FIRE PREVENTION EQUIPMENT
Cambridgeshire County Council,28/04/2022,9.95,MCDONALDS,FAST FOOD RESTAURANTS,Youth Offending Service,YOT - High Risk and Deter,OFFENDERS SUPPORT
Cambridgeshire County Council,28/04/2022,10.00,APPLE.COM/UK,ELECTRONIC SALES,ICT Service (Education),ICT Service Systems Development,
Cambridgeshire County Council,28/04/2022,10.00,SKILLS FOR CARE,"ORGANIZATIONS, CHARITABLE AND SOCIAL SERVICES",LD - In House Provider Services,No. 20 Alder Close Respite,
Cambridgeshire County Council,28/04/2022,11.20,STAGECOACH SERVICE,BUS LINES,Family Safeguarding West,Family Safeguarding Hunts and Fenland,ASYLUM SEEKERS
Cambridgeshire County Council,28/04/2022,12.38,TESCO STORES 2229,"GROCERY STORES, SUPERMARKETS",Changing Futures & Projects,Housing First,OTHER SERVICE USER SUPPORT
Cambridgeshire County Council,28/04/2022,12.60,PANTHER TAXIS 33999297,LIMOUSINES AND TAXICABS,Changing Futures & Projects,Housing First,OTHER SERVICE USER SUPPORT
Cambridgeshire County Council,28/04/2022,13.40,RIDGEONS NORMAN WAY,"BUILDING MATERIALS, LUMBER STORES",Youth Offending Service,YOT - High Risk and Deter,OFFENDERS SUPPORT
Cambridgeshire County Council,28/04/2022,15.00,WEST NORTHAMPTONSHIRE,GOVERNMENT SERVICES-NOT ELSEWHERE CLASSIFIED,0-19 Organisation & Planning,Attendance and Behaviour,PROFESSIONAL FEES AND HIRED SERVICES
Cambridgeshire County Council,28/04/2022,15.00,WEST NORTHAMPTONSHIRE,GOVERNMENT SERVICES-NOT ELSEWHERE CLASSIFIED,0-19 Organisation & Planning,Attendance and Behaviour,PROFESSIONAL FEES AND HIRED SERVICES
Cambridgeshire County Council,28/04/2022,15.00,WEST NORTHAMPTONSHIRE,GOVERNMENT SERVICES-NOT ELSEWHERE CLASSIFIED,0-19 Organisation & Planning,Attendance and Behaviour,PROFESSIONAL FEES AND HIRED SERVICES
Cambridgeshire County Council,28/04/2022,15.00,WEST NORTHAMPTONSHIRE,GOVERNMENT SERVICES-NOT ELSEWHERE CLASSIFIED,0-19 Organisation & Planning,Attendance and Behaviour,PROFESSIONAL FEES AND HIRED SERVICES
Cambridgeshire County Council,28/04/2022,15.00,WEST NORTHAMPTONSHIRE,GOVERNMENT SERVICES-NOT ELSEWHERE CLASSIFIED,0-19 Organisation & Planning,Attendance and Behaviour,PROFESSIONAL FEES AND HIRED SERVICES
Cambridgeshire County Council,28/04/2022,15.00,WEST NORTHAMPTONSHIRE,GOVERNMENT SERVICES-NOT ELSEWHERE CLASSIFIED,0-19 Organisation & Planning,Attendance and Behaviour,PROFESSIONAL FEES AND HIRED SERVICES
Cambridgeshire County Council,28/04/2022,15.00,WEST NORTHAMPTONSHIRE,GOVERNMENT SERVICES-NOT ELSEWHERE CLASSIFIED,0-19 Organisation & Planning,Attendance and Behaviour,PROFESSIONAL FEES AND HIRED SERVICES
Cambridgeshire County Council,28/04/2022,15.28,BURGER KING,FAST FOOD RESTAURANTS,Changing Futures & Projects,Housing First,OTHER SERVICE USER SUPPORT
Cambridgeshire County Council,28/04/2022,18.99,AMZNMKTPLACE,MISCELLANEOUS AND SPECIALTY RETAIL STORES,Children's Disability Service,Head of RSS,
Cambridgeshire County Council,28/04/2022,19.99,AMZNMKTPLACE,MISCELLANEOUS AND SPECIALTY RETAIL STORES,Youth Offending Service,YOT Project,GENERAL OFFICE EXPENSES & STATIONERY
Cambridgeshire County Council,28/04/2022,23.50,AMZNMKTPLACE,MISCELLANEOUS AND SPECIALTY RETAIL STORES,Outdoor Education (includes Grafham Water),Burwell House Residential Centre,CATERING EQUIPMENT-REPAIRS&MAINTENANCE
Cambridgeshire County Council,28/04/2022,24.49,AMZNMKTPLACE,MISCELLANEOUS AND SPECIALTY RETAIL STORES,ICT Service (Education),ICT Service Systems Development,
Cambridgeshire County Council,28/04/2022,25.99,AMZNMKTPLACE AMAZON.CO,MISCELLANEOUS AND SPECIALTY RETAIL STORES,GCP,GCP - Programme Central Co-ordination,
Cambridgeshire County Council,28/04/2022,31.40,AMZNMKTPLACE,MISCELLANEOUS AND SPECIALTY RETAIL STORES,ICT Service (Education),ICT Service Systems Development,
Cambridgeshire County Council,28/04/2022,31.46,AMZNMKTPLACE,MISCELLANEOUS AND SPECIALTY RETAIL STORES,Outdoor Education (includes Grafham Water),Grafham Water Centre,GROUNDS MAINTENANCE
Cambridgeshire County Council,28/04/2022,33.00,NORFOLK COUNTY COUNCIL,GOVERNMENT SERVICES-NOT ELSEWHERE CLASSIFIED,Targeted Support Service - North,EH Wisbech District,
Cambridgeshire County Council,28/04/2022,35.99,AMZNMKTPLACE,MISCELLANEOUS AND SPECIALTY RETAIL STORES,Outdoor Education (includes Grafham Water),Grafham Water Centre,
Cambridgeshire County Council,28/04/2022,38.48,EASYJET,EASYJET,Adoption,Regional Adoption Agency,OTHER TRAVEL EXPENSES
Cambridgeshire County Council,28/04/2022,39.20,STAGECOACH SERVICE,BUS LINES,Family Safeguarding West,Family Safeguarding Hunts and Fenland,ASYLUM SEEKERS
Cambridgeshire County Council,28/04/2022,44.90,THE GEORGE INN,"BAR,LOUNGE,DISCO,NIGHTCLUB,TAVERN-ALCOHOLIC DRINKS",Outdoor Education (includes Grafham Water),Grafham Water Centre,STAFF SUBSISTENCE
Cambridgeshire County Council,28/04/2022,47.26,AMZNMKTPLACE AMAZON.CO,MISCELLANEOUS AND SPECIALTY RETAIL STORES,Outdoor Education (includes Grafham Water),CEES Stibbington Centre,GENERAL OFFICE EXPENSES & STATIONERY
Cambridgeshire County Council,28/04/2022,48.00,TRAVIS PERKINS,"BUILDING MATERIALS, LUMBER STORES",Youth Offending Service,YOT - High Risk and Deter,OFFENDERS SUPPORT
Cambridgeshire County Council,28/04/2022,49.98,AMZNMKTPLACE,MISCELLANEOUS AND SPECIALTY RETAIL STORES,Outdoor Education (includes Grafham Water),Grafham Water Centre,
Cambridgeshire County Council,28/04/2022,92.97,B&M 417 - HS BEEHIVE,MISCELLANEOUS GENERAL MERCHANDISE,Targeted Support Service - South,EH Child and Family Centre - Cambridge City,SPECIALIST SUPPLIES AND MATERIALS
Cambridgeshire County Council,28/04/2022,110.65,BOOKERECOMM,CATERERS,LD - In House Provider Services,Horizon,SPECIALIST SUPPLIES AND MATERIALS
Cambridgeshire County Council,28/04/2022,122.98,EASYJET,EASYJET,Corporate Parenting,South Child Looked After Team 2,CAR MILEAGE AND ALLOWANCES - STAFF
Cambridgeshire County Council,28/04/2022,125.82,TESCO STORE 2694,"GROCERY STORES, SUPERMARKETS",LD - In House Provider Services,6 St Lukes Close (Respite),
Cambridgeshire County Council,28/04/2022,214.00,FERNDALE MEWS,"LODGING-HOTELS,MOTELS,RESORTS-NOT CLASSIFIED","Children, Education and Families Directorate","Children, Education and Families Directorate",CAR MILEAGE AND ALLOWANCES - STAFF
Cambridgeshire County Council,28/04/2022,268.88,BOOKERECOMM,CATERERS,LD - In House Provider Services,Horizon,CATERING PROVISIONS
Cambridgeshire County Council,28/04/2022,352.71,TRELLO.COM  ATLASSIAN,COMPUTER SOFTWARE STORES,Public Library Services,Support - Business Support,
Cambridgeshire County Council,29/04/2022,1.00,THE WORKS,DISCOUNT STORES,Changing Futures & Projects,Housing First,OTHER SERVICE USER SUPPORT
Cambridgeshire County Council,29/04/2022,5.10,CO-OP GROUP 171951,"GROCERY STORES, SUPERMARKETS",Outdoor Education (includes Grafham Water),Burwell House Residential Centre,CATERING PROVISIONS
Cambridgeshire County Council,29/04/2022,5.41,AMAZON.CO.UK 2P3ZA72Q4,DIRECT MARKETING-OTHER DIRECT MARKETERS/NOT ELSEW.,Youth Offending Service,YOT Project,GENERAL OFFICE EXPENSES & STATIONERY
Cambridgeshire County Council,29/04/2022,6.00,HATHERSAGE FISH AND VH,FAST FOOD RESTAURANTS,Outdoor Education (includes Grafham Water),Grafham Water Centre,STAFF SUBSISTENCE
Cambridgeshire County Council,29/04/2022,6.00,GIFFGAFF,TELECOM INCL PREPAID/RECURRING PHONE SVCS,Domestic Abuse and Sexual Violence Service,Domestic Violence Unit,
Cambridgeshire County Council,29/04/2022,6.10,SAINSBURYS S/MKTS,"GROCERY STORES, SUPERMARKETS",LD - In House Provider Services,IHPS - Tennyson Lodge,SPECIALIST EQUIPMENT FOR SERVICE DELIV
Cambridgeshire County Council,29/04/2022,6.20,BANK HOUSE HATHERSAGE,"EATING PLACES, RESTAURANTS",Outdoor Education (includes Grafham Water),Grafham Water Centre,STAFF SUBSISTENCE
Cambridgeshire County Council,29/04/2022,10.00,SKILLS FOR CARE,"ORGANIZATIONS, CHARITABLE AND SOCIAL SERVICES",LD - In House Provider Services,No. 20 Alder Close Respite,
Cambridgeshire County Council,29/04/2022,10.76,FACEBK  L8P3AG3V52,ADVERTISING SERVICES,Communication and Information,Communication and Information,
Cambridgeshire County Council,29/04/2022,12.98,AMZNMKTPLACE AMAZON.CO,MISCELLANEOUS AND SPECIALTY RETAIL STORES,Targeted Support Service - South,EH Child and Family Centre - South Cambs,EDUCATIONAL MATERIALS
Cambridgeshire County Council,29/04/2022,14.58,TESCO STORE 2694,"GROCERY STORES, SUPERMARKETS",Safeguarding and Quality Assurance,Childrens Participation,CATERING PROVISIONS
Cambridgeshire County Council,29/04/2022,15.00,WEST NORTHAMPTONSHIRE,GOVERNMENT SERVICES-NOT ELSEWHERE CLASSIFIED,0-19 Organisation & Planning,Attendance and Behaviour,PROFESSIONAL FEES AND HIRED SERVICES
Cambridgeshire County Council,29/04/2022,15.00,WEST NORTHAMPTONSHIRE,GOVERNMENT SERVICES-NOT ELSEWHERE CLASSIFIED,0-19 Organisation & Planning,Attendance and Behaviour,PROFESSIONAL FEES AND HIRED SERVICES
Cambridgeshire County Council,29/04/2022,15.49,AMZNMKTPLACE,MISCELLANEOUS AND SPECIALTY RETAIL STORES,Outdoor Education (includes Grafham Water),Grafham Water Centre,SUBSCRIPTIONS
Cambridgeshire County Council,29/04/2022,15.49,AMZNMKTPLACE,MISCELLANEOUS AND SPECIALTY RETAIL STORES,Outdoor Education (includes Grafham Water),Grafham Water Centre,SUBSCRIPTIONS
Cambridgeshire County Council,29/04/2022,16.99,AMZNMKTPLACE,MISCELLANEOUS AND SPECIALTY RETAIL STORES,Outdoor Education (includes Grafham Water),Grafham Water Centre,SUBSCRIPTIONS
Cambridgeshire County Council,29/04/2022,16.99,AMZNMKTPLACE,MISCELLANEOUS AND SPECIALTY RETAIL STORES,Outdoor Education (includes Grafham Water),Grafham Water Centre,SUBSCRIPTIONS
Cambridgeshire County Council,29/04/2022,16.99,AMZNMKTPLACE,MISCELLANEOUS AND SPECIALTY RETAIL STORES,Outdoor Education (includes Grafham Water),Grafham Water Centre,SUBSCRIPTIONS
Cambridgeshire County Council,29/04/2022,16.99,AMZNMKTPLACE,MISCELLANEOUS AND SPECIALTY RETAIL STORES,Outdoor Education (includes Grafham Water),Grafham Water Centre,SUBSCRIPTIONS
Cambridgeshire County Council,29/04/2022,16.99,AMZNMKTPLACE,MISCELLANEOUS AND SPECIALTY RETAIL STORES,Outdoor Education (includes Grafham Water),Grafham Water Centre,SUBSCRIPTIONS
Cambridgeshire County Council,29/04/2022,16.99,AMZNMKTPLACE,MISCELLANEOUS AND SPECIALTY RETAIL STORES,Outdoor Education (includes Grafham Water),Grafham Water Centre,SUBSCRIPTIONS
Cambridgeshire County Council,29/04/2022,16.99,AMZNMKTPLACE,MISCELLANEOUS AND SPECIALTY RETAIL STORES,Outdoor Education (includes Grafham Water),Grafham Water Centre,SUBSCRIPTIONS
Cambridgeshire County Council,29/04/2022,16.99,AMZNMKTPLACE,MISCELLANEOUS AND SPECIALTY RETAIL STORES,Outdoor Education (includes Grafham Water),Grafham Water Centre,SUBSCRIPTIONS
Cambridgeshire County Council,29/04/2022,16.99,AMZNMKTPLACE,MISCELLANEOUS AND SPECIALTY RETAIL STORES,Outdoor Education (includes Grafham Water),Grafham Water Centre,SUBSCRIPTIONS
Cambridgeshire County Council,29/04/2022,16.99,AMZNMKTPLACE,MISCELLANEOUS AND SPECIALTY RETAIL STORES,Outdoor Education (includes Grafham Water),Grafham Water Centre,SUBSCRIPTIONS
Cambridgeshire County Council,29/04/2022,16.99,AMZNMKTPLACE,MISCELLANEOUS AND SPECIALTY RETAIL STORES,Outdoor Education (includes Grafham Water),Grafham Water Centre,SUBSCRIPTIONS
Cambridgeshire County Council,29/04/2022,16.99,AMZNMKTPLACE,MISCELLANEOUS AND SPECIALTY RETAIL STORES,Outdoor Education (includes Grafham Water),Grafham Water Centre,SUBSCRIPTIONS
Cambridgeshire County Council,29/04/2022,19.99,AMAZON.CO.UK 2P2L91D74,DIRECT MARKETING-OTHER DIRECT MARKETERS/NOT ELSEW.,Youth Offending Service,YOT Project,GENERAL OFFICE EXPENSES & STATIONERY
Cambridgeshire County Council,29/04/2022,23.98,AMZNMKTPLACE AMAZON.CO,MISCELLANEOUS AND SPECIALTY RETAIL STORES,Targeted Support Service - South,EH Child and Family Centre - South Cambs,EDUCATIONAL MATERIALS
Cambridgeshire County Council,29/04/2022,26.78,TESCO STORE 2694,"GROCERY STORES, SUPERMARKETS",LD - In House Provider Services,6 St Lukes Close (Respite),
Cambridgeshire County Council,29/04/2022,28.78,DNH GO DADDY EUROPE GB,COMPUTER NETWORK/INFORMATION SERVICES,ICT Service (Education),ICT Service Systems Development,
Cambridgeshire County Council,29/04/2022,34.99,AMZNMKTPLACE AMAZON.CO,MISCELLANEOUS AND SPECIALTY RETAIL STORES,School Improvement Service,Adventure Playground,GROUNDS MAINTENANCE
Cambridgeshire County Council,29/04/2022,35.59,TESCO STORES 5657,"GROCERY STORES, SUPERMARKETS",Targeted Support Service - North,EH Child and Family Centre - Wisbech,CATERING PROVISIONS
Cambridgeshire County Council,29/04/2022,42.00,TL&GN RAILWAY WEB,PASSENGER RAILWAYS,Chief Executive,Chief Executive's Office,
Cambridgeshire County Council,29/04/2022,50.00,AMAZON.CO.UK 2P2GS96H4,DIRECT MARKETING-OTHER DIRECT MARKETERS/NOT ELSEW.,Policy Design and Delivery,BID Director and Business Support,
Cambridgeshire County Council,29/04/2022,51.66,B&M 254 - CROMWELL,MISCELLANEOUS GENERAL MERCHANDISE,LD - In House Provider Services,Victoria  Lodge,GROUNDS MAINTENANCE
Cambridgeshire County Council,29/04/2022,59.98,AMAZON.CO.UK 2P2ZI9284,DIRECT MARKETING-OTHER DIRECT MARKETERS/NOT ELSEW.,ICT Service (Education),ICT Service Systems Development,
Cambridgeshire County Council,29/04/2022,72.00,WWW.SMARTWATER.COM,ELECTRICAL CONTRACTORS,Outdoor Education (includes Grafham Water),Grafham Water Centre,EDUCATIONAL MATERIALS
Cambridgeshire County Council,29/04/2022,75.50,HM PASSPORT OFFICE,GOVERNMENT SERVICES-NOT ELSEWHERE CLASSIFIED,Corporate Parenting,North Child Looked After Team 1,GRANTS&SUPPORT FOR OTHER SERVICE USERS
Cambridgeshire County Council,29/04/2022,120.00,TYPOMANIA SERVICES,"COMP PROGRAMING,DATA PRCSNG,INTGRTD SYS DSGN SRVS",Cambridgeshire Music,Cambs Music Holding Account,
Cambridgeshire County Council,29/04/2022,264.79,TESCO STORE 2555,"GROCERY STORES, SUPERMARKETS",LD - In House Provider Services,40 & 44 Russell Street,CATERING PROVISIONS
Cambridgeshire County Council,02/05/2022,1.50,WWW.GOV.UK,PROFESSIONAL SERVICES-NOT ELSEWHERE CLASSIFIED,Shared Services,Debt Team,DEBT RECOVERY COSTS
Cambridgeshire County Council,02/05/2022,1.75,SAINSBURYS S/MKTS,"GROCERY STORES, SUPERMARKETS",LD - In House Provider Services,No. 20 Alder Close Respite,CATERING PROVISIONS
Cambridgeshire County Council,02/05/2022,2.60,CO-OP GROUP 171541,"GROCERY STORES, SUPERMARKETS",Cambridgeshire Music,Cambs Music Business Development,
Cambridgeshire County Council,02/05/2022,3.50,POUNDLAND LTD 1446,DISCOUNT STORES,Changing Futures & Projects,Housing First,
Cambridgeshire County Council,02/05/2022,5.00,TESCO STORE 2055,"GROCERY STORES, SUPERMARKETS",Early Years Service,Trumpington Park Early Years,CATERING PROVISIONS
Cambridgeshire County Council,02/05/2022,5.00,SAINSBURYS S/MKTS,"GROCERY STORES, SUPERMARKETS",Changing Futures & Projects,Housing First,OTHER SERVICE USER SUPPORT
Cambridgeshire County Council,02/05/2022,5.27,STARBUCKS COFFEE,FAST FOOD RESTAURANTS,Changing Futures & Projects,Counting Every Adult,OTHER SERVICE USER SUPPORT
Cambridgeshire County Council,02/05/2022,5.30,SAINSBURYS S/MKTS,"GROCERY STORES, SUPERMARKETS",LD - In House Provider Services,Horizon,CATERING PROVISIONS
Cambridgeshire County Council,02/05/2022,5.99,AMZNMKTPLACE AMAZON.CO,MISCELLANEOUS AND SPECIALTY RETAIL STORES,Children's Disability Service,Head of RSS,
Cambridgeshire County Council,02/05/2022,6.75,POST OFFICE COUNTER,POSTAL SERVICES-GOVERNMENT ONLY,Coroners,Coroners General,POSTAGE & CARRIAGE
Cambridgeshire County Council,02/05/2022,6.76,HISTON POST OFFICE AND,POSTAL SERVICES-GOVERNMENT ONLY,Cambridgeshire Music,Cambs Music Business Development,
Cambridgeshire County Council,02/05/2022,7.99,AMAZON PRIME 2P6UE6R04,DIRECT MARKETING-CONTINUITY/SUBSCRIPTION MERCHANTS,Virtual School,Virtual School for Care Experienced Children,
Cambridgeshire County Council,02/05/2022,10.00,FACEBK RQN3VDBCC2,ADVERTISING SERVICES,Outdoor Education (includes Grafham Water),Grafham Water Centre,
Cambridgeshire County Council,02/05/2022,13.57,POST OFFICE COUNTER,POSTAL SERVICES-GOVERNMENT ONLY,Registration & Citizenship Services,Registrars General,POSTAGE & CARRIAGE
Cambridgeshire County Council,02/05/2022,13.75,CO-OP GROUP 171611,"GROCERY STORES, SUPERMARKETS",Changing Futures & Projects,Housing First,OTHER SERVICE USER SUPPORT
Cambridgeshire County Council,02/05/2022,13.99,NETFLIX.COM,"CABLE, SATELLITE, OTHER PAY TELEVISION, RADIO SVCS",Children's Disability Service,Head of RSS,
Cambridgeshire County Council,02/05/2022,14.99,AMAZON MUSIC 2P4O32294,RECORD SHOPS,LD - In House Provider Services,Horizon,PROFESSIONAL FEES AND HIRED SERVICES
Cambridgeshire County Council,02/05/2022,15.00,WEST NORTHAMPTONSHIRE,GOVERNMENT SERVICES-NOT ELSEWHERE CLASSIFIED,0-19 Organisation & Planning,Attendance and Behaviour,PROFESSIONAL FEES AND HIRED SERVICES
Cambridgeshire County Council,02/05/2022,15.00,WEST NORTHAMPTONSHIRE,GOVERNMENT SERVICES-NOT ELSEWHERE CLASSIFIED,0-19 Organisation & Planning,Attendance and Behaviour,PROFESSIONAL FEES AND HIRED SERVICES
Cambridgeshire County Council,02/05/2022,15.00,WEST NORTHAMPTONSHIRE,GOVERNMENT SERVICES-NOT ELSEWHERE CLASSIFIED,0-19 Organisation & Planning,Attendance and Behaviour,PROFESSIONAL FEES AND HIRED SERVICES
Cambridgeshire County Council,02/05/2022,15.00,WEST NORTHAMPTONSHIRE,GOVERNMENT SERVICES-NOT ELSEWHERE CLASSIFIED,0-19 Organisation & Planning,Attendance and Behaviour,PROFESSIONAL FEES AND HIRED SERVICES
Cambridgeshire County Council,02/05/2022,15.00,WEST NORTHAMPTONSHIRE,GOVERNMENT SERVICES-NOT ELSEWHERE CLASSIFIED,0-19 Organisation & Planning,Attendance and Behaviour,PROFESSIONAL FEES AND HIRED SERVICES
Cambridgeshire County Council,02/05/2022,15.00,WEST NORTHAMPTONSHIRE,GOVERNMENT SERVICES-NOT ELSEWHERE CLASSIFIED,0-19 Organisation & Planning,Attendance and Behaviour,PROFESSIONAL FEES AND HIRED SERVICES
Cambridgeshire County Council,02/05/2022,15.00,WEST NORTHAMPTONSHIRE,GOVERNMENT SERVICES-NOT ELSEWHERE CLASSIFIED,0-19 Organisation & Planning,Attendance and Behaviour,PROFESSIONAL FEES AND HIRED SERVICES
Cambridgeshire County Council,02/05/2022,18.89,LIDL GB MARCH,"GROCERY STORES, SUPERMARKETS",LD - In House Provider Services,No. 20 Alder Close Respite,CATERING PROVISIONS
Cambridgeshire County Council,02/05/2022,19.99,DROPBOX,COMPUTER NETWORK/INFORMATION SERVICES,Cambridgeshire Music,Cambs Music Holding Account,
Cambridgeshire County Council,02/05/2022,21.04,FACEBK L9VW7EFKU2,ADVERTISING SERVICES,Cambridgeshire Skills,Cambridgeshire Skills - March Community Centre - Staff,
Cambridgeshire County Council,02/05/2022,24.58,INDEED TEL+35312545907,BUSINESS SERVICES-NOT ELSEWHERE CLASSIFIED,Early Years Service,Early Years Workforce Development,
Cambridgeshire County Council,02/05/2022,27.00,GO OUTDOORS,SPORTING GOODS STORES,Outdoor Education (includes Grafham Water),Grafham Water Centre,SUBSCRIPTIONS
Cambridgeshire County Council,02/05/2022,30.00,VOUCHER EXPRESS,BUSINESS SERVICES-NOT ELSEWHERE CLASSIFIED,Corporate Parenting,South Child Looked After Team 2,SPECIALIST EQUIPMENT FOR SERVICE DELIV
Cambridgeshire County Council,02/05/2022,30.00,VOUCHER EXPRESS,BUSINESS SERVICES-NOT ELSEWHERE CLASSIFIED,Corporate Parenting,South Child Looked After Team 2,SPECIALIST EQUIPMENT FOR SERVICE DELIV
Cambridgeshire County Council,02/05/2022,32.35,AMZNMKTPLACE,MISCELLANEOUS AND SPECIALTY RETAIL STORES,Cambridgeshire Skills,Cambridgeshire Skills - March Community Centre - Staff,
Cambridgeshire County Council,02/05/2022,34.90,TESCO STORE 3145,"GROCERY STORES, SUPERMARKETS",LD - In House Provider Services,6 St Lukes Close (Respite),
Cambridgeshire County Council,02/05/2022,36.00,GO OUTDOORS,SPORTING GOODS STORES,Outdoor Education (includes Grafham Water),Grafham Water Centre,SUBSCRIPTIONS
Cambridgeshire County Council,02/05/2022,41.00,WICKES WISBECH,"BUILDING MATERIALS, LUMBER STORES",LD - In House Provider Services,Victoria  Lodge,GROUNDS MAINTENANCE
Cambridgeshire County Council,02/05/2022,42.97,B&M 494 - HS BEDFORD,MISCELLANEOUS GENERAL MERCHANDISE,Early Years Service,Trumpington Park Early Years,EDUCATIONAL EQUIPMENT
Cambridgeshire County Council,02/05/2022,48.63,TESCO STORES 5657,"GROCERY STORES, SUPERMARKETS",LD - In House Provider Services,No. 20 Alder Close Respite,CATERING PROVISIONS
Cambridgeshire County Council,02/05/2022,49.95,AMZNMKTPLACE,MISCELLANEOUS AND SPECIALTY RETAIL STORES,Outdoor Education (includes Grafham Water),Grafham Water Centre,SUBSCRIPTIONS
Cambridgeshire County Council,02/05/2022,57.68,INDEED TEL+35312545907,BUSINESS SERVICES-NOT ELSEWHERE CLASSIFIED,Human Resources,Social Work Recruit & Retain,RECRUITMENT COSTS
Cambridgeshire County Council,02/05/2022,61.19,TRAINLINE.COM,PASSENGER RAILWAYS,Safeguarding and Quality Assurance,Safeguarding and Quality Assurance,CAR MILEAGE AND ALLOWANCES - STAFF
Cambridgeshire County Council,02/05/2022,61.55,EASYJET,EASYJET,Corporate Parenting,South Child Looked After Team 2,
Cambridgeshire County Council,02/05/2022,110.00,WWW.CIPFA.ORG.UK,"ORGANIZATIONS, MEMBERSHIP-NOT ELSEWHERE CLASSIFIED",Professional Finance,Cipfa Trainees,EXAM FEES
Cambridgeshire County Council,02/05/2022,110.00,DEVERE COTSWOLD WATER,"LODGING-HOTELS,MOTELS,RESORTS-NOT CLASSIFIED",Performance & Strategic Development,Adults Central Business Support,
Cambridgeshire County Council,02/05/2022,110.00,DEVERE COTSWOLD WATER,"LODGING-HOTELS,MOTELS,RESORTS-NOT CLASSIFIED",Performance & Strategic Development,Adults Central Business Support,
Cambridgeshire County Council,02/05/2022,110.00,WWW.CIPFA.ORG.UK,"ORGANIZATIONS, MEMBERSHIP-NOT ELSEWHERE CLASSIFIED",Professional Finance,Cipfa Trainees,EXAM FEES
Cambridgeshire County Council,02/05/2022,118.60,WM MORRISONS STORE PIC,"GROCERY STORES, SUPERMARKETS",Children's Disability Service,Head of RSS,
Cambridgeshire County Council,02/05/2022,122.84,THETRAINLINE.COM,PASSENGER RAILWAYS,Safeguarding and Quality Assurance,Safeguarding and Quality Assurance,CAR MILEAGE AND ALLOWANCES - STAFF
Cambridgeshire County Council,02/05/2022,130.37,TESCO STORES 2228,"GROCERY STORES, SUPERMARKETS",Children's Disability Service,Head of RSS,
Cambridgeshire County Council,02/05/2022,131.62,WM MORRISONS STORE PIC,"GROCERY STORES, SUPERMARKETS",Children's Disability Service,RSS - Woodland Lodge,CATERING PROVISIONS
Cambridgeshire County Council,02/05/2022,134.00,THOMSON REUTERS UK LTD,PROFESSIONAL SERVICES-NOT ELSEWHERE CLASSIFIED,Shared Services,Insurance Section,GENERAL OFFICE EXPENSES & STATIONERY
Cambridgeshire County Council,02/05/2022,134.68,W M MORRISONS.COM,"GROCERY STORES, SUPERMARKETS",Children's Disability Service,Head of RSS,CATERING PROVISIONS
Cambridgeshire County Council,02/05/2022,168.00,EB  ONLINE TRAINING DE,BUSINESS SERVICES-NOT ELSEWHERE CLASSIFIED,Learning & Development,Corporate Development,PROFESSIONAL FEES AND HIRED SERVICES
Cambridgeshire County Council,02/05/2022,220.68,GOOGLE ADS5651672097,ADVERTISING SERVICES,Fostering & Supervised Contact Services,Fostering Recruitment & Assessment Team,RECRUITMENT ADVERTISING
Cambridgeshire County Council,02/05/2022,223.60,AMZNMKTPLACE,MISCELLANEOUS AND SPECIALTY RETAIL STORES,Cambridgeshire Skills,Cambridgeshire Skills - March Community Centre - Staff,
Cambridgeshire County Council,02/05/2022,239.98,ARGOS LTD,DISCOUNT STORES,Family Safeguarding East,East Cambs Children's Team 1,LIVING SUPPORT GRANTS
Cambridgeshire County Council,02/05/2022,256.99,ROBERT-SCOTT.CO.UK,HOUSEHOLD APPLIANCE STORES,Outdoor Education (includes Grafham Water),Grafham Water Centre,EQUIPMENT AND TOOLS
Cambridgeshire County Council,02/05/2022,265.03,INDEED TEL+35312545907,BUSINESS SERVICES-NOT ELSEWHERE CLASSIFIED,Children's Disability Service,Head of RSS,RECRUITMENT COSTS
Cambridgeshire County Council,02/05/2022,500.01,INDEED TEL+35312545907,BUSINESS SERVICES-NOT ELSEWHERE CLASSIFIED,Human Resources,Social Work Recruit & Retain,RECRUITMENT COSTS
Cambridgeshire County Council,03/05/2022,3.75,AMZNMKTPLACE AMAZON.CO,MISCELLANEOUS AND SPECIALTY RETAIL STORES,Children's Disability Service,Head of RSS,
Cambridgeshire County Council,03/05/2022,4.99,AMZNMKTPLACE AMAZON.CO,MISCELLANEOUS AND SPECIALTY RETAIL STORES,Children's Disability Service,Head of RSS,
Cambridgeshire County Council,03/05/2022,6.59,AMZNMKTPLACE AMAZON.CO,MISCELLANEOUS AND SPECIALTY RETAIL STORES,Children's Disability Service,Head of RSS,
Cambridgeshire County Council,03/05/2022,7.98,AMAZON.CO.UK 2D91X9OE4,DIRECT MARKETING-OTHER DIRECT MARKETERS/NOT ELSEW.,Outdoor Education (includes Grafham Water),Grafham Water Centre,EQUIPMENT AND TOOLS
Cambridgeshire County Council,03/05/2022,7.98,AMAZON.CO.UK 2D11T7ON4,DIRECT MARKETING-OTHER DIRECT MARKETERS/NOT ELSEW.,Outdoor Education (includes Grafham Water),Grafham Water Centre,EQUIPMENT AND TOOLS
Cambridgeshire County Council,03/05/2022,7.98,AMAZON.CO.UK 2D8NU4OW4,DIRECT MARKETING-OTHER DIRECT MARKETERS/NOT ELSEW.,Outdoor Education (includes Grafham Water),Grafham Water Centre,EQUIPMENT AND TOOLS
Cambridgeshire County Council,03/05/2022,7.98,AMAZON.CO.UK 2D91K0OM4,DIRECT MARKETING-OTHER DIRECT MARKETERS/NOT ELSEW.,Outdoor Education (includes Grafham Water),Grafham Water Centre,EQUIPMENT AND TOOLS
Cambridgeshire County Council,03/05/2022,7.98,AMAZON.CO.UK 2D7132O34,DIRECT MARKETING-OTHER DIRECT MARKETERS/NOT ELSEW.,Outdoor Education (includes Grafham Water),Grafham Water Centre,EQUIPMENT AND TOOLS
Cambridgeshire County Council,03/05/2022,10.93,AWS EMEA,BUSINESS SERVICES-NOT ELSEWHERE CLASSIFIED,ICT Service (Education),ICT Service Systems Development,
Cambridgeshire County Council,03/05/2022,17.99,AMZNMKTPLACE,MISCELLANEOUS AND SPECIALTY RETAIL STORES,Children's Disability Service,Head of RSS,
Cambridgeshire County Council,03/05/2022,34.99,AMZNMKTPLACE,MISCELLANEOUS AND SPECIALTY RETAIL STORES,Outdoor Education (includes Grafham Water),Grafham Water Centre,SUBSCRIPTIONS
Cambridgeshire County Council,03/05/2022,43.45,TESCO STORE 2694,"GROCERY STORES, SUPERMARKETS",LD - In House Provider Services,6 St Lukes Close (Respite),
Cambridgeshire County Council,03/05/2022,49.95,AMZNMKTPLACE,MISCELLANEOUS AND SPECIALTY RETAIL STORES,Outdoor Education (includes Grafham Water),Grafham Water Centre,SUBSCRIPTIONS
Cambridgeshire County Council,03/05/2022,60.82,AMZNMKTPLACE AMAZON.CO,MISCELLANEOUS AND SPECIALTY RETAIL STORES,Cambridgeshire Skills,Cambridgeshire Skills - March Community Centre - Staff,
Cambridgeshire County Council,03/05/2022,69.90,AMZNMKTPLACE,MISCELLANEOUS AND SPECIALTY RETAIL STORES,Outdoor Education (includes Grafham Water),Grafham Water Centre,EQUIPMENT AND TOOLS
Cambridgeshire County Council,03/05/2022,79.00,AMAZON PRIME 2D3LD1C04,DIRECT MARKETING-CONTINUITY/SUBSCRIPTION MERCHANTS,ICT Service (Education),ICT Service Systems Development,
Cambridgeshire County Council,03/05/2022,263.56,LVL-VILLAGE VET MILTON,VETERINARY SERVICES,Integrated Front Door,IFD - Multi-Agency Safeguarding Hub (MASH),
Cambridgeshire County Council,04/05/2022,-9.95,AMZNMKTPLACE AMAZON.CO,MISCELLANEOUS AND SPECIALTY RETAIL STORES,Outdoor Education (includes Grafham Water),CEES Stibbington Centre,CATERING EQUIPMENT-PURCHASES
Cambridgeshire County Council,04/05/2022,3.83,ASDA SUPERSTORE  4981,"GROCERY STORES, SUPERMARKETS",Changing Futures & Projects,Counting Every Adult,OTHER SERVICE USER SUPPORT
Cambridgeshire County Council,04/05/2022,4.80,TESCO STORE 2885,"GROCERY STORES, SUPERMARKETS",Youth Offending Service,YOT - High Risk and Deter,OFFENDERS SUPPORT
Cambridgeshire County Council,04/05/2022,5.01,ASDA STORES,"GROCERY STORES, SUPERMARKETS",Targeted Support Service - North,EH Child and Family Centre - Wisbech,EDUCATIONAL MATERIALS
Cambridgeshire County Council,04/05/2022,5.20,ASDA STORES 4857,"GROCERY STORES, SUPERMARKETS",Outdoor Education (includes Grafham Water),Burwell House Residential Centre,CATERING PROVISIONS
Cambridgeshire County Council,04/05/2022,7.99,DISNEY PLUS,"CABLE, SATELLITE, OTHER PAY TELEVISION, RADIO SVCS",Children's Disability Service,RSS - Woodland Lodge,SUBSCRIPTIONS
Cambridgeshire County Council,04/05/2022,9.99,AMAZON.CO.UK 2D6RU3L44,DIRECT MARKETING-OTHER DIRECT MARKETERS/NOT ELSEW.,LD - In House Provider Services,Horizon,SPECIALIST EQUIPMENT FOR SERVICE DELIV
Cambridgeshire County Council,04/05/2022,10.19,THETRAINLINE.COM,PASSENGER RAILWAYS,Public Health - Admin & Salaries,Public Health Strategic Management,
Cambridgeshire County Council,04/05/2022,12.98,AMZNMKTPLACE,MISCELLANEOUS AND SPECIALTY RETAIL STORES,"Property, Facilities Management and Building Compliance",Shire Hall Area,BUILDING REPAIR AND MAINTENANCE
Cambridgeshire County Council,04/05/2022,13.19,EBAY O 06-08584-83138,DEPARTMENT STORES,LD - In House Provider Services,Horizon,SPECIALIST SUPPLIES AND MATERIALS
Cambridgeshire County Council,04/05/2022,15.96,AMZNMKTPLACE AMAZON.CO,MISCELLANEOUS AND SPECIALTY RETAIL STORES,Outdoor Education (includes Grafham Water),Grafham Water Centre,EQUIPMENT AND TOOLS
Cambridgeshire County Council,04/05/2022,20.49,AMAZON.CO.UK 2D7HP8ZF4,DIRECT MARKETING-OTHER DIRECT MARKETERS/NOT ELSEW.,Targeted Support Service - South,EH Child and Family Centre - East Cambs,SPECIALIST EQUIPMENT FOR SERVICE DELIV
Cambridgeshire County Council,04/05/2022,20.58,AMZNMKTPLACE,MISCELLANEOUS AND SPECIALTY RETAIL STORES,Outdoor Education (includes Grafham Water),CEES Stibbington Centre,GENERAL OFFICE EXPENSES & STATIONERY
Cambridgeshire County Council,04/05/2022,30.00,FACEBK XAHBUBKN22,ADVERTISING SERVICES,Fostering & Supervised Contact Services,Fostering Recruitment & Assessment Team,RECRUITMENT ADVERTISING
Cambridgeshire County Council,04/05/2022,30.53,AMZNMKTPLACE AMAZON.CO,MISCELLANEOUS AND SPECIALTY RETAIL STORES,Early Years Service,Trumpington Park Early Years,INTERNAL INCOME FRM PROVISION SERVICES
Cambridgeshire County Council,04/05/2022,32.20,ASDA GROCERIES ONLINE,"GROCERY STORES, SUPERMARKETS",LD - In House Provider Services,Horizon,SPECIALIST SUPPLIES AND MATERIALS
Cambridgeshire County Council,04/05/2022,33.20,ASDA GROCERIES ONLINE,"GROCERY STORES, SUPERMARKETS",LD - In House Provider Services,Horizon,CATERING PROVISIONS
Cambridgeshire County Council,04/05/2022,35.00,WWW.CAMCAB.CO.UK,LIMOUSINES AND TAXICABS,Children's Disability Service,Disability Referral & Access Team,
Cambridgeshire County Council,04/05/2022,35.00,WWW.CAMCAB.CO.UK,LIMOUSINES AND TAXICABS,Children's Disability Service,Disability Referral & Access Team,
Cambridgeshire County Council,04/05/2022,37.91,BAKER ROSS,"ARTIST SUPPLY STORES, CRAFT SHOPS",Targeted Support Service - South,EH Child and Family Centre - East Cambs,SPECIALIST EQUIPMENT FOR SERVICE DELIV
Cambridgeshire County Council,04/05/2022,39.94,AMZNMKTPLACE,MISCELLANEOUS AND SPECIALTY RETAIL STORES,Cambridgeshire Skills,Cambridgeshire Skills - March Community Centre - Staff,
Cambridgeshire County Council,04/05/2022,45.95,AMZNMKTPLACE,MISCELLANEOUS AND SPECIALTY RETAIL STORES,School Improvement Service,Adventure Playground,GROUNDS MAINTENANCE
Cambridgeshire County Council,04/05/2022,50.33,WOB.COM,"BOOKS,PERIODICALS AND NEWSPAPERS",Domestic Abuse and Sexual Violence Service,Domestic Violence Unit,
Cambridgeshire County Council,04/05/2022,50.47,TESCO STORE 2555,"GROCERY STORES, SUPERMARKETS",Early Years Service,Trumpington Park Early Years,CATERING PROVISIONS
Cambridgeshire County Council,04/05/2022,55.00,KING CARZ,LIMOUSINES AND TAXICABS,Coroners,Coroners General,GENERAL OFFICE EXPENSES & STATIONERY
Cambridgeshire County Council,04/05/2022,55.79,TRAINLINE.COM,PASSENGER RAILWAYS,ICT Service (Education),ICT Service Systems Development,
Cambridgeshire County Council,04/05/2022,57.60,ICELAND - 1704 - NEWMA,"GROCERY STORES, SUPERMARKETS",Outdoor Education (includes Grafham Water),Burwell House Residential Centre,CATERING PROVISIONS
Cambridgeshire County Council,04/05/2022,59.30,TESCO STORES 2470,"GROCERY STORES, SUPERMARKETS",Targeted Support Service - South,EH Child and Family Centre - East Cambs,SPECIALIST EQUIPMENT FOR SERVICE DELIV
Cambridgeshire County Council,04/05/2022,60.00,AMAZON.CO.UK 2D4ZO7LW4,DIRECT MARKETING-OTHER DIRECT MARKETERS/NOT ELSEW.,Safeguarding and Quality Assurance,Childrens Participation,SPECIALIST EQUIPMENT FOR SERVICE DELIV
Cambridgeshire County Council,04/05/2022,65.74,AMAZON.CO.UK 2D2V33ZN4,DIRECT MARKETING-OTHER DIRECT MARKETERS/NOT ELSEW.,Domestic Abuse and Sexual Violence Service,Domestic Violence Unit,
Cambridgeshire County Council,04/05/2022,68.80,AMZNMKTPLACE AMAZON.CO,MISCELLANEOUS AND SPECIALTY RETAIL STORES,Outdoor Education (includes Grafham Water),Grafham Water Centre,EQUIPMENT AND TOOLS
Cambridgeshire County Council,04/05/2022,74.55,AWS EMEA,BUSINESS SERVICES-NOT ELSEWHERE CLASSIFIED,IT & Digital Service,Business & Digital Systems,COMPUTER SOFTWARE - PURCHASE
Cambridgeshire County Council,04/05/2022,74.74,AWS EMEA,BUSINESS SERVICES-NOT ELSEWHERE CLASSIFIED,IT & Digital Service,Business & Digital Systems,COMPUTER SOFTWARE - PURCHASE
Cambridgeshire County Council,04/05/2022,78.55,AMAZON.CO.UK 2D08D5ZA4,DIRECT MARKETING-OTHER DIRECT MARKETERS/NOT ELSEW.,Safeguarding and Quality Assurance,Childrens Participation,SPECIALIST EQUIPMENT FOR SERVICE DELIV
Cambridgeshire County Council,04/05/2022,106.80,REED.CO.UK,ADVERTISING SERVICES,Human Resources,Social Work Recruit & Retain,RECRUITMENT COSTS
Cambridgeshire County Council,04/05/2022,110.00,AMAZON.CO.UK 2D3AI0LZ4,DIRECT MARKETING-OTHER DIRECT MARKETERS/NOT ELSEW.,Safeguarding and Quality Assurance,Childrens Participation,SPECIALIST EQUIPMENT FOR SERVICE DELIV
Cambridgeshire County Council,04/05/2022,114.00,OFSTED INTERNET,GOVERNMENT SERVICES-NOT ELSEWHERE CLASSIFIED,Children's Disability Service,CamPlay Holiday Clubs,
Cambridgeshire County Council,04/05/2022,152.95,WM MORRISONS STORE PIC,"GROCERY STORES, SUPERMARKETS",Children's Disability Service,Head of RSS,
Cambridgeshire County Council,04/05/2022,160.00,VOUCHER EXPRESS,BUSINESS SERVICES-NOT ELSEWHERE CLASSIFIED,Family Safeguarding West,Family Safeguarding Hunts and Fenland,
Cambridgeshire County Council,04/05/2022,195.00,PSHE ASSOCIATION,SCHOOLS & EDUCATIONAL SVC-NOT ELSEWHERE CLASSIFIED,School Improvement Service,"Education, Health, Safety and Wellbeing - PSHE",STAFF TRAINING & DEVELOPMENT
Cambridgeshire County Council,04/05/2022,233.99,TRADE GEAR LIMITED,HARDWARE STORES,Outdoor Education (includes Grafham Water),Grafham Water Centre,GROUNDS MAINTENANCE
Cambridgeshire County Council,04/05/2022,429.00,AMZNMKTPLACE,MISCELLANEOUS AND SPECIALTY RETAIL STORES,"Communities, Employment & Skills",Communities Service - Management,EDUCATIONAL MATERIALS
Cambridgeshire County Council,05/05/2022,1.50,WWW.GOV.UK,PROFESSIONAL SERVICES-NOT ELSEWHERE CLASSIFIED,Shared Services,Debt Team,DEBT RECOVERY COSTS
Cambridgeshire County Council,05/05/2022,1.90,POST OFFICE COUNTER,POSTAL SERVICES-GOVERNMENT ONLY,Changing Futures & Projects,Housing First,POSTAGE & CARRIAGE
Cambridgeshire County Council,05/05/2022,3.00,HM LAND REGISTRY - ONL,GOVERNMENT SERVICES-NOT ELSEWHERE CLASSIFIED,Shared Services,Debt Team,DEBT RECOVERY COSTS
Cambridgeshire County Council,05/05/2022,3.00,HM LAND REGISTRY - ONL,GOVERNMENT SERVICES-NOT ELSEWHERE CLASSIFIED,Shared Services,Debt Team,DEBT RECOVERY COSTS
Cambridgeshire County Council,05/05/2022,3.99,AMZNMKTPLACE,MISCELLANEOUS AND SPECIALTY RETAIL STORES,Outdoor Education (includes Grafham Water),Grafham Water Centre,EQUIPMENT AND TOOLS
Cambridgeshire County Council,05/05/2022,4.08,JUSTPARK,AUTOMOBILE PARKING LOTS AND GARAGES,Changing Futures & Projects,Housing First,OTHER SERVICE USER SUPPORT
Cambridgeshire County Council,05/05/2022,7.05,CENTRAL CO-OP RETA,"GROCERY STORES, SUPERMARKETS",Outdoor Education (includes Grafham Water),CEES Stibbington Centre,CATERING PROVISIONS
Cambridgeshire County Council,05/05/2022,7.50,TRAINLINE.COM,PASSENGER RAILWAYS,Coroners,Coroners General,GENERAL OFFICE EXPENSES & STATIONERY
Cambridgeshire County Council,05/05/2022,7.54,FASTHOSTS,COMPUTER NETWORK/INFORMATION SERVICES,ICT Service (Education),ICT Service Systems Development,
Cambridgeshire County Council,05/05/2022,8.49,AMZNMKTPLACE AMAZON.CO,MISCELLANEOUS AND SPECIALTY RETAIL STORES,Virtual School,Virtual School for Care Experienced Children,
Cambridgeshire County Council,05/05/2022,9.95,AMZNMKTPLACE,MISCELLANEOUS AND SPECIALTY RETAIL STORES,Outdoor Education (includes Grafham Water),Burwell House Residential Centre,GENERAL OFFICE EXPENSES & STATIONERY
Cambridgeshire County Council,05/05/2022,10.00,SAINSBURYS S/MKTS,"GROCERY STORES, SUPERMARKETS",LD - In House Provider Services,6 St Lukes Close (Respite),
Cambridgeshire County Council,05/05/2022,10.47,WWW.SCREWFIX.COM,"BUILDING MATERIALS, LUMBER STORES",Targeted Support Service - South,EH Child and Family Centre - East Cambs,SPECIALIST EQUIPMENT FOR SERVICE DELIV
Cambridgeshire County Council,05/05/2022,12.66,MCDONALDS,FAST FOOD RESTAURANTS,Youth Offending Service,YOT - High Risk and Deter,OFFENDERS SUPPORT
Cambridgeshire County Council,05/05/2022,14.00,GEN REGISTER OFFICE,GOVERNMENT SERVICES-NOT ELSEWHERE CLASSIFIED,Changing Futures & Projects,Counting Every Adult,OTHER SERVICE USER SUPPORT
Cambridgeshire County Council,05/05/2022,16.00,B&M 292 - MARCH,MISCELLANEOUS GENERAL MERCHANDISE,LD - In House Provider Services,No. 20 Alder Close Respite,CATERING PROVISIONS
Cambridgeshire County Council,05/05/2022,18.40,POST OFFICE COUNTER,POSTAL SERVICES-GOVERNMENT ONLY,Coroners,Coroners General,
Cambridgeshire County Council,05/05/2022,19.34,AMAZON.CO.UK 2D6HC2334,DIRECT MARKETING-OTHER DIRECT MARKETERS/NOT ELSEW.,Children's Disability Service,Head of RSS,
Cambridgeshire County Council,05/05/2022,19.43,AMZNMKTPLACE,MISCELLANEOUS AND SPECIALTY RETAIL STORES,Outdoor Education (includes Grafham Water),Burwell House Residential Centre,CATERING EQUIPMENT-PURCHASES
Cambridgeshire County Council,05/05/2022,19.44,TESCO STORES 4483,"GROCERY STORES, SUPERMARKETS",Targeted Support Service - South,EH Child and Family Centre - East Cambs,SPECIALIST EQUIPMENT FOR SERVICE DELIV
Cambridgeshire County Council,05/05/2022,20.00,WH SMITH,NEWS DEALERS AND NEWSSTANDS,Corporate Parenting,North Care Leaving Team 2,GRANTS&SUPPORT FOR OTHER SERVICE USERS
Cambridgeshire County Council,05/05/2022,23.60,BIG ROCK CLIMBING,RECREATION SERVICES (NOT ELSEWHERE CLASSIFIED),Youth Offending Service,YOT - High Risk and Deter,OFFENDERS SUPPORT
Cambridgeshire County Council,05/05/2022,23.94,AMZNMKTPLACE,MISCELLANEOUS AND SPECIALTY RETAIL STORES,Outdoor Education (includes Grafham Water),CEES Stibbington Centre,LAUNDRY & CLOTHING REPAIR
Cambridgeshire County Council,05/05/2022,25.00,BRITISH GAS OTP,"UTLTS-ELCTRC, GAS, HEATING OIL, SANITARY, WATER",Changing Futures & Projects,Counting Every Adult,
Cambridgeshire County Council,05/05/2022,28.35,TESCO STORE 2065,"GROCERY STORES, SUPERMARKETS",Children's Disability Service,Head of RSS,CATERING PROVISIONS
Cambridgeshire County Council,05/05/2022,30.00,VOUCHER EXPRESS,BUSINESS SERVICES-NOT ELSEWHERE CLASSIFIED,Corporate Parenting,North Child Looked After Team 1,LEAVING CARE GRANTS
Cambridgeshire County Council,05/05/2022,30.00,TESCO GIFT CARD,"GROCERY STORES, SUPERMARKETS",Corporate Parenting,North Child Looked After Team 1,GRANTS&SUPPORT FOR OTHER SERVICE USERS
Cambridgeshire County Council,05/05/2022,30.00,TESCO GIFT CARD,"GROCERY STORES, SUPERMARKETS",Corporate Parenting,North Child Looked After Team 1,GRANTS&SUPPORT FOR OTHER SERVICE USERS
Cambridgeshire County Council,05/05/2022,30.00,TESCO GIFT CARD,"GROCERY STORES, SUPERMARKETS",Corporate Parenting,North Child Looked After Team 1,SPECIALIST EQUIPMENT FOR SERVICE DELIV
Cambridgeshire County Council,05/05/2022,30.00,CELL SOLUTIONS,TELECOMMUNICATION EQUIPMENT INCL TELEPHONE SALES,Corporate Parenting,North Care Leaving Team 2,GRANTS&SUPPORT FOR OTHER SERVICE USERS
Cambridgeshire County Council,05/05/2022,39.54,AMZNMKTPLACE,MISCELLANEOUS AND SPECIALTY RETAIL STORES,LD - In House Provider Services,6 St Lukes Close (Respite),
Cambridgeshire County Council,05/05/2022,43.82,AMZNMKTPLACE AMAZON.CO,MISCELLANEOUS AND SPECIALTY RETAIL STORES,Early Years Service,Trumpington Park Early Years,INTERNAL INCOME FRM PROVISION SERVICES
Cambridgeshire County Council,05/05/2022,43.93,ARGOS LTD,DISCOUNT STORES,Family Safeguarding West,Family Safeguarding Hunts and Fenland,
Cambridgeshire County Council,05/05/2022,44.99,THANKBOX,DIGITAL GOODS AUDIOVISUAL MEDIA,Early Years Service,Early Years Workforce Development,EDUCATIONAL MATERIALS
Cambridgeshire County Council,05/05/2022,48.00,EB  PLACING CHILDREN O,BUSINESS SERVICES-NOT ELSEWHERE CLASSIFIED,Adoption,Regional Adoption Agency,
Cambridgeshire County Council,05/05/2022,55.00,KING CARZ,LIMOUSINES AND TAXICABS,Coroners,Coroners General,GENERAL OFFICE EXPENSES & STATIONERY
Cambridgeshire County Council,05/05/2022,57.92,DNH GO DADDY EUROPE GB,COMPUTER NETWORK/INFORMATION SERVICES,ICT Service (Education),ICT Service Systems Development,
Cambridgeshire County Council,05/05/2022,59.64,AMAZON.CO.UK 2D9A74TW4,DIRECT MARKETING-OTHER DIRECT MARKETERS/NOT ELSEW.,SEND Specialist Services,Head of SEND Services (0-25),EDUCATIONAL EQUIPMENT
Cambridgeshire County Council,05/05/2022,60.00,HIGHSTREETVOUCHERS,"ASSOCIATIONS-CIVIC, SOCIAL, AND FRATERNAL",Safeguarding and Quality Assurance,Childrens Participation,SPECIALIST EQUIPMENT FOR SERVICE DELIV
Cambridgeshire County Council,05/05/2022,64.20,WWW.DIRECT-FUNDRAISING,MISCELLANEOUS AND SPECIALTY RETAIL STORES,Public Library Services,Support - Business Support,GENERAL OFFICE EXPENSES & STATIONERY
Cambridgeshire County Council,05/05/2022,68.00,HUNTS TAXIS LTD,LIMOUSINES AND TAXICABS,"Communities, Employment & Skills",Communities Service - Management,OTHER TRAVEL EXPENSES
Cambridgeshire County Council,05/05/2022,72.42,AMZNMKTPLACE,MISCELLANEOUS AND SPECIALTY RETAIL STORES,Children's Disability Service,Head of RSS,
Cambridgeshire County Council,05/05/2022,82.00,WWW.CAMCAB.CO.UK,LIMOUSINES AND TAXICABS,Children's Disability Service,Disability Referral & Access Team,
Cambridgeshire County Council,05/05/2022,101.00,WWW.CHROMASPORT.CO.UK,ACCESSORY AND APPAREL STORES-MISCELLANEOUS,Domestic Abuse and Sexual Violence Service,Domestic Violence Unit,
Cambridgeshire County Council,05/05/2022,114.00,OFSTED INTERNET,GOVERNMENT SERVICES-NOT ELSEWHERE CLASSIFIED,Children's Disability Service,CamPlay Holiday Clubs,
Cambridgeshire County Council,05/05/2022,142.70,AMZ FLOORING DIRECT,MISCELLANEOUS HOUSE FURNISHING SPECIALTY SHOPS,Outdoor Education (includes Grafham Water),Grafham Water Centre,SUBSCRIPTIONS
Cambridgeshire County Council,05/05/2022,203.94,ARGOS LTD,DISCOUNT STORES,Corporate Parenting,North Care Leaving Team 2,LEAVING CARE GRANTS
Cambridgeshire County Council,05/05/2022,240.00,LEISURE & SPORT FOR LI,"BAR,LOUNGE,DISCO,NIGHTCLUB,TAVERN-ALCOHOLIC DRINKS",Targeted Support Service - South,EH Child and Family Centre - East Cambs,CASUAL HIRE OF FACILITIES
Cambridgeshire County Council,06/05/2022,0.30,ALDI,"GROCERY STORES, SUPERMARKETS",Changing Futures & Projects,Housing First,OTHER SERVICE USER SUPPORT
Cambridgeshire County Council,06/05/2022,2.08,POST OFFICE COUNTER,POSTAL SERVICES-GOVERNMENT ONLY,Corporate Parenting,North Child Looked After Team 1,POSTAGE & CARRIAGE
Cambridgeshire County Council,06/05/2022,2.10,TESCO STORES 2470,"GROCERY STORES, SUPERMARKETS",Outdoor Education (includes Grafham Water),Burwell House Residential Centre,CATERING PROVISIONS
Cambridgeshire County Council,06/05/2022,3.00,HM LAND REGISTRY - ONL,GOVERNMENT SERVICES-NOT ELSEWHERE CLASSIFIED,Shared Services,Debt Team,DEBT RECOVERY COSTS
Cambridgeshire County Council,06/05/2022,3.68,PPOINT_ PREMIER NEW EN,"GROCERY STORES, SUPERMARKETS",Changing Futures & Projects,Counting Every Adult,OTHER SERVICE USER SUPPORT
Cambridgeshire County Council,06/05/2022,6.00,AMAZON.CO.UK 2D6U27AB4,DIRECT MARKETING-OTHER DIRECT MARKETERS/NOT ELSEW.,Children's Disability Service,Head of RSS,
Cambridgeshire County Council,06/05/2022,6.85,POST OFFICE COUNTER,POSTAL SERVICES-GOVERNMENT ONLY,Changing Futures & Projects,Housing First,POSTAGE & CARRIAGE
Cambridgeshire County Council,06/05/2022,7.48,ASDA STORES 4857,"GROCERY STORES, SUPERMARKETS",Outdoor Education (includes Grafham Water),Burwell House Residential Centre,CATERING PROVISIONS
Cambridgeshire County Council,06/05/2022,7.65,POST OFFICE COUNTER,POSTAL SERVICES-GOVERNMENT ONLY,Coroners,Coroners General,POSTAGE & CARRIAGE
Cambridgeshire County Council,06/05/2022,7.90,CO-OP GROUP 171471,"GROCERY STORES, SUPERMARKETS",Outdoor Education (includes Grafham Water),Burwell House Residential Centre,CATERING PROVISIONS
Cambridgeshire County Council,06/05/2022,7.99,AMAZON PRIME 2D9177EB4,DIRECT MARKETING-CONTINUITY/SUBSCRIPTION MERCHANTS,Children's Disability Service,Head of RSS,
Cambridgeshire County Council,06/05/2022,11.20,STAGECOACH SERVICE,BUS LINES,Family Safeguarding West,Family Safeguarding Hunts and Fenland,ASYLUM SEEKERS
Cambridgeshire County Council,06/05/2022,14.02,BRITISH GAS OTP,"UTLTS-ELCTRC, GAS, HEATING OIL, SANITARY, WATER",Changing Futures & Projects,Housing First,
Cambridgeshire County Council,06/05/2022,15.00,WEST NORTHAMPTONSHIRE,GOVERNMENT SERVICES-NOT ELSEWHERE CLASSIFIED,0-19 Organisation & Planning,Attendance and Behaviour,PROFESSIONAL FEES AND HIRED SERVICES
Cambridgeshire County Council,06/05/2022,15.00,WEST NORTHAMPTONSHIRE,GOVERNMENT SERVICES-NOT ELSEWHERE CLASSIFIED,0-19 Organisation & Planning,Attendance and Behaviour,PROFESSIONAL FEES AND HIRED SERVICES
Cambridgeshire County Council,06/05/2022,15.00,WEST NORTHAMPTONSHIRE,GOVERNMENT SERVICES-NOT ELSEWHERE CLASSIFIED,0-19 Organisation & Planning,Attendance and Behaviour,PROFESSIONAL FEES AND HIRED SERVICES
Cambridgeshire County Council,06/05/2022,15.00,WEST NORTHAMPTONSHIRE,GOVERNMENT SERVICES-NOT ELSEWHERE CLASSIFIED,0-19 Organisation & Planning,Attendance and Behaviour,PROFESSIONAL FEES AND HIRED SERVICES
Cambridgeshire County Council,06/05/2022,15.00,WEST NORTHAMPTONSHIRE,GOVERNMENT SERVICES-NOT ELSEWHERE CLASSIFIED,0-19 Organisation & Planning,Attendance and Behaviour,PROFESSIONAL FEES AND HIRED SERVICES
Cambridgeshire County Council,06/05/2022,15.00,WEST NORTHAMPTONSHIRE,GOVERNMENT SERVICES-NOT ELSEWHERE CLASSIFIED,0-19 Organisation & Planning,Attendance and Behaviour,PROFESSIONAL FEES AND HIRED SERVICES
Cambridgeshire County Council,06/05/2022,15.00,WEST NORTHAMPTONSHIRE,GOVERNMENT SERVICES-NOT ELSEWHERE CLASSIFIED,0-19 Organisation & Planning,Attendance and Behaviour,PROFESSIONAL FEES AND HIRED SERVICES
Cambridgeshire County Council,06/05/2022,21.94,AMZNMKTPLACE,MISCELLANEOUS AND SPECIALTY RETAIL STORES,Children's Disability Service,Head of RSS,
Cambridgeshire County Council,06/05/2022,24.95,AMZNMKTPLACE AMAZON.CO,MISCELLANEOUS AND SPECIALTY RETAIL STORES,Cambridgeshire Skills,Cambridgeshire Skills - March Community Centre - Staff,
Cambridgeshire County Council,06/05/2022,24.98,AMZNMKTPLACE,MISCELLANEOUS AND SPECIALTY RETAIL STORES,Cambridgeshire Skills,Cambridgeshire Skills - March Community Centre - Staff,
Cambridgeshire County Council,06/05/2022,25.00,CO-OP GROUP 171891,"GROCERY STORES, SUPERMARKETS",Changing Futures & Projects,Housing First,OTHER SERVICE USER SUPPORT
Cambridgeshire County Council,06/05/2022,28.98,AMZNMKTPLACE AMAZON.CO,MISCELLANEOUS AND SPECIALTY RETAIL STORES,LD - In House Provider Services,"Larkfield, Ely",EQUIPMENT AND TOOLS
Cambridgeshire County Council,06/05/2022,29.50,TESCO STORE 2065,"GROCERY STORES, SUPERMARKETS",Outdoor Education (includes Grafham Water),Grafham Water Centre,EQUIPMENT AND TOOLS
Cambridgeshire County Council,06/05/2022,38.94,ARGOS LTD,DISCOUNT STORES,Corporate Parenting,North Care Leaving Team 2,LEAVING CARE GRANTS
Cambridgeshire County Council,06/05/2022,40.00,TESCO GIFT CARD,"GROCERY STORES, SUPERMARKETS",Family Safeguarding East,Adolescent Team South,GRANTS&SUPPORT FOR OTHER SERVICE USERS
Cambridgeshire County Council,06/05/2022,49.00,HM PASSPORT OFFICE,GOVERNMENT SERVICES-NOT ELSEWHERE CLASSIFIED,Corporate Parenting,South Child Looked After Team 2,BOOKS AND MULTIMEDIA SUPPLIES
Cambridgeshire County Council,06/05/2022,50.87,TESCO STORES 5657,"GROCERY STORES, SUPERMARKETS",LD - In House Provider Services,No. 20 Alder Close Respite,CATERING PROVISIONS
Cambridgeshire County Council,06/05/2022,52.49,AMZNMKTPLACE AMAZON.CO,MISCELLANEOUS AND SPECIALTY RETAIL STORES,Outdoor Education (includes Grafham Water),Grafham Water Centre,EQUIPMENT AND TOOLS
Cambridgeshire County Council,06/05/2022,59.99,AMZNMKTPLACE,MISCELLANEOUS AND SPECIALTY RETAIL STORES,Outdoor Education (includes Grafham Water),Burwell House Residential Centre,CATERING EQUIPMENT-PURCHASES
Cambridgeshire County Council,06/05/2022,82.08,G M R COURIERS LTD,"COURIER SVC-AIR & GROUND, FREIGHT FORWARDERS",Performance & Strategic Development,Adults Central Business Support,
Cambridgeshire County Council,06/05/2022,82.20,WWW.PREMIERCATERINGEQU,ELECTRICAL PARTS AND EQUIPMENT,Outdoor Education (includes Grafham Water),Burwell House Residential Centre,CATERING EQUIPMENT-REPAIRS&MAINTENANCE
Cambridgeshire County Council,06/05/2022,99.10,WOODWIND & REED,"MUSIC STORES-INSTRUMENTS, PIANOS, SHEET MUSIC",Cambridgeshire Music,Cambs Music Business Development,PROFESSIONAL FEES AND HIRED SERVICES
Cambridgeshire County Council,06/05/2022,129.95,EB  MASTURBATION AUTIS,BUSINESS SERVICES-NOT ELSEWHERE CLASSIFIED,LD - In House Provider Services,6 St Lukes Close (Respite),
Cambridgeshire County Council,06/05/2022,129.95,EB  MASTURBATION AUTIS,BUSINESS SERVICES-NOT ELSEWHERE CLASSIFIED,LD - In House Provider Services,6 St Lukes Close (Respite),
Cambridgeshire County Council,06/05/2022,159.00,TVLICENSING.CO.UK,"CONSULTING, MANAGEMENT, AND PUBLIC RELATIONS SVCS",Corporate Parenting,North Child Looked After Team 1,LEAVING CARE GRANTS
Cambridgeshire County Council,06/05/2022,159.00,TVLICENSING.CO.UK,"CONSULTING, MANAGEMENT, AND PUBLIC RELATIONS SVCS",Corporate Parenting,North Child Looked After Team 1,LEAVING CARE GRANTS
Cambridgeshire County Council,06/05/2022,159.00,TVLICENSING.CO.UK,"CONSULTING, MANAGEMENT, AND PUBLIC RELATIONS SVCS",Corporate Parenting,North Child Looked After Team 1,LEAVING CARE GRANTS
Cambridgeshire County Council,06/05/2022,210.00,REED.CO.UK,ADVERTISING SERVICES,Human Resources,Social Work Recruit & Retain,RECRUITMENT COSTS
Cambridgeshire County Council,06/05/2022,249.23,WWW.MPLCUK.COM,"CONSULTING, MANAGEMENT, AND PUBLIC RELATIONS SVCS",LD - In House Provider Services,Victoria  Lodge,PROFESSIONAL FEES AND HIRED SERVICES
Cambridgeshire County Council,06/05/2022,295.68,PLATTERS,FAST FOOD RESTAURANTS,Fostering & Supervised Contact Services,Foster Care Training,
Cambridgeshire County Council,06/05/2022,297.00,WWW.GREYSOFELY.CO.UK,LIMOUSINES AND TAXICABS,Targeted Support Service - South,EH East Cambridgeshire District,OTHER TRAVEL EXPENSES
Cambridgeshire County Council,06/05/2022,448.00,POST OFFICE COUNTER,POSTAL SERVICES-GOVERNMENT ONLY,0-19 Organisation & Planning,Attendance and Behaviour,POSTAGE & CARRIAGE
Cambridgeshire County Council,09/05/2022,-26.01,PYN BEDS CO UK,"EQUIP, FURNITURE, HOME FURNSHNGS STRS (EXCPT APPL)",Corporate Parenting,North Care Leaving Team 2,
Cambridgeshire County Council,09/05/2022,2.29,ASDA SUPERSTORE  4981,"GROCERY STORES, SUPERMARKETS",Changing Futures & Projects,Counting Every Adult,OTHER SERVICE USER SUPPORT
Cambridgeshire County Council,09/05/2022,2.95,GREGGS PLC,"EATING PLACES, RESTAURANTS",Changing Futures & Projects,Counting Every Adult,OTHER SERVICE USER SUPPORT
Cambridgeshire County Council,09/05/2022,3.90,AMZNMKTPLACE AMAZON.CO,MISCELLANEOUS AND SPECIALTY RETAIL STORES,Youth Offending Service,YOT Project,GENERAL OFFICE EXPENSES & STATIONERY
Cambridgeshire County Council,09/05/2022,3.95,ROYAL MAIL GROUP LTD,POSTAL SERVICES-GOVERNMENT ONLY,Outdoor Education (includes Grafham Water),Burwell House Residential Centre,GENERAL OFFICE EXPENSES & STATIONERY
Cambridgeshire County Council,09/05/2022,4.40,GREGGS PLC,"EATING PLACES, RESTAURANTS",Changing Futures & Projects,Housing First,OTHER SERVICE USER SUPPORT
Cambridgeshire County Council,09/05/2022,4.45,SAINSBURYS,"GROCERY STORES, SUPERMARKETS",Targeted Support Service - South,EH Child and Family Centre - East Cambs,SPECIALIST EQUIPMENT FOR SERVICE DELIV
Cambridgeshire County Council,09/05/2022,5.10,GREATER ANGLIA,PASSENGER RAILWAYS,Changing Futures & Projects,Counting Every Adult,
Cambridgeshire County Council,09/05/2022,5.24,AMZNMKTPLACE AMAZON.CO,MISCELLANEOUS AND SPECIALTY RETAIL STORES,Targeted Support Service - North,EH Child and Family Centre - Wisbech,EDUCATIONAL MATERIALS
Cambridgeshire County Council,09/05/2022,6.33,SAINSBURYS,"GROCERY STORES, SUPERMARKETS",LD - In House Provider Services,6 St Lukes Close (Respite),SPECIALIST SUPPLIES AND MATERIALS
Cambridgeshire County Council,09/05/2022,6.34,FASTHOSTS,COMPUTER NETWORK/INFORMATION SERVICES,ICT Service (Education),ICT Service Systems Development,
Cambridgeshire County Council,09/05/2022,7.99,AMZNMKTPLACE,MISCELLANEOUS AND SPECIALTY RETAIL STORES,Outdoor Education (includes Grafham Water),Grafham Water Centre,GENERAL OFFICE EXPENSES & STATIONERY
Cambridgeshire County Council,09/05/2022,8.49,AMAZON.CO.UK 2D0DF8H94,DIRECT MARKETING-OTHER DIRECT MARKETERS/NOT ELSEW.,Children's Disability Service,Head of RSS,
Cambridgeshire County Council,09/05/2022,9.00,SAINSBURYS,"GROCERY STORES, SUPERMARKETS",LD - In House Provider Services,6 St Lukes Close (Respite),
Cambridgeshire County Council,09/05/2022,9.00,TESCO STORES 2228,"GROCERY STORES, SUPERMARKETS",Planning and Sustainable Growth,Travel Plan +,GENERAL OFFICE EXPENSES & STATIONERY
Cambridgeshire County Council,09/05/2022,9.99,NETFLIX.COM,"CABLE, SATELLITE, OTHER PAY TELEVISION, RADIO SVCS",Family Safeguarding East,Family Safeguarding East & South Cambs and Cambridge,
Cambridgeshire County Council,09/05/2022,10.88,AMZNMKTPLACE AMAZON.CO,MISCELLANEOUS AND SPECIALTY RETAIL STORES,Targeted Support Service - North,EH Child and Family Centre - Wisbech,EDUCATIONAL MATERIALS
Cambridgeshire County Council,09/05/2022,10.95,AMZNMKTPLACE,MISCELLANEOUS AND SPECIALTY RETAIL STORES,Youth Offending Service,YOT Project,GENERAL OFFICE EXPENSES & STATIONERY
Cambridgeshire County Council,09/05/2022,11.00,GEN REGISTER OFFICE,GOVERNMENT SERVICES-NOT ELSEWHERE CLASSIFIED,Corporate Parenting,South Child Looked After Team 2,BOOKS AND MULTIMEDIA SUPPLIES
Cambridgeshire County Council,09/05/2022,12.23,TESCO STORES 2228,"GROCERY STORES, SUPERMARKETS",Changing Futures & Projects,Housing First,OTHER SERVICE USER SUPPORT
Cambridgeshire County Council,09/05/2022,12.32,AMAZON.CO.UK 2D37H5PP4,DIRECT MARKETING-OTHER DIRECT MARKETERS/NOT ELSEW.,Children's Disability Service,Head of RSS,
Cambridgeshire County Council,09/05/2022,12.99,WWW.THEWORKS.CO.UK,DISCOUNT STORES,School Improvement Service,Adventure Playground,GROUNDS MAINTENANCE
Cambridgeshire County Council,09/05/2022,13.10,SAINSBURYS S/MKTS,"GROCERY STORES, SUPERMARKETS",Targeted Support Service - North,EH Child and Family Centre - Wisbech,CATERING PROVISIONS
Cambridgeshire County Council,09/05/2022,14.50,TL&GN RAILWAY WEB,PASSENGER RAILWAYS,Corporate Parenting,South Child Looked After Team 2,CAR MILEAGE AND ALLOWANCES - OTHER
Cambridgeshire County Council,09/05/2022,14.70,TESCO STORES 2228,"GROCERY STORES, SUPERMARKETS",Changing Futures & Projects,Housing First,OTHER SERVICE USER SUPPORT
Cambridgeshire County Council,09/05/2022,15.00,WEST NORTHAMPTONSHIRE,GOVERNMENT SERVICES-NOT ELSEWHERE CLASSIFIED,0-19 Organisation & Planning,Attendance and Behaviour,PROFESSIONAL FEES AND HIRED SERVICES
Cambridgeshire County Council,09/05/2022,15.00,WEST NORTHAMPTONSHIRE,GOVERNMENT SERVICES-NOT ELSEWHERE CLASSIFIED,0-19 Organisation & Planning,Attendance and Behaviour,PROFESSIONAL FEES AND HIRED SERVICES
Cambridgeshire County Council,09/05/2022,15.00,WEST NORTHAMPTONSHIRE,GOVERNMENT SERVICES-NOT ELSEWHERE CLASSIFIED,0-19 Organisation & Planning,Attendance and Behaviour,PROFESSIONAL FEES AND HIRED SERVICES
Cambridgeshire County Council,09/05/2022,15.00,WEST NORTHAMPTONSHIRE,GOVERNMENT SERVICES-NOT ELSEWHERE CLASSIFIED,0-19 Organisation & Planning,Attendance and Behaviour,PROFESSIONAL FEES AND HIRED SERVICES
Cambridgeshire County Council,09/05/2022,15.21,AMAZON.CO.UK 2D4123H84,DIRECT MARKETING-OTHER DIRECT MARKETERS/NOT ELSEW.,LD - In House Provider Services,6 St Lukes Close (Respite),
Cambridgeshire County Council,09/05/2022,16.99,AMZNMKTPLACE AMAZON.CO,MISCELLANEOUS AND SPECIALTY RETAIL STORES,Youth Offending Service,YOT Project,GENERAL OFFICE EXPENSES & STATIONERY
Cambridgeshire County Council,09/05/2022,18.02,AMAZON.CO.UK 2D4G50HY4,DIRECT MARKETING-OTHER DIRECT MARKETERS/NOT ELSEW.,Children's Disability Service,Head of RSS,
Cambridgeshire County Council,09/05/2022,18.99,AMZNMKTPLACE AMAZON.CO,MISCELLANEOUS AND SPECIALTY RETAIL STORES,Early Years Service,Trumpington Park Early Years,INTERNAL INCOME FRM PROVISION SERVICES
Cambridgeshire County Council,09/05/2022,19.32,FACEBK  69QGJDFUC2,ADVERTISING SERVICES,Fostering & Supervised Contact Services,Fostering Recruitment & Assessment Team,RECRUITMENT ADVERTISING
Cambridgeshire County Council,09/05/2022,19.99,CYCLE KING,BICYCLE SHOPS-SALES AND SERVICE,Youth Offending Service,YOT - High Risk and Deter,OFFENDERS SUPPORT
Cambridgeshire County Council,09/05/2022,19.99,AMZNMKTPLACE,MISCELLANEOUS AND SPECIALTY RETAIL STORES,Youth Offending Service,YOT Project,GENERAL OFFICE EXPENSES & STATIONERY
Cambridgeshire County Council,09/05/2022,20.00,BRITISH GAS OTP,"UTLTS-ELCTRC, GAS, HEATING OIL, SANITARY, WATER",Changing Futures & Projects,Housing First,OTHER SERVICE USER SUPPORT
Cambridgeshire County Council,09/05/2022,21.00,ICELAND - 1704 - NEWMA,"GROCERY STORES, SUPERMARKETS",Outdoor Education (includes Grafham Water),Burwell House Residential Centre,CATERING PROVISIONS
Cambridgeshire County Council,09/05/2022,22.29,GO OUTDOORS,SPORTING GOODS STORES,Changing Futures & Projects,Housing First,OTHER SERVICE USER SUPPORT
Cambridgeshire County Council,09/05/2022,22.99,AMZNMKTPLACE,MISCELLANEOUS AND SPECIALTY RETAIL STORES,Virtual School,Virtual School for Care Experienced Children,
Cambridgeshire County Council,09/05/2022,24.02,AMAZON.CO.UK 2D0HJ25O4,DIRECT MARKETING-OTHER DIRECT MARKETERS/NOT ELSEW.,Outdoor Education (includes Grafham Water),Burwell House Residential Centre,EDUCATIONAL EQUIPMENT
Cambridgeshire County Council,09/05/2022,29.15,AMAZON.CO.UK 2D54E1PX4,DIRECT MARKETING-OTHER DIRECT MARKETERS/NOT ELSEW.,Domestic Abuse and Sexual Violence Service,Domestic Violence Unit,
Cambridgeshire County Council,09/05/2022,30.00,FASTHOSTS,COMPUTER NETWORK/INFORMATION SERVICES,ICT Service (Education),ICT Service Systems Development,
Cambridgeshire County Council,09/05/2022,30.44,NOBLE RETAIL,"MISC FOOD STORE-CONVENIENCE,MRKT,SPLTY,VENDNG MACS",Children's Disability Service,Head of RSS,
Cambridgeshire County Council,09/05/2022,32.97,AMZNMKTPLACE AMAZON.CO,MISCELLANEOUS AND SPECIALTY RETAIL STORES,Targeted Support Service - North,EH Child and Family Centre - Wisbech,EDUCATIONAL MATERIALS
Cambridgeshire County Council,09/05/2022,34.99,AMZNMKTPLACE,MISCELLANEOUS AND SPECIALTY RETAIL STORES,Outdoor Education (includes Grafham Water),Grafham Water Centre,EQUIPMENT AND TOOLS
Cambridgeshire County Council,09/05/2022,35.90,GLS EDUCATIONAL SU,"COLLEGES, UNIV, PRO SCHOOLS, JUNIOR COLLEGES",Outdoor Education (includes Grafham Water),Burwell House Residential Centre,EDUCATIONAL MATERIALS
Cambridgeshire County Council,09/05/2022,36.25,AMZNMKTPLACE,MISCELLANEOUS AND SPECIALTY RETAIL STORES,LD - In House Provider Services,"Larkfield, Ely",EQUIPMENT AND TOOLS
Cambridgeshire County Council,09/05/2022,39.13,TESCO STORE 2694,"GROCERY STORES, SUPERMARKETS",LD - In House Provider Services,6 St Lukes Close (Respite),
Cambridgeshire County Council,09/05/2022,48.04,TESCO STORES 3009,"GROCERY STORES, SUPERMARKETS",Fostering & Supervised Contact Services,Foster Care Training,
Cambridgeshire County Council,09/05/2022,49.08,SPEEDY STAMPS,STATIONERY/OFFICE SUPPLIES/PRINTING & WRITING PAP.,Outdoor Education (includes Grafham Water),Burwell House Residential Centre,EDUCATIONAL MATERIALS
Cambridgeshire County Council,09/05/2022,54.07,TESCO STORES 2470,"GROCERY STORES, SUPERMARKETS",Family Safeguarding East,Adolescent Team South,GRANTS&SUPPORT FOR OTHER SERVICE USERS
Cambridgeshire County Council,09/05/2022,59.64,AMAZON.CO.UK 2D6JI2PH4,DIRECT MARKETING-OTHER DIRECT MARKETERS/NOT ELSEW.,SEND Specialist Services,Head of SEND Services (0-25),
Cambridgeshire County Council,09/05/2022,63.36,EE LIMITED,TELECOM INCL PREPAID/RECURRING PHONE SVCS,Outdoor Education (includes Grafham Water),Grafham Water Centre,MOBILE PHONES
Cambridgeshire County Council,09/05/2022,68.70,POST OFFICE COUNTER,POSTAL SERVICES-GOVERNMENT ONLY,Coroners,Coroners General,POSTAGE & CARRIAGE
Cambridgeshire County Council,09/05/2022,73.43,AMZNMKTPLACE AMAZON.CO,MISCELLANEOUS AND SPECIALTY RETAIL STORES,Children's Disability Service,Head of RSS,
Cambridgeshire County Council,09/05/2022,81.99,AMZNMKTPLACE AMAZON.CO,MISCELLANEOUS AND SPECIALTY RETAIL STORES,Targeted Support Service - North,EH Child and Family Centre - Hunts,PROFESSIONAL FEES AND HIRED SERVICES
Cambridgeshire County Council,09/05/2022,82.99,CURRYS ONLINE,ELECTRONIC SALES,Children's Disability Service,Head of RSS,GENERAL OFFICE EXPENSES & STATIONERY
Cambridgeshire County Council,09/05/2022,113.42,WM MORRISONS STORE PIC,"GROCERY STORES, SUPERMARKETS",Children's Disability Service,Head of RSS,
Cambridgeshire County Council,09/05/2022,115.00,AMZNMKTPLACE,MISCELLANEOUS AND SPECIALTY RETAIL STORES,Children's Disability Service,Head of RSS,
Cambridgeshire County Council,09/05/2022,129.95,EB  MASTURBATION AUTIS,BUSINESS SERVICES-NOT ELSEWHERE CLASSIFIED,LD - In House Provider Services,6 St Lukes Close (Respite),
Cambridgeshire County Council,09/05/2022,135.36,W M MORRISONS.COM,"GROCERY STORES, SUPERMARKETS",Children's Disability Service,Head of RSS,CATERING PROVISIONS
Cambridgeshire County Council,09/05/2022,159.00,TVLICENSING.CO.UK,"CONSULTING, MANAGEMENT, AND PUBLIC RELATIONS SVCS",Corporate Parenting,North Child Looked After Team 1,LEAVING CARE GRANTS
Cambridgeshire County Council,09/05/2022,159.00,TVLICENSING.CO.UK,"CONSULTING, MANAGEMENT, AND PUBLIC RELATIONS SVCS",Corporate Parenting,North Child Looked After Team 1,LEAVING CARE GRANTS
Cambridgeshire County Council,09/05/2022,159.00,VMO VIMEO PRO,DIRECT MARKETING-CONTINUITY/SUBSCRIPTION MERCHANTS,ICT Service (Education),ICT Service Systems Development,
Cambridgeshire County Council,09/05/2022,160.00,NATIONAL TRUST MEM,"ORGANIZATIONS, CHARITABLE AND SOCIAL SERVICES",Outdoor Education (includes Grafham Water),Burwell House Residential Centre,EDUCATIONAL MATERIALS
Cambridgeshire County Council,09/05/2022,165.82,AMZNMKTPLACE AMAZON.CO,MISCELLANEOUS AND SPECIALTY RETAIL STORES,Youth Offending Service,YOT Project,GENERAL OFFICE EXPENSES & STATIONERY
Cambridgeshire County Council,09/05/2022,220.00,ARGOS LTD,DISCOUNT STORES,Targeted Support Service - South,EH Child and Family Centre - East Cambs,SPECIALIST EQUIPMENT FOR SERVICE DELIV
Cambridgeshire County Council,09/05/2022,228.50,GAZEBOSHOP,TENT AND AWNING SHOPS,Planning and Sustainable Growth,Travel Plan +,EQUIPMENT AND TOOLS
Cambridgeshire County Council,09/05/2022,229.24,EE LIMITED,TELECOM INCL PREPAID/RECURRING PHONE SVCS,Domestic Abuse and Sexual Violence Service,Domestic Violence Unit,
Cambridgeshire County Council,09/05/2022,289.00,PYN BEDS CO UK,"EQUIP, FURNITURE, HOME FURNSHNGS STRS (EXCPT APPL)",Corporate Parenting,South Child Looked After Team 2,LEAVING CARE GRANTS
Cambridgeshire County Council,09/05/2022,290.00,POST OFFICE COUNTER,POSTAL SERVICES-GOVERNMENT ONLY,0-19 Organisation & Planning,Attendance and Behaviour,POSTAGE & CARRIAGE
Cambridgeshire County Council,09/05/2022,294.00,AO RETAIL LIMITED,HOUSEHOLD APPLIANCE STORES,Changing Futures & Projects,Housing First,OTHER SERVICE USER SUPPORT
Cambridgeshire County Council,09/05/2022,625.00,ABAKUSDIRECT.CO.UK,"EQUIP, FURNITURE, HOME FURNSHNGS STRS (EXCPT APPL)",Corporate Parenting,North Care Leaving Team 2,LEAVING CARE GRANTS
Cambridgeshire County Council,10/05/2022,-7.99,AMAZON PRIME,DIRECT MARKETING-CONTINUITY/SUBSCRIPTION MERCHANTS,Domestic Abuse and Sexual Violence Service,Domestic Violence Unit,
Cambridgeshire County Council,10/05/2022,0.95,POST OFFICE COUNTER,POSTAL SERVICES-GOVERNMENT ONLY,Changing Futures & Projects,Counting Every Adult,OTHER SERVICE USER SUPPORT
Cambridgeshire County Council,10/05/2022,1.70,TESCO-STORES 4472,"GROCERY STORES, SUPERMARKETS",Changing Futures & Projects,Housing First,OTHER SERVICE USER SUPPORT
Cambridgeshire County Council,10/05/2022,3.50,ONE STOP 0389,"GROCERY STORES, SUPERMARKETS",Youth Offending Service,YOT - High Risk and Deter,OFFENDERS SUPPORT
Cambridgeshire County Council,10/05/2022,4.25,TIMPSON LTD,MISCELLANEOUS AND SPECIALTY RETAIL STORES,Changing Futures & Projects,Housing First,OTHER SERVICE USER SUPPORT
Cambridgeshire County Council,10/05/2022,7.00,ASDA STORES,"GROCERY STORES, SUPERMARKETS",Targeted Support Service - North,EH Child and Family Centre - Wisbech,EDUCATIONAL EQUIPMENT
Cambridgeshire County Council,10/05/2022,8.00,ASDA GROCERIES ONLINE,"GROCERY STORES, SUPERMARKETS",LD - In House Provider Services,Horizon,SPECIALIST SUPPLIES AND MATERIALS
Cambridgeshire County Council,10/05/2022,11.00,WILKO.COM,MISCELLANEOUS GENERAL MERCHANDISE,Targeted Support Service - North,EH Child and Family Centre - Wisbech,
Cambridgeshire County Council,10/05/2022,13.59,AMZNMKTPLACE,MISCELLANEOUS AND SPECIALTY RETAIL STORES,Adoption,Regional Adoption Agency,
Cambridgeshire County Council,10/05/2022,27.13,TESCO STORE 2694,"GROCERY STORES, SUPERMARKETS",LD - In House Provider Services,6 St Lukes Close (Respite),
Cambridgeshire County Council,10/05/2022,30.00,GREATERANGLIACOM,PASSENGER RAILWAYS,Corporate Parenting,South Child Looked After Team 2,LEAVING CARE GRANTS
Cambridgeshire County Council,10/05/2022,30.87,AMZNMKTPLACE AMAZON.CO,MISCELLANEOUS AND SPECIALTY RETAIL STORES,LD - In House Provider Services,6 St Lukes Close (Respite),
Cambridgeshire County Council,10/05/2022,42.74,ASDA GROCERIES ONLINE,"GROCERY STORES, SUPERMARKETS",LD - In House Provider Services,Horizon,CATERING PROVISIONS
Cambridgeshire County Council,10/05/2022,43.39,ASDA GROCERIES ONLINE,"GROCERY STORES, SUPERMARKETS",Targeted Support Service - North,EH Child and Family Centre - Wisbech,EDUCATIONAL MATERIALS
Cambridgeshire County Council,10/05/2022,45.65,BHG MARINE LTD,"MARINAS, MARINE SERVICE/SUPPLIES",Outdoor Education (includes Grafham Water),Grafham Water Centre,EDUCATIONAL MATERIALS
Cambridgeshire County Council,10/05/2022,49.99,AMZNMKTPLACE AMAZON.CO,MISCELLANEOUS AND SPECIALTY RETAIL STORES,Corporate Parenting,North Care Leaving Team 2,ASYLUM SEEKERS
Cambridgeshire County Council,10/05/2022,49.99,AMZNMKTPLACE,MISCELLANEOUS AND SPECIALTY RETAIL STORES,Family Safeguarding East,Family Safeguarding East & South Cambs and Cambridge,
Cambridgeshire County Council,10/05/2022,54.97,TESCO STORE 2555,"GROCERY STORES, SUPERMARKETS",Early Years Service,Trumpington Park Early Years,CATERING PROVISIONS
Cambridgeshire County Council,10/05/2022,64.96,TRAINLINE,PASSENGER RAILWAYS,Adoption,Regional Adoption Agency,ADOPTION ALLOWANCES
Cambridgeshire County Council,10/05/2022,96.00,AMAZON PRIME 2D0JZ7QV4,DIRECT MARKETING-CONTINUITY/SUBSCRIPTION MERCHANTS,School Improvement Service,"Education, Health, Safety and Wellbeing - Outdoor Education",
Cambridgeshire County Council,10/05/2022,97.08,G M R COURIERS LTD,"COURIER SVC-AIR & GROUND, FREIGHT FORWARDERS",Performance & Strategic Development,Adults Central Business Support,
